Workbook

Sheet 1. Info
AB1: Alectra Utilities Corporation-Brampton Rate Zone | AC1: 2021 RTSR Workform for Electricity Distributors
AB2: Alectra Utilities Corporation-Enersource Rate Zone | AC2: v 1.0
AB3: Alectra Utilities Corporation-Horizon Utilities Rate Zone
AB4: Alectra Utilities Corporation-PowerStream Rate Zone
AB5: Alectra Utilities Corporation-Guelph Rate Zone
AB6: Algoma Power Inc.
AB7: Atikokan Hydro Inc.
AB8: Bluewater Power Distribution Corporation
AB9: Brantford Power Inc.
AB10: Burlington Hydro Inc.
AB11: Canadian Niagara Power Inc.
AB12: Centre Wellington Hydro Ltd.
A13: Drop-down lists are shaded blue; Input cells are shaded green. | AB13: Chapleau Public Utilities Corporation
AB14: Cooperative Hydro Embrun Inc.
C15: Utility Name | D15: Lakefront Utilities Inc. | AB15: E.L.K. Energy Inc.
AB16: Elexicon Energy Inc.-Whitby Rate Zone
C17: Assigned EB Number | D17: EB-2021-0039 | AB17: Elexicon Energy Inc.-Veridian Rate Zone
AB18: Energy+ Inc.
C19: Name and Title of Contact | D19: Adam Giddings, Director of Regulatory Finance | AB19: Entegrus Powerlines Inc.-For Entegrus-Main Rate Zone
AB20: Entegrus Powerlines Inc.-For Former St. Thomas Energy Rate Zone
C21: Phone Number | D21: 905-372-2193 ext: 5242 | AB21: ENWIN Utilities Ltd.
AB22: EPCOR Electricity Distribution Ontario Inc.
C23: Email Address | D23: agiddings@lusi.on.ca | AB23: ERTH Power Corporation - ERTH Power Main Rate Zone
AB24: ERTH POWER CORPORATION – GODERICH RATE ZONE
C25: Last COS Re-based Year | D25: 2017 | AB25: Essex Powerlines Corporation
AB26: Festival Hydro Inc.
AB27: Fort Frances Power Corporation
AB28: Greater Sudbury Hydro Inc.
AB29: Grimsby Power Incorporated
AB30: Halton Hills Hydro Inc.
AB31: Hearst Power Distribution Co. Ltd.
AB32: Hydro 2000 Inc.
AB33: Hydro Hawkesbury Inc.
AB34: Hydro One Networks Inc.
AB35: Hydro One Networks Inc.-Former Haldimand County Hydro Inc. Service Area
AB36: Hydro One Networks Inc.-Former Norfolk Power Distribution Inc. Service Area
AB37: Hydro One Networks Inc.-Former Woodstock Hydro Services Inc. Service Area
AB38: Hydro One Remote Communites Inc.
AB39: Hydro Ottawa Limited
AB40: InnPower Corporation
AB41: Kingston Hydro Corporation
AB42: Kitchener-Wilmot Hydro Inc.
AB43: Lakefront Utilities Inc.
AB44: Lakeland Power Distribution Ltd.
AB45: Lakeland Power Distribution Ltd.-Parry Sound Service Area
AB46: London Hydro Inc.
AB47: Milton Hydro Distribution Inc.
AB48: Newmarket-Tay Power Distribution Ltd.-For Former Midland Power Utility Rate Zone
AB49: Newmarket-Tay Power Distribution Ltd.-For Newmarket-Tay Power Main Rate Zone
AB50: Niagara Peninsula Energy Inc.
AB51: Niagara-on-the-Lake Hydro Inc.
AB52: North Bay Hydro Distribution Limited - Espanola service territory
AB53: North Bay Hydro Distribution Limited - North Bay service territory
AB54: Northern Ontario Wires Inc.
AB55: Oakville Hydro Electricity Distribution Inc.
AB56: Orangeville Hydro Limited
AB57: Orillia Power Distribution Corporation
AB58: Oshawa PUC Networks Inc.
AB59: Ottawa River Power Corporation
AB60: Peterborough Distribution Incorporated
AB61: PUC Distribution Inc.
AB62: Renfrew Hydro Inc.
AB63: Rideau St. Lawrence Distribution Inc.
AB64: Sioux Lookout Hydro Inc.
AB65: Synergy North Corporation-Kenora Rate Zone
AB66: Synergy North Corporation-Thunder Bay Rate Zone
AB67: Tillsonburg Hydro Inc.
AB68: Toronto Hydro-Electric System Limited
AB69: Wasaga Distribution Inc.
AB70: Waterloo North Hydro Inc.
AB71: Welland Hydro-Electric System Corp.
AB72: Wellington North Power Inc.
AB73: Westario Power Inc.

Sheet 2016 List (hidden)
A1: Alectra Utilities Corporation-Brampton Rate Zone | B1: HHPNS717
A2: Alectra Utilities Corporation-Enersource Rate Zone | B2: HHPNS717
A3: Alectra Utilities Corporation-Horizon Utilities Rate Zone | B3: HHPNS717
A4: Alectra Utilities Corporation-PowerStream Rate Zone | B4: HHPNS717
A5: Alectra Utilities Corporation-Guelph Rate Zone | B5: HHPNS717
A6: Algoma Power Inc. | B6: WKBSV849
A7: Atikokan Hydro Inc. | B7: NJYBW716
A8: Bluewater Power Distribution Corporation | B8: GQQHM388
A9: Brantford Power Inc. | B9: SFXZP935
A10: Burlington Hydro Inc. | B10: OARZC118
A11: Canadian Niagara Power Inc. | B11: HJHBH994
A12: Centre Wellington Hydro Ltd. | B12: KQEEH473
A13: Chapleau Public Utilities Corporation | B13: CPEFQ593
A14: Cooperative Hydro Embrun Inc. | B14: QXHJU641
A15: E.L.K. Energy Inc. | B15: AVXSO594
A16: Elexicon Energy Inc.-Whitby Rate Zone | B16: JMNNR431
A17: Elexicon Energy Inc.-Veridian Rate Zone | B17: JMNNR431
A18: Energy+ Inc. | B18: JKBZG525
A19: Entegrus Powerlines Inc.-For Entegrus-Main Rate Zone | B19: YEOQG654
A20: Entegrus Powerlines Inc.-For Former St. Thomas Energy Rate Zone | B20: YEOQG654
A21: ENWIN Utilities Ltd. | B21: PTLUC812
A22: EPCOR Electricity Distribution Ontario Inc. | B22: ADICB565
A23: ERTH Power Corporation - ERTH Power Main Rate Zone | B23: LRECV427
A24: ERTH POWER CORPORATION – GODERICH RATE ZONE | B24: KTCNY552
A25: Espanola Regional Hydro Distribution Corporation | B25: YEPCI143
A26: Essex Powerlines Corporation | B26: GRHTW113
A27: Festival Hydro Inc. | B27: GMGHU415
A28: Fort Frances Power Corporation | B28: YTPWF351
A29: Greater Sudbury Hydro Inc. | B29: YCYKQ642
A30: Grimsby Power Incorporated | B30: ADZFM459
A31: Halton Hills Hydro Inc. | B31: RVWKN794
A32: Hearst Power Distribution Co. Ltd. | B32: KESKM585
A33: Hydro 2000 Inc. | B33: MQFNL784
A34: Hydro Hawkesbury Inc. | B34: FNDHH648
A35: Hydro One Networks Inc. | B35: PTREM828
A36: Hydro One Networks Inc.-Former Haldimand County Hydro Inc. Service Area | B36: PTREM828
A37: Hydro One Networks Inc.-Former Norfolk Power Distribution Inc. Service Area | B37: PTREM828
A38: Hydro One Networks Inc.-Former Woodstock Hydro Services Inc. Service Area | B38: PTREM828
A39: Hydro One Remote Communites Inc. | B39: UBBYF452
A40: Hydro Ottawa Limited | B40: NSBED625
A41: InnPower Corporation | B41: TXKTT167
A42: Kingston Hydro Corporation | B42: ZHKLA874
A43: Kitchener-Wilmot Hydro Inc. | B43: YLJHT264
A44: Lakefront Utilities Inc. | B44: YLCEC559
A45: Lakeland Power Distribution Ltd. | B45: NHKJF259
A46: Lakeland Power Distribution Ltd.-Parry Sound Service Area | B46: NHKJF259
A47: London Hydro Inc. | B47: SLRXO177
A48: Milton Hydro Distribution Inc. | B48: UIFEM157
A49: Newmarket-Tay Power Distribution Ltd.-For Former Midland Power Utility Rate Zone | B49: RUZIU984
A50: Newmarket-Tay Power Distribution Ltd.-For Newmarket-Tay Power Main Rate Zone | B50: RUZIU984
A51: Niagara Peninsula Energy Inc. | B51: KSUYD122
A52: Niagara-on-the-Lake Hydro Inc. | B52: QHCKN852
A53: North Bay Hydro Distribution Limited | B53: FUIJX538
A54: Northern Ontario Wires Inc. | B54: PWKJP953
A55: Oakville Hydro Electricity Distribution Inc. | B55: JEGGW178
A56: Orangeville Hydro Limited | B56: TVKSH414
A57: Orillia Power Distribution Corporation | B57: DUISI693
A58: Oshawa PUC Networks Inc. | B58: PQZCY963
A59: Ottawa River Power Corporation | B59: GTLBW445
A60: Peterborough Distribution Incorporated | B60: XCFPH269
A61: PUC Distribution Inc. | B61: MLWYG784
A62: Renfrew Hydro Inc. | B62: QDKIF127
A63: Rideau St. Lawrence Distribution Inc. | B63: AMZEN437
A64: Sioux Lookout Hydro Inc. | B64: ACEVX242
A65: Synergy North Corporation-Kenora Rate Zone | B65: DSPWZ318
A66: Synergy North Corporation-Thunder Bay Rate Zone | B66: DSPWZ318
A67: Tillsonburg Hydro Inc. | B67: OLIUU862
A68: Toronto Hydro-Electric System Limited | B68: NIOJF461
A69: Wasaga Distribution Inc. | B69: ZYZFO848
A70: Waterloo North Hydro Inc. | B70: ASEGZ471
A71: Welland Hydro-Electric System Corp. | B71: IOKHC383
A72: Wellington North Power Inc. | B72: SKVKJ649
A73: Westario Power Inc. | B73: TPFNQ593

Sheet Sheet1 (hidden)
A5: 2. Table of Contents | B5: X
A6: 3. RRR Data | B6: X
A7: 4. UTRs and Sub-Transmission | B7: X
A8: 5. Historical Wholesale | B8: X
A9: 6. Current Wholesale | B9: X
A10: 7. Forecast Wholesale | B10: X
A11: 8. RTSR Rates to Forecast | B11: X

Sheet 2. Table of Contents
D20: 1. Info | I20: 5. Historical Wholesale
D22: 2. Table of Contents | I22: 6. Current Wholesale
D24: 3. RRR Data | I24: 7. Forecast Wholesale
D26: 4. UTRs and Sub-Transmission | I26: 8. RTSR Rates to Forecast

Sheet 3. RRR Data
AZ1: 1
B15: Rate Class | C15: Rate Description | D15: Unit | E15: Rate | F15: Non-Loss Adjusted Metered kWh | G15: Non-Loss Adjusted Metered kW | H15: Applicable Loss Factor eg: (1.0325) | I15: Loss Adjusted Billed kWh
B17: RESIDENTIAL SERVICE CLASSIFICATION | C17: Retail Transmission Rate - Network Service Rate | D17: $/kWh | E17: 0.0065 | F17: 75511832.9 | G17: 0 | H17: 1.0458 | I17: =F17*H17 -> 78970274.85
B18: RESIDENTIAL SERVICE CLASSIFICATION | C18: Retail Transmission Rate - Line and Transformation Connection Service Rate | D18: $/kWh | E18: 0.0055 | F18: 75511832.9 | G18: 0 | H18: 1.0458 | I18: 78970274.85
B19: GENERAL SERVICE LESS THAN 50 KW SERVICE CLASSIFICATION | C19: Retail Transmission Rate - Network Service Rate | D19: $/kWh | E19: 0.006 | F19: 34695537.86 | G19: 0 | H19: 1.0458 | I19: 36284593.49
B20: GENERAL SERVICE LESS THAN 50 KW SERVICE CLASSIFICATION | C20: Retail Transmission Rate - Line and Transformation Connection Service Rate | D20: $/kWh | E20: 0.0049 | F20: 34695537.86 | G20: 0 | H20: 1.0458 | I20: 36284593.49
B21: GENERAL SERVICE 50 TO 2,999 KW SERVICE CLASSIFICATION | C21: Retail Transmission Rate - Network Service Rate | D21: $/kW | E21: 2.4063 | F21: 117763686.1 | G21: 319666.54 | H21: 1.0458 | I21: 123157262.9
B22: GENERAL SERVICE 50 TO 2,999 KW SERVICE CLASSIFICATION | C22: Retail Transmission Rate - Line and Transformation Connection Service Rate | D22: $/kW | E22: 1.9749 | F22: 117763686.1 | G22: 319666.54 | H22: 1.0458 | I22: 123157262.9
B23: GENERAL SERVICE 3,000 TO 4,999 KW SERVICE CLASSIFICATION | C23: Retail Transmission Rate - Network Service Rate | D23: $/kW | E23: 2.6914 | F23: 19725659.73 | G23: 42405.1 | H23: 1.0458 | I23: 20629094.95
B24: GENERAL SERVICE 3,000 TO 4,999 KW SERVICE CLASSIFICATION | C24: Retail Transmission Rate - Line and Transformation Connection Service Rate | D24: $/kW | E24: 2.3294 | F24: 19725659.73 | G24: 42405.1 | H24: 1.0458 | I24: 20629094.95
B25: UNMETERED SCATTERED LOAD SERVICE CLASSIFICATION | C25: Retail Transmission Rate - Network Service Rate | D25: $/kWh | E25: 0.0068 | F25: 616421.42 | G25: 0 | H25: 1.0458 | I25: 644653.521
B26: UNMETERED SCATTERED LOAD SERVICE CLASSIFICATION | C26: Retail Transmission Rate - Line and Transformation Connection Service Rate | D26: $/kWh | E26: 0.0061 | F26: 616421.42 | G26: 0 | H26: 1.0458 | I26: 644653.521
B27: SENTINEL LIGHTING SERVICE CLASSIFICATION | C27: Retail Transmission Rate - Network Service Rate | D27: $/kW | E27: 1.8237 | F27: 44807.4 | G27: 124.45 | H27: 1.0458 | I27: 46859.57892
B28: SENTINEL LIGHTING SERVICE CLASSIFICATION | C28: Retail Transmission Rate - Line and Transformation Connection Service Rate | D28: $/kW | E28: 1.5587 | F28: 44807.4 | G28: 124.45 | H28: 1.0458 | I28: 46859.57892
B29: STREET LIGHTING SERVICE CLASSIFICATION | C29: Retail Transmission Rate - Network Service Rate | D29: $/kW | E29: 1.8149 | F29: 1077264.33 | G29: 2922.66 | H29: 1.0458 | I29: 1126603.036
B30: STREET LIGHTING SERVICE CLASSIFICATION | C30: Retail Transmission Rate - Line and Transformation Connection Service Rate | D30: $/kW | E30: 1.5268 | F30: 1077264.33 | G30: 2922.66 | H30: 1.0458 | I30: 1126603.036

Sheet 4. UTRs and Sub-Transmission
B18: Uniform Transmission Rates | C18: Unit | E18: 2019 (Jan. 1-June 30) | F18: 2019 (July 1 - Dec. 31) | H18: 2020 | L18: 2021
B21: Rate Description | E21: Rate | H21: Rate | L21: Rate
B23: Network Service Rate | C23: kW | E23: 3.71 | F23: 3.83 | H23: 3.92 | L23: 3.398
B25: Line Connection Service Rate | C25: kW | E25: 0.94 | F25: 0.96 | H25: 0.97 | L25: 0.8045
B27: Transformation Connection Service Rate | C27: kW | E27: 2.25 | F27: 2.3 | H27: 2.33 | L27: 2.0194
B30: Hydro One Sub-Transmission Rates | C30: Unit | E30: 2019 (Jan. 1-June 30) | F30: 2019 (July 1 - Dec. 31) | H30: 2020 | L30: 2021
B35: Rate Description | E35: Rate | H35: Rate | L35: Rate
B37: Network Service Rate | C37: kW | E37: 3.1942 | F37: 3.2915 | H37: 3.398 | L37: 3.398
B39: Line Connection Service Rate | C39: kW | E39: 0.771 | F39: 0.7877 | H39: 0.8045 | L39: 0.8045
B41: Transformation Connection Service Rate | C41: kW | E41: 1.7493 | F41: 1.9755 | H41: 2.0194 | L41: 2.0194
B43: Both Line and Transformation Connection Service Rate | C43: kW | E43: =E41+E39 -> 2.5203 | F43: =F41+F39 -> 2.7632 | H43: =SUM(H41,H39) -> 2.8239 | L43: =SUM(L41,L39) -> 2.8239
B46: If needed, add extra host here. (I) | C46: Unit | E46: 2019 (Jan. 1-June 30) | F46: 2019 (July 1 - Dec. 31) | H46: 2020 | L46: 2021
B50: Rate Description | E50: Rate | H50: Rate | L50: Rate
B52: Network Service Rate | C52: kW
B54: Line Connection Service Rate | C54: kW
B56: Transformation Connection Service Rate | C56: kW
B58: Both Line and Transformation Connection Service Rate | C58: kW | E58: =SUM(E54,E56) -> 0 | H58: =SUM(H54,H56) -> 0 | L58: =L56+L54 -> 0
B61: If needed, add extra host here. (II) | C61: Unit | E61: 2019 (Jan. 1-June 30) | F61: 2019 (July 1 - Dec. 31) | H61: 2020 | L61: 2021
B65: Rate Description | E65: Rate | H65: Rate | L65: Rate
B67: Network Service Rate | C67: kW
B69: Line Connection Service Rate | C69: kW
B71: Transformation Connection Service Rate | C71: kW
B73: Both Line and Transformation Connection Service Rate | C73: kW | E73: =SUM(E69,E71) -> 0 | H73: =SUM(H69,H71) -> 0 | L73: =L71+L69 -> 0
E75: Historical 2019 | H75: Current 2020 | L75: Forecast 2021
B76: Low Voltage Switchgear Credit (if applicable, enter as a negative value) | C76: $

Sheet 5. Historical Wholesale
B21: IESO | D21: Network | H21: Line Connection | L21: Transformation Connection | P21: Total Connection
B22: Month | D22: Units Billed | E22: Rate | F22: Amount | H22: Units Billed | I22: Rate | J22: Amount | L22: Units Billed | M22: Rate | N22: Amount | P22: Amount
B24: January | E24: =IF(D24<>0,F24/D24,0) -> 0 | I24: =IF(H24<>0,J24/H24,0) -> 0 | M24: =IF(L24<>0,N24/L24,0) -> 0 | P24: =J24+N24 -> 0
B25: February | E25: 0 | I25: 0 | M25: 0 | P25: 0
B26: March | E26: 0 | I26: 0 | M26: 0 | P26: 0
B27: April | E27: 0 | I27: 0 | M27: 0 | P27: 0
B28: May | E28: 0 | I28: 0 | M28: 0 | P28: 0
B29: June | E29: 0 | I29: 0 | M29: 0 | P29: 0
B30: July | E30: 0 | I30: 0 | M30: 0 | P30: 0
B31: August | E31: 0 | I31: 0 | M31: 0 | P31: 0
B32: September | E32: 0 | I32: 0 | M32: 0 | P32: 0
B33: October | E33: 0 | I33: 0 | M33: 0 | P33: 0
B34: November | E34: 0 | I34: 0 | M34: 0 | P34: 0
B35: December | E35: 0 | I35: 0 | M35: 0 | P35: 0
B37: Total | D37: =SUM(D24:D35) -> 0 | E37: =IF(D37<>0,F37/D37,0) -> 0 | F37: =SUM(F24:F35) -> 0 | H37: =SUM(H24:H35) -> 0 | I37: =IF(H37<>0,J37/H37,0) -> 0 | J37: =SUM(J24:J35) -> 0 | L37: =SUM(L24:L35) -> 0 | M37: =IF(L37<>0,N37/L37,0) -> 0 | N37: =SUM(N24:N35) -> 0 | P37: =SUM(P24:P35) -> 0
B39: Hydro One | D39: Network | H39: Line Connection | L39: Transformation Connection | P39: Total Connection
B41: Month | D41: Units Billed | E41: Rate | F41: Amount | H41: Units Billed | I41: Rate | J41: Amount | L41: Units Billed | M41: Rate | N41: Amount | P41: Amount
B43: January | D43: 43928.06 | E43: =ROUND(IF(D43<>0,F43/D43,0),4) -> 3.1942 | F43: 140315.0093 | H43: 43928.06 | I43: =ROUND(IF(H43<>0,J43/H43,0),4) -> 0.771 | J43: 33868.53426 | L43: 43928.06 | M43: =ROUND(IF(L43<>0,N43/L43,0),4) -> 1.7493 | N43: 76843.35536 | P43: =J43+N43 -> 110711.8896
B44: February | D44: 40526.78 | E44: =ROUND(IF(D44<>0,F44/D44,0),4) -> 3.1942 | F44: 129450.6407 | H44: 40526.78 | I44: =ROUND(IF(H44<>0,J44/H44,0),4) -> 0.771 | J44: 31246.14738 | L44: 40526.78 | M44: =ROUND(IF(L44<>0,N44/L44,0),4) -> 1.7493 | N44: 70893.49625 | P44: 102139.6436
B45: March | D45: 39501.01 | E45: 3.1942 | F45: 126174.1261 | H45: 39501.01 | I45: 0.771 | J45: 30455.27871 | L45: 39501.01 | M45: 1.7493 | N45: 69099.11679 | P45: 99554.3955
B46: April | D46: 34751.9 | E46: 3.1942 | F46: 111004.519 | H46: 34751.9 | I46: 0.771 | J46: 26793.7149 | L46: 34751.9 | M46: 1.7493 | N46: 60791.49867 | P46: 87585.21357
B47: May | D47: 33840.97 | E47: 3.1942 | F47: 108094.8264 | H47: 33840.97 | I47: 0.771 | J47: 26091.38787 | L47: 33840.97 | M47: 1.7493 | N47: 59198.00882 | P47: 85289.39669
B48: June | D48: 35005.07 | E48: 3.1942 | F48: 111813.1946 | H48: 35005.07 | I48: 0.771 | J48: 26988.90897 | L48: 35005.07 | M48: 1.7493 | N48: 61234.36895 | P48: 88223.27792
B49: July | D49: 41300.2 | E49: 3.2915 | F49: 135939.6083 | H49: 41300.2 | I49: 0.7877 | J49: 32532.16754 | L49: 41300.2 | M49: 1.9755 | N49: 81588.5451 | P49: 114120.7126
B50: August | D50: 40396.87 | E50: 3.2915 | F50: 132966.2976 | H50: 40396.87 | I50: 0.7877 | J50: 31820.6145 | L50: 40396.87 | M50: 1.9755 | N50: 79804.01669 | P50: 111624.6312
B51: September | D51: 36117.08 | E51: 3.2915 | F51: 118879.3688 | H51: 36331.11 | I51: 0.7877 | J51: 28618.01535 | L51: 36331.11 | M51: 1.9755 | N51: 71772.10781 | P51: 100390.1232
B52: October | D52: 35070.6 | E52: 3.2915 | F52: 115434.8799 | H52: 35070.6 | I52: 0.7877 | J52: 27625.11162 | L52: 35070.6 | M52: 1.9755 | N52: 69281.9703 | P52: 96907.08192
B53: November | D53: 38523.94 | E53: 3.2915 | F53: 126801.5485 | H53: 38523.94 | I53: 0.7877 | J53: 30345.30754 | L53: 38523.94 | M53: 1.9755 | N53: 76104.04347 | P53: 106449.351
B54: December | D54: 39728.55 | E54: 3.2915 | F54: 130766.5223 | H54: 39728.55 | I54: 0.7877 | J54: 31294.17883 | L54: 39728.55 | M54: 1.9755 | N54: 78483.75053 | P54: 109777.9294
B56: Total | D56: =SUM(D43:D54) -> 458691.03 | E56: =IF(D56<>0,F56/D56,0) -> 3.24323007 | F56: =SUM(F43:F54) -> 1487640.541 | H56: =SUM(H43:H54) -> 458905.06 | I56: =IF(H56<>0,J56/H56,0) -> 0.779419097 | J56: =SUM(J43:J54) -> 357679.3675 | L56: =SUM(L43:L54) -> 458905.06 | M56: =IF(L56<>0,N56/L56,0) -> 1.863335913 | N56: =SUM(N43:N54) -> 855094.2787 | P56: =SUM(P43:P54) -> 1212773.646
B58: Add Extra Host Here (I) | D58: Network | H58: Line Connection | L58: Transformation Connection | P58: Total Connection
B59: (if needed)
B60: Month | D60: Units Billed | E60: Rate | F60: Amount | H60: Units Billed | I60: Rate | J60: Amount | L60: Units Billed | M60: Rate | N60: Amount | P60: Amount
B62: January | E62: =IF(D62<>0,F62/D62,0) -> 0 | I62: =IF(H62<>0,J62/H62,0) -> 0 | M62: =IF(L62<>0,N62/L62,0) -> 0 | P62: =J62+N62 -> 0
B63: February | E63: 0 | I63: 0 | M63: 0 | P63: 0
B64: March | E64: 0 | I64: 0 | M64: 0 | P64: 0
B65: April | E65: 0 | I65: 0 | M65: 0 | P65: 0
B66: May | E66: 0 | I66: 0 | M66: 0 | P66: 0
B67: June | E67: 0 | I67: 0 | M67: 0 | P67: 0
B68: July | E68: 0 | I68: 0 | M68: 0 | P68: 0
B69: August | E69: 0 | I69: 0 | M69: 0 | P69: 0
B70: September | E70: 0 | I70: 0 | M70: 0 | P70: 0
B71: October | E71: 0 | I71: 0 | M71: 0 | P71: 0
B72: November | E72: 0 | I72: 0 | M72: 0 | P72: 0
B73: December | E73: 0 | I73: 0 | M73: 0 | P73: 0
B75: Total | D75: =SUM(D62:D73) -> 0 | E75: =IF(D75<>0,F75/D75,0) -> 0 | F75: =SUM(F62:F73) -> 0 | H75: =SUM(H62:H73) -> 0 | I75: =IF(H75<>0,J75/H75,0) -> 0 | J75: =SUM(J62:J73) -> 0 | L75: =SUM(L62:L73) -> 0 | M75: =IF(L75<>0,N75/L75,0) -> 0 | N75: =SUM(N62:N73) -> 0 | P75: =SUM(P62:P73) -> 0
B77: Add Extra Host Here (II) | D77: Network | H77: Line Connection | L77: Transformation Connection | P77: Total Connection
B78: (if needed)
B79: Month | D79: Units Billed | E79: Rate | F79: Amount | H79: Units Billed | I79: Rate | J79: Amount | L79: Units Billed | M79: Rate | N79: Amount | P79: Amount
B81: January | E81: =IF(D81<>0,F81/D81,0) -> 0 | I81: =IF(H81<>0,J81/H81,0) -> 0 | M81: =IF(L81<>0,N81/L81,0) -> 0 | P81: =J81+N81 -> 0
B82: February | E82: 0 | I82: 0 | M82: 0 | P82: 0
B83: March | E83: 0 | I83: 0 | M83: 0 | P83: 0
B84: April | E84: 0 | I84: 0 | M84: 0 | P84: 0
B85: May | E85: 0 | I85: 0 | M85: 0 | P85: 0
B86: June | E86: 0 | I86: 0 | M86: 0 | P86: 0
B87: July | E87: 0 | I87: 0 | M87: 0 | P87: 0
B88: August | E88: 0 | I88: 0 | M88: 0 | P88: 0
B89: September | E89: 0 | I89: 0 | M89: 0 | P89: 0
B90: October | E90: 0 | I90: 0 | M90: 0 | P90: 0
B91: November | E91: 0 | I91: 0 | M91: 0 | P91: 0
B92: December | E92: 0 | I92: 0 | M92: 0 | P92: 0
B94: Total | D94: =SUM(D81:D92) -> 0 | E94: =IF(D94<>0,F94/D94,0) -> 0 | F94: =SUM(F81:F92) -> 0 | H94: =SUM(H81:H92) -> 0 | I94: =IF(H94<>0,J94/H94,0) -> 0 | J94: =SUM(J81:J92) -> 0 | L94: =SUM(L81:L92) -> 0 | M94: =IF(L94<>0,N94/L94,0) -> 0 | N94: =SUM(N81:N92) -> 0 | P94: =SUM(P81:P92) -> 0
B96: Total | D96: Network | H96: Line Connection | L96: Transformation Connection | P96: Total Connection
B98: Month | D98: Units Billed | E98: Rate | F98: Amount | H98: Units Billed | I98: Rate | J98: Amount | L98: Units Billed | M98: Rate | N98: Amount | P98: Amount
B100: January | D100: =D24+D43+D62+D81 -> 43928.06 | E100: =IF(D100<>0,F100/D100,0) -> 3.1942 | F100: =F24+F43+F62+F81 -> 140315.0093 | H100: =H24+H43+H62+H81 -> 43928.06 | I100: =IF(H100<>0,J100/H100,0) -> 0.771 | J100: =J24+J43+J62+J81 -> 33868.53426 | L100: =L24+L43+L62+L81 -> 43928.06 | M100: =IF(L100<>0,N100/L100,0) -> 1.7493 | N100: =N24+N43+N62+N81 -> 76843.35536 | P100: =J100+N100 -> 110711.8896
B101: February | D101: =D25+D44+D63+D82 -> 40526.78 | E101: 3.1942 | F101: =F25+F44+F63+F82 -> 129450.6407 | H101: =H25+H44+H63+H82 -> 40526.78 | I101: 0.771 | J101: =J25+J44+J63+J82 -> 31246.14738 | L101: =L25+L44+L63+L82 -> 40526.78 | M101: 1.7493 | N101: =N25+N44+N63+N82 -> 70893.49625 | P101: 102139.6436
B102: March | D102: 39501.01 | E102: 3.1942 | F102: 126174.1261 | H102: 39501.01 | I102: 0.771 | J102: 30455.27871 | L102: 39501.01 | M102: 1.7493 | N102: 69099.11679 | P102: 99554.3955
B103: April | D103: 34751.9 | E103: 3.1942 | F103: 111004.519 | H103: 34751.9 | I103: 0.771 | J103: 26793.7149 | L103: 34751.9 | M103: 1.7493 | N103: 60791.49867 | P103: 87585.21357
B104: May | D104: 33840.97 | E104: 3.1942 | F104: 108094.8264 | H104: 33840.97 | I104: 0.771 | J104: 26091.38787 | L104: 33840.97 | M104: 1.7493 | N104: 59198.00882 | P104: 85289.39669
B105: June | D105: 35005.07 | E105: 3.1942 | F105: 111813.1946 | H105: 35005.07 | I105: 0.771 | J105: 26988.90897 | L105: 35005.07 | M105: 1.7493 | N105: 61234.36895 | P105: 88223.27792
B106: July | D106: 41300.2 | E106: 3.2915 | F106: 135939.6083 | H106: 41300.2 | I106: 0.7877 | J106: 32532.16754 | L106: 41300.2 | M106: 1.9755 | N106: 81588.5451 | P106: 114120.7126
B107: August | D107: 40396.87 | E107: 3.2915 | F107: 132966.2976 | H107: 40396.87 | I107: 0.7877 | J107: 31820.6145 | L107: 40396.87 | M107: 1.9755 | N107: 79804.01669 | P107: 111624.6312
B108: September | D108: 36117.08 | E108: 3.2915 | F108: 118879.3688 | H108: 36331.11 | I108: 0.7877 | J108: 28618.01535 | L108: 36331.11 | M108: 1.9755 | N108: 71772.10781 | P108: 100390.1232
B109: October | D109: 35070.6 | E109: 3.2915 | F109: 115434.8799 | H109: 35070.6 | I109: 0.7877 | J109: 27625.11162 | L109: 35070.6 | M109: 1.9755 | N109: 69281.9703 | P109: 96907.08192
B110: November | D110: 38523.94 | E110: 3.2915 | F110: 126801.5485 | H110: 38523.94 | I110: 0.7877 | J110: 30345.30754 | L110: 38523.94 | M110: 1.9755 | N110: 76104.04347 | P110: 106449.351
B111: December | D111: 39728.55 | E111: 3.2915 | F111: 130766.5223 | H111: 39728.55 | I111: 0.7877 | J111: 31294.17883 | L111: 39728.55 | M111: 1.9755 | N111: 78483.75053 | P111: 109777.9294
B113: Total | D113: =SUM(D100:D111) -> 458691.03 | E113: =IF(D113<>0,F113/D113,0) -> 3.24323007 | F113: =SUM(F100:F111) -> 1487640.541 | H113: =SUM(H100:H111) -> 458905.06 | I113: =IF(H113<>0,J113/H113,0) -> 0.779419097 | J113: =SUM(J100:J111) -> 357679.3675 | L113: =SUM(L100:L111) -> 458905.06 | M113: =IF(L113<>0,N113/L113,0) -> 1.863335913 | N113: =SUM(N100:N111) -> 855094.2787 | P113: =SUM(P100:P111) -> 1212773.646
N115: Low Voltage Switchgear Credit (if applicable) | P115: ='4. UTRs and Sub-Transmission'!E76 -> 0
N117: Total including deduction for Low Voltage Switchgear Credit | P117: =P113+P115 -> 1212773.646

Sheet 6. Current Wholesale
B13: The purpose of this sheet is to calculate the expected billing when current 2020 Uniform Transmission Rates and Hydro One Sub-transmission Rates are applied against historical 2019 transmission units.
B20: IESO | D20: Network | H20: Line Connection | L20: Transformation Connection | P20: Total Connection
B22: Month | D22: Units Billed | E22: Rate | F22: Amount | H22: Units Billed | I22: Rate | J22: Amount | L22: Units Billed | M22: Rate | N22: Amount | P22: Amount
B24: January | D24: ='5. Historical Wholesale'!D24 -> 0 | E24: ='4. UTRs and Sub-Transmission'!H23 -> 3.92 | F24: =D24*E24 -> 0 | H24: ='5. Historical Wholesale'!H24 -> 0 | I24: ='4. UTRs and Sub-Transmission'!H25 -> 0.97 | J24: =H24*I24 -> 0 | L24: ='5. Historical Wholesale'!L24 -> 0 | M24: ='4. UTRs and Sub-Transmission'!H27 -> 2.33 | N24: =L24*M24 -> 0 | P24: =J24+N24 -> 0
B25: February | D25: ='5. Historical Wholesale'!D25 -> 0 | E25: =E24 -> 3.92 | F25: =D25*E25 -> 0 | H25: ='5. Historical Wholesale'!H25 -> 0 | I25: =I24 -> 0.97 | J25: =H25*I25 -> 0 | L25: ='5. Historical Wholesale'!L25 -> 0 | M25: =M24 -> 2.33 | N25: =L25*M25 -> 0 | P25: 0
B26: March | D26: ='5. Historical Wholesale'!D26 -> 0 | E26: =E25 -> 3.92 | F26: 0 | H26: ='5. Historical Wholesale'!H26 -> 0 | I26: =I25 -> 0.97 | J26: 0 | L26: ='5. Historical Wholesale'!L26 -> 0 | M26: =M25 -> 2.33 | N26: 0 | P26: 0
B27: April | D27: ='5. Historical Wholesale'!D27 -> 0 | E27: 3.92 | F27: 0 | H27: ='5. Historical Wholesale'!H27 -> 0 | I27: 0.97 | J27: 0 | L27: ='5. Historical Wholesale'!L27 -> 0 | M27: 2.33 | N27: 0 | P27: 0
B28: May | D28: ='5. Historical Wholesale'!D28 -> 0 | E28: 3.92 | F28: 0 | H28: ='5. Historical Wholesale'!H28 -> 0 | I28: 0.97 | J28: 0 | L28: ='5. Historical Wholesale'!L28 -> 0 | M28: 2.33 | N28: 0 | P28: 0
B29: June | D29: ='5. Historical Wholesale'!D29 -> 0 | E29: 3.92 | F29: 0 | H29: ='5. Historical Wholesale'!H29 -> 0 | I29: 0.97 | J29: 0 | L29: ='5. Historical Wholesale'!L29 -> 0 | M29: 2.33 | N29: 0 | P29: 0
B30: July | D30: ='5. Historical Wholesale'!D30 -> 0 | E30: 3.92 | F30: 0 | H30: ='5. Historical Wholesale'!H30 -> 0 | I30: 0.97 | J30: 0 | L30: ='5. Historical Wholesale'!L30 -> 0 | M30: 2.33 | N30: 0 | P30: 0
B31: August | D31: ='5. Historical Wholesale'!D31 -> 0 | E31: 3.92 | F31: 0 | H31: ='5. Historical Wholesale'!H31 -> 0 | I31: 0.97 | J31: 0 | L31: ='5. Historical Wholesale'!L31 -> 0 | M31: 2.33 | N31: 0 | P31: 0
B32: September | D32: ='5. Historical Wholesale'!D32 -> 0 | E32: 3.92 | F32: 0 | H32: ='5. Historical Wholesale'!H32 -> 0 | I32: 0.97 | J32: 0 | L32: ='5. Historical Wholesale'!L32 -> 0 | M32: 2.33 | N32: 0 | P32: 0
B33: October | D33: ='5. Historical Wholesale'!D33 -> 0 | E33: 3.92 | F33: 0 | H33: ='5. Historical Wholesale'!H33 -> 0 | I33: 0.97 | J33: 0 | L33: ='5. Historical Wholesale'!L33 -> 0 | M33: 2.33 | N33: 0 | P33: 0
B34: November | D34: ='5. Historical Wholesale'!D34 -> 0 | E34: 3.92 | F34: 0 | H34: ='5. Historical Wholesale'!H34 -> 0 | I34: 0.97 | J34: 0 | L34: ='5. Historical Wholesale'!L34 -> 0 | M34: 2.33 | N34: 0 | P34: 0
B35: December | D35: ='5. Historical Wholesale'!D35 -> 0 | E35: 3.92 | F35: 0 | H35: ='5. Historical Wholesale'!H35 -> 0 | I35: 0.97 | J35: 0 | L35: ='5. Historical Wholesale'!L35 -> 0 | M35: 2.33 | N35: 0 | P35: 0
B37: Total | D37: =SUM(D24:D35) -> 0 | E37: =IF(D37<>0,F37/D37,0) -> 0 | F37: =SUM(F24:F35) -> 0 | H37: =SUM(H24:H35) -> 0 | I37: =IF(H37<>0,J37/H37,0) -> 0 | J37: =SUM(J24:J35) -> 0 | L37: =SUM(L24:L35) -> 0 | M37: =IF(L37<>0,N37/L37,0) -> 0 | N37: =SUM(N24:N35) -> 0 | P37: =SUM(P24:P35) -> 0
B39: Hydro One | D39: Network | H39: Line Connection | L39: Transformation Connection | P39: Total Connection
B41: Month | D41: Units Billed | E41: Rate | F41: Amount | H41: Units Billed | I41: Rate | J41: Amount | L41: Units Billed | M41: Rate | N41: Amount | P41: Amount
B43: January | D43: ='5. Historical Wholesale'!D43 -> 43928.06 | E43: ='4. UTRs and Sub-Transmission'!H37 -> 3.398 | F43: =D43*E43 -> 149267.5479 | H43: ='5. Historical Wholesale'!H43 -> 43928.06 | I43: ='4. UTRs and Sub-Transmission'!H39 -> 0.8045 | J43: =H43*I43 -> 35340.12427 | L43: ='5. Historical Wholesale'!L43 -> 43928.06 | M43: ='4. UTRs and Sub-Transmission'!H41 -> 2.0194 | N43: =L43*M43 -> 88708.32436 | P43: =J43+N43 -> 124048.4486
B44: February | D44: ='5. Historical Wholesale'!D44 -> 40526.78 | E44: =E43 -> 3.398 | F44: =D44*E44 -> 137709.9984 | H44: ='5. Historical Wholesale'!H44 -> 40526.78 | I44: =I43 -> 0.8045 | J44: =H44*I44 -> 32603.79451 | L44: ='5. Historical Wholesale'!L44 -> 40526.78 | M44: =M43 -> 2.0194 | N44: =L44*M44 -> 81839.77953 | P44: 114443.574
B45: March | D45: ='5. Historical Wholesale'!D45 -> 39501.01 | E45: 3.398 | F45: 134224.432 | H45: ='5. Historical Wholesale'!H45 -> 39501.01 | I45: 0.8045 | J45: 31778.56255 | L45: ='5. Historical Wholesale'!L45 -> 39501.01 | M45: =M44 -> 2.0194 | N45: 79768.33959 | P45: 111546.9021
B46: April | D46: ='5. Historical Wholesale'!D46 -> 34751.9 | E46: 3.398 | F46: 118086.9562 | H46: ='5. Historical Wholesale'!H46 -> 34751.9 | I46: 0.8045 | J46: 27957.90355 | L46: ='5. Historical Wholesale'!L46 -> 34751.9 | M46: =M45 -> 2.0194 | N46: 70177.98686 | P46: 98135.89041
B47: May | D47: ='5. Historical Wholesale'!D47 -> 33840.97 | E47: 3.398 | F47: 114991.6161 | H47: ='5. Historical Wholesale'!H47 -> 33840.97 | I47: 0.8045 | J47: 27225.06037 | L47: ='5. Historical Wholesale'!L47 -> 33840.97 | M47: 2.0194 | N47: 68338.45482 | P47: 95563.51518
B48: June | D48: ='5. Historical Wholesale'!D48 -> 35005.07 | E48: 3.398 | F48: 118947.2279 | H48: ='5. Historical Wholesale'!H48 -> 35005.07 | I48: 0.8045 | J48: 28161.57882 | L48: ='5. Historical Wholesale'!L48 -> 35005.07 | M48: 2.0194 | N48: 70689.23836 | P48: 98850.81717
B49: July | D49: ='5. Historical Wholesale'!D49 -> 41300.2 | E49: 3.398 | F49: 140338.0796 | H49: ='5. Historical Wholesale'!H49 -> 41300.2 | I49: 0.8045 | J49: 33226.0109 | L49: ='5. Historical Wholesale'!L49 -> 41300.2 | M49: 2.0194 | N49: 83401.62388 | P49: 116627.6348
B50: August | D50: ='5. Historical Wholesale'!D50 -> 40396.87 | E50: 3.398 | F50: 137268.5643 | H50: ='5. Historical Wholesale'!H50 -> 40396.87 | I50: 0.8045 | J50: 32499.28192 | L50: ='5. Historical Wholesale'!L50 -> 40396.87 | M50: 2.0194 | N50: 81577.43928 | P50: 114076.7212
B51: September | D51: ='5. Historical Wholesale'!D51 -> 36117.08 | E51: 3.398 | F51: 122725.8378 | H51: ='5. Historical Wholesale'!H51 -> 36331.11 | I51: 0.8045 | J51: 29228.37799 | L51: ='5. Historical Wholesale'!L51 -> 36331.11 | M51: 2.0194 | N51: 73367.04353 | P51: 102595.4215
B52: October | D52: ='5. Historical Wholesale'!D52 -> 35070.6 | E52: 3.398 | F52: 119169.8988 | H52: ='5. Historical Wholesale'!H52 -> 35070.6 | I52: 0.8045 | J52: 28214.2977 | L52: ='5. Historical Wholesale'!L52 -> 35070.6 | M52: 2.0194 | N52: 70821.56964 | P52: 99035.86734
B53: November | D53: ='5. Historical Wholesale'!D53 -> 38523.94 | E53: 3.398 | F53: 130904.3481 | H53: ='5. Historical Wholesale'!H53 -> 38523.94 | I53: 0.8045 | J53: 30992.50973 | L53: ='5. Historical Wholesale'!L53 -> 38523.94 | M53: 2.0194 | N53: 77795.24444 | P53: 108787.7542
B54: December | D54: ='5. Historical Wholesale'!D54 -> 39728.55 | E54: 3.398 | F54: 134997.6129 | H54: ='5. Historical Wholesale'!H54 -> 39728.55 | I54: 0.8045 | J54: 31961.61848 | L54: ='5. Historical Wholesale'!L54 -> 39728.55 | M54: 2.0194 | N54: 80227.83387 | P54: 112189.4523
B56: Total | D56: =SUM(D43:D54) -> 458691.03 | E56: =IF(D56<>0,F56/D56,0) -> 3.398 | F56: =SUM(F43:F54) -> 1558632.12 | H56: =SUM(H43:H54) -> 458905.06 | I56: =IF(H56<>0,J56/H56,0) -> 0.8045 | J56: =SUM(J43:J54) -> 369189.1208 | L56: =SUM(L43:L54) -> 458905.06 | M56: =IF(L56<>0,N56/L56,0) -> 2.0194 | N56: =SUM(N43:N54) -> 926712.8782 | P56: =SUM(P43:P54) -> 1295901.999
B58: ='5. Historical Wholesale'!B58 -> Add Extra Host Here (I) | D58: Network | H58: Line Connection | L58: Transformation Connection | P58: Total Connection
B60: Month | D60: Units Billed | E60: Rate | F60: Amount | H60: Units Billed | I60: Rate | J60: Amount | L60: Units Billed | M60: Rate | N60: Amount | P60: Amount
B62: January | D62: ='5. Historical Wholesale'!D62 -> 0 | E62: ='4. UTRs and Sub-Transmission'!H52 -> 0 | F62: =D62*E62 -> 0 | H62: ='5. Historical Wholesale'!H62 -> 0 | I62: ='4. UTRs and Sub-Transmission'!H54 -> 0 | J62: =H62*I62 -> 0 | L62: ='5. Historical Wholesale'!L62 -> 0 | M62: ='4. UTRs and Sub-Transmission'!H56 -> 0 | N62: =L62*M62 -> 0 | P62: =J62+N62 -> 0
B63: February | D63: ='5. Historical Wholesale'!D63 -> 0 | E63: =E62 -> 0 | F63: =D63*E63 -> 0 | H63: ='5. Historical Wholesale'!H63 -> 0 | I63: =I62 -> 0 | J63: =H63*I63 -> 0 | L63: ='5. Historical Wholesale'!L63 -> 0 | M63: =M62 -> 0 | N63: =L63*M63 -> 0 | P63: 0
B64: March | D64: ='5. Historical Wholesale'!D64 -> 0 | E64: =E63 -> 0 | F64: 0 | H64: ='5. Historical Wholesale'!H64 -> 0 | I64: =I63 -> 0 | J64: 0 | L64: ='5. Historical Wholesale'!L64 -> 0 | M64: =M63 -> 0 | N64: 0 | P64: 0
B65: April | D65: ='5. Historical Wholesale'!D65 -> 0 | E65: 0 | F65: 0 | H65: ='5. Historical Wholesale'!H65 -> 0 | I65: 0 | J65: 0 | L65: ='5. Historical Wholesale'!L65 -> 0 | M65: =M64 -> 0 | N65: 0 | P65: 0
B66: May | D66: ='5. Historical Wholesale'!D66 -> 0 | E66: 0 | F66: 0 | H66: ='5. Historical Wholesale'!H66 -> 0 | I66: 0 | J66: 0 | L66: ='5. Historical Wholesale'!L66 -> 0 | M66: 0 | N66: 0 | P66: 0
B67: June | D67: ='5. Historical Wholesale'!D67 -> 0 | E67: 0 | F67: 0 | H67: ='5. Historical Wholesale'!H67 -> 0 | I67: 0 | J67: 0 | L67: ='5. Historical Wholesale'!L67 -> 0 | M67: 0 | N67: 0 | P67: 0
B68: July | D68: ='5. Historical Wholesale'!D68 -> 0 | E68: 0 | F68: 0 | H68: ='5. Historical Wholesale'!H68 -> 0 | I68: 0 | J68: 0 | L68: ='5. Historical Wholesale'!L68 -> 0 | M68: 0 | N68: 0 | P68: 0
B69: August | D69: ='5. Historical Wholesale'!D69 -> 0 | E69: 0 | F69: 0 | H69: ='5. Historical Wholesale'!H69 -> 0 | I69: 0 | J69: 0 | L69: ='5. Historical Wholesale'!L69 -> 0 | M69: 0 | N69: 0 | P69: 0
B70: September | D70: ='5. Historical Wholesale'!D70 -> 0 | E70: 0 | F70: 0 | H70: ='5. Historical Wholesale'!H70 -> 0 | I70: 0 | J70: 0 | L70: ='5. Historical Wholesale'!L70 -> 0 | M70: 0 | N70: 0 | P70: 0
B71: October | D71: ='5. Historical Wholesale'!D71 -> 0 | E71: 0 | F71: 0 | H71: ='5. Historical Wholesale'!H71 -> 0 | I71: 0 | J71: 0 | L71: ='5. Historical Wholesale'!L71 -> 0 | M71: 0 | N71: 0 | P71: 0
B72: November | D72: ='5. Historical Wholesale'!D72 -> 0 | E72: 0 | F72: 0 | H72: ='5. Historical Wholesale'!H72 -> 0 | I72: 0 | J72: 0 | L72: ='5. Historical Wholesale'!L72 -> 0 | M72: 0 | N72: 0 | P72: 0
B73: December | D73: ='5. Historical Wholesale'!D73 -> 0 | E73: 0 | F73: 0 | H73: ='5. Historical Wholesale'!H73 -> 0 | I73: 0 | J73: 0 | L73: ='5. Historical Wholesale'!L73 -> 0 | M73: 0 | N73: 0 | P73: 0
B75: Total | D75: =SUM(D62:D73) -> 0 | E75: =IF(D75<>0,F75/D75,0) -> 0 | F75: =SUM(F62:F73) -> 0 | H75: =SUM(H62:H73) -> 0 | I75: =IF(H75<>0,J75/H75,0) -> 0 | J75: =SUM(J62:J73) -> 0 | L75: =SUM(L62:L73) -> 0 | M75: =IF(L75<>0,N75/L75,0) -> 0 | N75: =SUM(N62:N73) -> 0 | P75: =SUM(P62:P73) -> 0
B77: ='5. Historical Wholesale'!B77 -> Add Extra Host Here (II) | D77: Network | H77: Line Connection | L77: Transformation Connection | P77: Total Connection
B79: Month | D79: Units Billed | E79: Rate | F79: Amount | H79: Units Billed | I79: Rate | J79: Amount | L79: Units Billed | M79: Rate | N79: Amount | P79: Amount
B81: January | D81: ='5. Historical Wholesale'!D81 -> 0 | E81: ='4. UTRs and Sub-Transmission'!H67 -> 0 | F81: =D81*E81 -> 0 | H81: ='5. Historical Wholesale'!H81 -> 0 | I81: ='4. UTRs and Sub-Transmission'!H69 -> 0 | J81: =H81*I81 -> 0 | L81: ='5. Historical Wholesale'!L81 -> 0 | M81: ='4. UTRs and Sub-Transmission'!H71 -> 0 | N81: =L81*M81 -> 0 | P81: =J81+N81 -> 0
B82: February | D82: ='5. Historical Wholesale'!D82 -> 0 | E82: =E81 -> 0 | F82: =D82*E82 -> 0 | H82: ='5. Historical Wholesale'!H82 -> 0 | I82: =I81 -> 0 | J82: =H82*I82 -> 0 | L82: ='5. Historical Wholesale'!L82 -> 0 | M82: =M81 -> 0 | N82: =L82*M82 -> 0 | P82: 0
B83: March | D83: ='5. Historical Wholesale'!D83 -> 0 | E83: =E82 -> 0 | F83: 0 | H83: ='5. Historical Wholesale'!H83 -> 0 | I83: =I82 -> 0 | J83: 0 | L83: ='5. Historical Wholesale'!L83 -> 0 | M83: =M82 -> 0 | N83: 0 | P83: 0
B84: April | D84: ='5. Historical Wholesale'!D84 -> 0 | E84: 0 | F84: 0 | H84: ='5. Historical Wholesale'!H84 -> 0 | I84: 0 | J84: 0 | L84: ='5. Historical Wholesale'!L84 -> 0 | M84: =M83 -> 0 | N84: 0 | P84: 0
B85: May | D85: ='5. Historical Wholesale'!D85 -> 0 | E85: 0 | F85: 0 | H85: ='5. Historical Wholesale'!H85 -> 0 | I85: 0 | J85: 0 | L85: ='5. Historical Wholesale'!L85 -> 0 | M85: 0 | N85: 0 | P85: 0
B86: June | D86: ='5. Historical Wholesale'!D86 -> 0 | E86: 0 | F86: 0 | H86: ='5. Historical Wholesale'!H86 -> 0 | I86: 0 | J86: 0 | L86: ='5. Historical Wholesale'!L86 -> 0 | M86: 0 | N86: 0 | P86: 0
B87: July | D87: ='5. Historical Wholesale'!D87 -> 0 | E87: 0 | F87: 0 | H87: ='5. Historical Wholesale'!H87 -> 0 | I87: 0 | J87: 0 | L87: ='5. Historical Wholesale'!L87 -> 0 | M87: 0 | N87: 0 | P87: 0
B88: August | D88: ='5. Historical Wholesale'!D88 -> 0 | E88: 0 | F88: 0 | H88: ='5. Historical Wholesale'!H88 -> 0 | I88: 0 | J88: 0 | L88: ='5. Historical Wholesale'!L88 -> 0 | M88: 0 | N88: 0 | P88: 0
B89: September | D89: ='5. Historical Wholesale'!D89 -> 0 | E89: 0 | F89: 0 | H89: ='5. Historical Wholesale'!H89 -> 0 | I89: 0 | J89: 0 | L89: ='5. Historical Wholesale'!L89 -> 0 | M89: 0 | N89: 0 | P89: 0
B90: October | D90: ='5. Historical Wholesale'!D90 -> 0 | E90: 0 | F90: 0 | H90: ='5. Historical Wholesale'!H90 -> 0 | I90: 0 | J90: 0 | L90: ='5. Historical Wholesale'!L90 -> 0 | M90: 0 | N90: 0 | P90: 0
B91: November | D91: ='5. Historical Wholesale'!D91 -> 0 | E91: 0 | F91: 0 | H91: ='5. Historical Wholesale'!H91 -> 0 | I91: 0 | J91: 0 | L91: ='5. Historical Wholesale'!L91 -> 0 | M91: 0 | N91: 0 | P91: 0
B92: December | D92: ='5. Historical Wholesale'!D92 -> 0 | E92: 0 | F92: 0 | H92: ='5. Historical Wholesale'!H92 -> 0 | I92: 0 | J92: 0 | L92: ='5. Historical Wholesale'!L92 -> 0 | M92: 0 | N92: 0 | P92: 0
B94: Total | D94: =SUM(D81:D92) -> 0 | E94: =IF(D94<>0,F94/D94,0) -> 0 | F94: =SUM(F81:F92) -> 0 | H94: =SUM(H81:H92) -> 0 | I94: =IF(H94<>0,J94/H94,0) -> 0 | J94: =SUM(J81:J92) -> 0 | L94: =SUM(L81:L92) -> 0 | M94: =IF(L94<>0,N94/L94,0) -> 0 | N94: =SUM(N81:N92) -> 0 | P94: =SUM(P81:P92) -> 0
B96: Total | D96: Network | H96: Line Connection | L96: Transformation Connection | P96: Total Connection
B98: Month | D98: Units Billed | E98: Rate | F98: Amount | H98: Units Billed | I98: Rate | J98: Amount | L98: Units Billed | M98: Rate | N98: Amount | P98: Amount
B100: January | D100: =D24+D43+D62+D81 -> 43928.06 | E100: =IF(D100<>0,F100/D100,0) -> 3.398 | F100: =F24+F43+F62+F81 -> 149267.5479 | H100: =H24+H43+H62+H81 -> 43928.06 | I100: =IF(H100<>0,J100/H100,0) -> 0.8045 | J100: =J24+J43+J62+J81 -> 35340.12427 | L100: =L24+L43+L62+L81 -> 43928.06 | M100: =IF(L100<>0,N100/L100,0) -> 2.0194 | N100: =N24+N43+N62+N81 -> 88708.32436 | P100: =J100+N100 -> 124048.4486
B101: February | D101: =D25+D44+D63+D82 -> 40526.78 | E101: 3.398 | F101: =F25+F44+F63+F82 -> 137709.9984 | H101: =H25+H44+H63+H82 -> 40526.78 | I101: 0.8045 | J101: =J25+J44+J63+J82 -> 32603.79451 | L101: =L25+L44+L63+L82 -> 40526.78 | M101: 2.0194 | N101: =N25+N44+N63+N82 -> 81839.77953 | P101: 114443.574
B102: March | D102: 39501.01 | E102: 3.398 | F102: 134224.432 | H102: 39501.01 | I102: 0.8045 | J102: 31778.56255 | L102: 39501.01 | M102: 2.0194 | N102: 79768.33959 | P102: 111546.9021
B103: April | D103: 34751.9 | E103: 3.398 | F103: 118086.9562 | H103: 34751.9 | I103: 0.8045 | J103: 27957.90355 | L103: 34751.9 | M103: 2.0194 | N103: 70177.98686 | P103: 98135.89041
B104: May | D104: 33840.97 | E104: 3.398 | F104: 114991.6161 | H104: 33840.97 | I104: 0.8045 | J104: 27225.06037 | L104: 33840.97 | M104: 2.0194 | N104: 68338.45482 | P104: 95563.51518
B105: June | D105: 35005.07 | E105: 3.398 | F105: 118947.2279 | H105: 35005.07 | I105: 0.8045 | J105: 28161.57882 | L105: 35005.07 | M105: 2.0194 | N105: 70689.23836 | P105: 98850.81717
B106: July | D106: 41300.2 | E106: 3.398 | F106: 140338.0796 | H106: 41300.2 | I106: 0.8045 | J106: 33226.0109 | L106: 41300.2 | M106: 2.0194 | N106: 83401.62388 | P106: 116627.6348
B107: August | D107: 40396.87 | E107: 3.398 | F107: 137268.5643 | H107: 40396.87 | I107: 0.8045 | J107: 32499.28192 | L107: 40396.87 | M107: 2.0194 | N107: 81577.43928 | P107: 114076.7212
B108: September | D108: 36117.08 | E108: 3.398 | F108: 122725.8378 | H108: 36331.11 | I108: 0.8045 | J108: 29228.37799 | L108: 36331.11 | M108: 2.0194 | N108: 73367.04353 | P108: 102595.4215
B109: October | D109: 35070.6 | E109: 3.398 | F109: 119169.8988 | H109: 35070.6 | I109: 0.8045 | J109: 28214.2977 | L109: 35070.6 | M109: 2.0194 | N109: 70821.56964 | P109: 99035.86734
B110: November | D110: 38523.94 | E110: 3.398 | F110: 130904.3481 | H110: 38523.94 | I110: 0.8045 | J110: 30992.50973 | L110: 38523.94 | M110: 2.0194 | N110: 77795.24444 | P110: 108787.7542
B111: December | D111: 39728.55 | E111: 3.398 | F111: 134997.6129 | H111: 39728.55 | I111: 0.8045 | J111: 31961.61848 | L111: 39728.55 | M111: 2.0194 | N111: 80227.83387 | P111: 112189.4523
B113: Total | D113: =SUM(D100:D111) -> 458691.03 | E113: =IF(D113<>0,F113/D113,0) -> 3.398 | F113: =SUM(F100:F111) -> 1558632.12 | H113: =SUM(H100:H111) -> 458905.06 | I113: =IF(H113<>0,J113/H113,0) -> 0.8045 | J113: =SUM(J100:J111) -> 369189.1208 | L113: =SUM(L100:L111) -> 458905.06 | M113: =IF(L113<>0,N113/L113,0) -> 2.0194 | N113: =SUM(N100:N111) -> 926712.8782 | P113: =SUM(P100:P111) -> 1295901.999
N115: Low Voltage Switchgear Credit (if applicable) | P115: ='4. UTRs and Sub-Transmission'!H76 -> 0
N117: Total including deduction for Low Voltage Switchgear Credit | P117: =P113+P115 -> 1295901.999

Sheet 7. Forecast Wholesale
B13: The purpose of this sheet is to calculate the expected billing when forecasted 2021 Uniform Transmission Rates and Hydro One Sub-transmission Rates are applied against historical 2019 transmission units.
B20: IESO | D20: Network | H20: Line Connection | L20: Transformation Connection | P20: Total Connection
B22: Month | D22: Units Billed | E22: Rate | F22: Amount | H22: Units Billed | I22: Rate | J22: Amount | L22: Units Billed | M22: Rate | N22: Amount | P22: Amount
B24: January | D24: ='5. Historical Wholesale'!D24 -> 0 | E24: ='4. UTRs and Sub-Transmission'!L23 -> 3.398 | F24: =D24*E24 -> 0 | H24: ='5. Historical Wholesale'!H24 -> 0 | I24: ='4. UTRs and Sub-Transmission'!L25 -> 0.8045 | J24: =H24*I24 -> 0 | L24: ='5. Historical Wholesale'!L24 -> 0 | M24: ='4. UTRs and Sub-Transmission'!L27 -> 2.0194 | N24: =L24*M24 -> 0 | P24: =J24+N24 -> 0
B25: February | D25: ='5. Historical Wholesale'!D25 -> 0 | E25: =E24 -> 3.398 | F25: 0 | H25: ='5. Historical Wholesale'!H25 -> 0 | I25: =I24 -> 0.8045 | J25: 0 | L25: ='5. Historical Wholesale'!L25 -> 0 | M25: =M24 -> 2.0194 | N25: 0 | P25: 0
B26: March | D26: ='5. Historical Wholesale'!D26 -> 0 | E26: 3.398 | F26: 0 | H26: ='5. Historical Wholesale'!H26 -> 0 | I26: 0.8045 | J26: 0 | L26: ='5. Historical Wholesale'!L26 -> 0 | M26: 2.0194 | N26: 0 | P26: 0
B27: April | D27: ='5. Historical Wholesale'!D27 -> 0 | E27: 3.398 | F27: 0 | H27: ='5. Historical Wholesale'!H27 -> 0 | I27: 0.8045 | J27: 0 | L27: ='5. Historical Wholesale'!L27 -> 0 | M27: 2.0194 | N27: 0 | P27: 0
B28: May | D28: ='5. Historical Wholesale'!D28 -> 0 | E28: 3.398 | F28: 0 | H28: ='5. Historical Wholesale'!H28 -> 0 | I28: 0.8045 | J28: 0 | L28: ='5. Historical Wholesale'!L28 -> 0 | M28: 2.0194 | N28: 0 | P28: 0
B29: June | D29: ='5. Historical Wholesale'!D29 -> 0 | E29: 3.398 | F29: 0 | H29: ='5. Historical Wholesale'!H29 -> 0 | I29: 0.8045 | J29: 0 | L29: ='5. Historical Wholesale'!L29 -> 0 | M29: 2.0194 | N29: 0 | P29: 0
B30: July | D30: ='5. Historical Wholesale'!D30 -> 0 | E30: 3.398 | F30: 0 | H30: ='5. Historical Wholesale'!H30 -> 0 | I30: 0.8045 | J30: 0 | L30: ='5. Historical Wholesale'!L30 -> 0 | M30: 2.0194 | N30: 0 | P30: 0
B31: August | D31: ='5. Historical Wholesale'!D31 -> 0 | E31: 3.398 | F31: 0 | H31: ='5. Historical Wholesale'!H31 -> 0 | I31: 0.8045 | J31: 0 | L31: ='5. Historical Wholesale'!L31 -> 0 | M31: 2.0194 | N31: 0 | P31: 0
B32: September | D32: ='5. Historical Wholesale'!D32 -> 0 | E32: 3.398 | F32: 0 | H32: ='5. Historical Wholesale'!H32 -> 0 | I32: 0.8045 | J32: 0 | L32: ='5. Historical Wholesale'!L32 -> 0 | M32: 2.0194 | N32: 0 | P32: 0
B33: October | D33: ='5. Historical Wholesale'!D33 -> 0 | E33: 3.398 | F33: 0 | H33: ='5. Historical Wholesale'!H33 -> 0 | I33: 0.8045 | J33: 0 | L33: ='5. Historical Wholesale'!L33 -> 0 | M33: 2.0194 | N33: 0 | P33: 0
B34: November | D34: ='5. Historical Wholesale'!D34 -> 0 | E34: 3.398 | F34: 0 | H34: ='5. Historical Wholesale'!H34 -> 0 | I34: 0.8045 | J34: 0 | L34: ='5. Historical Wholesale'!L34 -> 0 | M34: 2.0194 | N34: 0 | P34: 0
B35: December | D35: ='5. Historical Wholesale'!D35 -> 0 | E35: 3.398 | F35: 0 | H35: ='5. Historical Wholesale'!H35 -> 0 | I35: 0.8045 | J35: 0 | L35: ='5. Historical Wholesale'!L35 -> 0 | M35: 2.0194 | N35: 0 | P35: 0
B37: Total | D37: =SUM(D24:D35) -> 0 | E37: =IF(D37<>0,F37/D37,0) -> 0 | F37: =SUM(F24:F35) -> 0 | H37: =SUM(H24:H35) -> 0 | I37: =IF(H37<>0,J37/H37,0) -> 0 | J37: =SUM(J24:J35) -> 0 | L37: =SUM(L24:L35) -> 0 | M37: =IF(L37<>0,N37/L37,0) -> 0 | N37: =SUM(N24:N35) -> 0 | P37: =SUM(P24:P35) -> 0
B39: Hydro One | D39: Network | H39: Line Connection | L39: Transformation Connection | P39: Total Connection
B41: Month | D41: Units Billed | E41: Rate | F41: Amount | H41: Units Billed | I41: Rate | J41: Amount | L41: Units Billed | M41: Rate | N41: Amount | P41: Amount
B43: January | D43: ='5. Historical Wholesale'!D43 -> 43928.06 | E43: ='4. UTRs and Sub-Transmission'!L37 -> 3.398 | F43: =D43*E43 -> 149267.5479 | H43: ='5. Historical Wholesale'!H43 -> 43928.06 | I43: ='4. UTRs and Sub-Transmission'!L39 -> 0.8045 | J43: =H43*I43 -> 35340.12427 | L43: ='5. Historical Wholesale'!L43 -> 43928.06 | M43: ='4. UTRs and Sub-Transmission'!L41 -> 2.0194 | N43: =L43*M43 -> 88708.32436 | P43: =J43+N43 -> 124048.4486
B44: February | D44: ='5. Historical Wholesale'!D44 -> 40526.78 | E44: =E43 -> 3.398 | F44: 137709.9984 | H44: ='5. Historical Wholesale'!H44 -> 40526.78 | I44: =I43 -> 0.8045 | J44: 32603.79451 | L44: ='5. Historical Wholesale'!L44 -> 40526.78 | M44: =M43 -> 2.0194 | N44: 81839.77953 | P44: 114443.574
B45: March | D45: ='5. Historical Wholesale'!D45 -> 39501.01 | E45: 3.398 | F45: 134224.432 | H45: ='5. Historical Wholesale'!H45 -> 39501.01 | I45: 0.8045 | J45: 31778.56255 | L45: ='5. Historical Wholesale'!L45 -> 39501.01 | M45: 2.0194 | N45: 79768.33959 | P45: 111546.9021
B46: April | D46: ='5. Historical Wholesale'!D46 -> 34751.9 | E46: 3.398 | F46: 118086.9562 | H46: ='5. Historical Wholesale'!H46 -> 34751.9 | I46: 0.8045 | J46: 27957.90355 | L46: ='5. Historical Wholesale'!L46 -> 34751.9 | M46: 2.0194 | N46: 70177.98686 | P46: 98135.89041
B47: May | D47: ='5. Historical Wholesale'!D47 -> 33840.97 | E47: 3.398 | F47: 114991.6161 | H47: ='5. Historical Wholesale'!H47 -> 33840.97 | I47: 0.8045 | J47: 27225.06037 | L47: ='5. Historical Wholesale'!L47 -> 33840.97 | M47: 2.0194 | N47: 68338.45482 | P47: 95563.51518
B48: June | D48: ='5. Historical Wholesale'!D48 -> 35005.07 | E48: 3.398 | F48: 118947.2279 | H48: ='5. Historical Wholesale'!H48 -> 35005.07 | I48: 0.8045 | J48: 28161.57882 | L48: ='5. Historical Wholesale'!L48 -> 35005.07 | M48: 2.0194 | N48: 70689.23836 | P48: 98850.81717
B49: July | D49: ='5. Historical Wholesale'!D49 -> 41300.2 | E49: 3.398 | F49: 140338.0796 | H49: ='5. Historical Wholesale'!H49 -> 41300.2 | I49: 0.8045 | J49: 33226.0109 | L49: ='5. Historical Wholesale'!L49 -> 41300.2 | M49: 2.0194 | N49: 83401.62388 | P49: 116627.6348
B50: August | D50: ='5. Historical Wholesale'!D50 -> 40396.87 | E50: 3.398 | F50: 137268.5643 | H50: ='5. Historical Wholesale'!H50 -> 40396.87 | I50: 0.8045 | J50: 32499.28192 | L50: ='5. Historical Wholesale'!L50 -> 40396.87 | M50: 2.0194 | N50: 81577.43928 | P50: 114076.7212
B51: September | D51: ='5. Historical Wholesale'!D51 -> 36117.08 | E51: 3.398 | F51: 122725.8378 | H51: ='5. Historical Wholesale'!H51 -> 36331.11 | I51: 0.8045 | J51: 29228.37799 | L51: ='5. Historical Wholesale'!L51 -> 36331.11 | M51: 2.0194 | N51: 73367.04353 | P51: 102595.4215
B52: October | D52: ='5. Historical Wholesale'!D52 -> 35070.6 | E52: 3.398 | F52: 119169.8988 | H52: ='5. Historical Wholesale'!H52 -> 35070.6 | I52: 0.8045 | J52: 28214.2977 | L52: ='5. Historical Wholesale'!L52 -> 35070.6 | M52: 2.0194 | N52: 70821.56964 | P52: 99035.86734
B53: November | D53: ='5. Historical Wholesale'!D53 -> 38523.94 | E53: 3.398 | F53: 130904.3481 | H53: ='5. Historical Wholesale'!H53 -> 38523.94 | I53: 0.8045 | J53: 30992.50973 | L53: ='5. Historical Wholesale'!L53 -> 38523.94 | M53: 2.0194 | N53: 77795.24444 | P53: 108787.7542
B54: December | D54: ='5. Historical Wholesale'!D54 -> 39728.55 | E54: 3.398 | F54: 134997.6129 | H54: ='5. Historical Wholesale'!H54 -> 39728.55 | I54: 0.8045 | J54: 31961.61848 | L54: ='5. Historical Wholesale'!L54 -> 39728.55 | M54: 2.0194 | N54: 80227.83387 | P54: 112189.4523
B56: Total | D56: =SUM(D43:D54) -> 458691.03 | E56: =IF(D56<>0,F56/D56,0) -> 3.398 | F56: =SUM(F43:F54) -> 1558632.12 | H56: =SUM(H43:H54) -> 458905.06 | I56: =IF(H56<>0,J56/H56,0) -> 0.8045 | J56: =SUM(J43:J54) -> 369189.1208 | L56: =SUM(L43:L54) -> 458905.06 | M56: =IF(L56<>0,N56/L56,0) -> 2.0194 | N56: =SUM(N43:N54) -> 926712.8782 | P56: =SUM(P43:P54) -> 1295901.999
B58: ='5. Historical Wholesale'!B58 -> Add Extra Host Here (I) | D58: Network | H58: Line Connection | L58: Transformation Connection | P58: Total Connection
B60: Month | D60: Units Billed | E60: Rate | F60: Amount | H60: Units Billed | I60: Rate | J60: Amount | L60: Units Billed | M60: Rate | N60: Amount | P60: Amount
B62: January | D62: ='5. Historical Wholesale'!D62 -> 0 | E62: ='4. UTRs and Sub-Transmission'!L52 -> 0 | F62: =D62*E62 -> 0 | H62: ='5. Historical Wholesale'!H62 -> 0 | I62: ='4. UTRs and Sub-Transmission'!L54 -> 0 | J62: =H62*I62 -> 0 | L62: ='5. Historical Wholesale'!L62 -> 0 | M62: ='4. UTRs and Sub-Transmission'!L56 -> 0 | N62: =L62*M62 -> 0 | P62: =J62+N62 -> 0
B63: February | D63: ='5. Historical Wholesale'!D63 -> 0 | E63: =E62 -> 0 | F63: 0 | H63: ='5. Historical Wholesale'!H63 -> 0 | I63: =I62 -> 0 | J63: 0 | L63: ='5. Historical Wholesale'!L63 -> 0 | M63: =M62 -> 0 | N63: 0 | P63: 0
B64: March | D64: ='5. Historical Wholesale'!D64 -> 0 | E64: 0 | F64: 0 | H64: ='5. Historical Wholesale'!H64 -> 0 | I64: 0 | J64: 0 | L64: ='5. Historical Wholesale'!L64 -> 0 | M64: 0 | N64: 0 | P64: 0
B65: April | D65: ='5. Historical Wholesale'!D65 -> 0 | E65: 0 | F65: 0 | H65: ='5. Historical Wholesale'!H65 -> 0 | I65: 0 | J65: 0 | L65: ='5. Historical Wholesale'!L65 -> 0 | M65: 0 | N65: 0 | P65: 0
B66: May | D66: ='5. Historical Wholesale'!D66 -> 0 | E66: 0 | F66: 0 | H66: ='5. Historical Wholesale'!H66 -> 0 | I66: 0 | J66: 0 | L66: ='5. Historical Wholesale'!L66 -> 0 | M66: 0 | N66: 0 | P66: 0
B67: June | D67: ='5. Historical Wholesale'!D67 -> 0 | E67: 0 | F67: 0 | H67: ='5. Historical Wholesale'!H67 -> 0 | I67: 0 | J67: 0 | L67: ='5. Historical Wholesale'!L67 -> 0 | M67: 0 | N67: 0 | P67: 0
B68: July | D68: ='5. Historical Wholesale'!D68 -> 0 | E68: 0 | F68: 0 | H68: ='5. Historical Wholesale'!H68 -> 0 | I68: 0 | J68: 0 | L68: ='5. Historical Wholesale'!L68 -> 0 | M68: 0 | N68: 0 | P68: 0
B69: August | D69: ='5. Historical Wholesale'!D69 -> 0 | E69: 0 | F69: 0 | H69: ='5. Historical Wholesale'!H69 -> 0 | I69: 0 | J69: 0 | L69: ='5. Historical Wholesale'!L69 -> 0 | M69: 0 | N69: 0 | P69: 0
B70: September | D70: ='5. Historical Wholesale'!D70 -> 0 | E70: 0 | F70: 0 | H70: ='5. Historical Wholesale'!H70 -> 0 | I70: 0 | J70: 0 | L70: ='5. Historical Wholesale'!L70 -> 0 | M70: 0 | N70: 0 | P70: 0
B71: October | D71: ='5. Historical Wholesale'!D71 -> 0 | E71: 0 | F71: 0 | H71: ='5. Historical Wholesale'!H71 -> 0 | I71: 0 | J71: 0 | L71: ='5. Historical Wholesale'!L71 -> 0 | M71: 0 | N71: 0 | P71: 0
B72: November | D72: ='5. Historical Wholesale'!D72 -> 0 | E72: 0 | F72: 0 | H72: ='5. Historical Wholesale'!H72 -> 0 | I72: 0 | J72: 0 | L72: ='5. Historical Wholesale'!L72 -> 0 | M72: 0 | N72: 0 | P72: 0
B73: December | D73: ='5. Historical Wholesale'!D73 -> 0 | E73: 0 | F73: 0 | H73: ='5. Historical Wholesale'!H73 -> 0 | I73: 0 | J73: 0 | L73: ='5. Historical Wholesale'!L73 -> 0 | M73: 0 | N73: 0 | P73: 0
B75: Total | D75: =SUM(D62:D73) -> 0 | E75: =IF(D75<>0,F75/D75,0) -> 0 | F75: =SUM(F62:F73) -> 0 | H75: =SUM(H62:H73) -> 0 | I75: =IF(H75<>0,J75/H75,0) -> 0 | J75: =SUM(J62:J73) -> 0 | L75: =SUM(L62:L73) -> 0 | M75: =IF(L75<>0,N75/L75,0) -> 0 | N75: =SUM(N62:N73) -> 0 | P75: =SUM(P62:P73) -> 0
B77: ='5. Historical Wholesale'!B77 -> Add Extra Host Here (II) | D77: Network | H77: Line Connection | L77: Transformation Connection | P77: Total Connection
B79: Month | D79: Units Billed | E79: Rate | F79: Amount | H79: Units Billed | I79: Rate | J79: Amount | L79: Units Billed | M79: Rate | N79: Amount | P79: Amount
B81: January | D81: ='5. Historical Wholesale'!D81 -> 0 | E81: ='4. UTRs and Sub-Transmission'!L67 -> 0 | F81: =D81*E81 -> 0 | H81: ='5. Historical Wholesale'!H81 -> 0 | I81: ='4. UTRs and Sub-Transmission'!L69 -> 0 | J81: =H81*I81 -> 0 | L81: ='5. Historical Wholesale'!L81 -> 0 | M81: ='4. UTRs and Sub-Transmission'!L71 -> 0 | N81: =L81*M81 -> 0 | P81: =J81+N81 -> 0
B82: February | D82: ='5. Historical Wholesale'!D82 -> 0 | E82: =E81 -> 0 | F82: 0 | H82: ='5. Historical Wholesale'!H82 -> 0 | I82: =I81 -> 0 | J82: 0 | L82: ='5. Historical Wholesale'!L82 -> 0 | M82: =M81 -> 0 | N82: 0 | P82: 0
B83: March | D83: ='5. Historical Wholesale'!D83 -> 0 | E83: 0 | F83: 0 | H83: ='5. Historical Wholesale'!H83 -> 0 | I83: 0 | J83: 0 | L83: ='5. Historical Wholesale'!L83 -> 0 | M83: 0 | N83: 0 | P83: 0
B84: April | D84: ='5. Historical Wholesale'!D84 -> 0 | E84: 0 | F84: 0 | H84: ='5. Historical Wholesale'!H84 -> 0 | I84: 0 | J84: 0 | L84: ='5. Historical Wholesale'!L84 -> 0 | M84: 0 | N84: 0 | P84: 0
B85: May | D85: ='5. Historical Wholesale'!D85 -> 0 | E85: 0 | F85: 0 | H85: ='5. Historical Wholesale'!H85 -> 0 | I85: 0 | J85: 0 | L85: ='5. Historical Wholesale'!L85 -> 0 | M85: 0 | N85: 0 | P85: 0
B86: June | D86: ='5. Historical Wholesale'!D86 -> 0 | E86: 0 | F86: 0 | H86: ='5. Historical Wholesale'!H86 -> 0 | I86: 0 | J86: 0 | L86: ='5. Historical Wholesale'!L86 -> 0 | M86: 0 | N86: 0 | P86: 0
B87: July | D87: ='5. Historical Wholesale'!D87 -> 0 | E87: 0 | F87: 0 | H87: ='5. Historical Wholesale'!H87 -> 0 | I87: 0 | J87: 0 | L87: ='5. Historical Wholesale'!L87 -> 0 | M87: 0 | N87: 0 | P87: 0
B88: August | D88: ='5. Historical Wholesale'!D88 -> 0 | E88: 0 | F88: 0 | H88: ='5. Historical Wholesale'!H88 -> 0 | I88: 0 | J88: 0 | L88: ='5. Historical Wholesale'!L88 -> 0 | M88: 0 | N88: 0 | P88: 0
B89: September | D89: ='5. Historical Wholesale'!D89 -> 0 | E89: 0 | F89: 0 | H89: ='5. Historical Wholesale'!H89 -> 0 | I89: 0 | J89: 0 | L89: ='5. Historical Wholesale'!L89 -> 0 | M89: 0 | N89: 0 | P89: 0
B90: October | D90: ='5. Historical Wholesale'!D90 -> 0 | E90: 0 | F90: 0 | H90: ='5. Historical Wholesale'!H90 -> 0 | I90: 0 | J90: 0 | L90: ='5. Historical Wholesale'!L90 -> 0 | M90: 0 | N90: 0 | P90: 0
B91: November | D91: ='5. Historical Wholesale'!D91 -> 0 | E91: 0 | F91: 0 | H91: ='5. Historical Wholesale'!H91 -> 0 | I91: 0 | J91: 0 | L91: ='5. Historical Wholesale'!L91 -> 0 | M91: 0 | N91: 0 | P91: 0
B92: December | D92: ='5. Historical Wholesale'!D92 -> 0 | E92: 0 | F92: 0 | H92: ='5. Historical Wholesale'!H92 -> 0 | I92: 0 | J92: 0 | L92: ='5. Historical Wholesale'!L92 -> 0 | M92: 0 | N92: 0 | P92: 0
B94: Total | D94: =SUM(D81:D92) -> 0 | E94: =IF(D94<>0,F94/D94,0) -> 0 | F94: =SUM(F81:F92) -> 0 | H94: =SUM(H81:H92) -> 0 | I94: =IF(H94<>0,J94/H94,0) -> 0 | J94: =SUM(J81:J92) -> 0 | L94: =SUM(L81:L92) -> 0 | M94: =IF(L94<>0,N94/L94,0) -> 0 | N94: =SUM(N81:N92) -> 0 | P94: =SUM(P81:P92) -> 0
B96: Total | D96: Network | H96: Line Connection | L96: Transformation Connection | P96: Total Connection
B98: Month | D98: Units Billed | E98: Rate | F98: Amount | H98: Units Billed | I98: Rate | J98: Amount | L98: Units Billed | M98: Rate | N98: Amount | P98: Amount
B100: January | D100: =D24+D43+D62+D81 -> 43928.06 | E100: =IF(D100<>0,F100/D100,0) -> 3.398 | F100: =F24+F43+F62+F81 -> 149267.5479 | H100: =H24+H43+H62+H81 -> 43928.06 | I100: =IF(H100<>0,J100/H100,0) -> 0.8045 | J100: =J24+J43+J62+J81 -> 35340.12427 | L100: =L24+L43+L62+L81 -> 43928.06 | M100: =IF(L100<>0,N100/L100,0) -> 2.0194 | N100: =N24+N43+N62+N81 -> 88708.32436 | P100: =J100+N100 -> 124048.4486
B101: February | D101: =D25+D44+D63+D82 -> 40526.78 | E101: 3.398 | F101: 137709.9984 | H101: =H25+H44+H63+H82 -> 40526.78 | I101: 0.8045 | J101: =J25+J44+J63+J82 -> 32603.79451 | L101: =L25+L44+L63+L82 -> 40526.78 | M101: 2.0194 | N101: =N25+N44+N63+N82 -> 81839.77953 | P101: 114443.574
B102: March | D102: 39501.01 | E102: 3.398 | F102: 134224.432 | H102: =H26+H45+H64+H83 -> 39501.01 | I102: 0.8045 | J102: =J26+J45+J64+J83 -> 31778.56255 | L102: =L26+L45+L64+L83 -> 39501.01 | M102: 2.0194 | N102: =N26+N45+N64+N83 -> 79768.33959 | P102: 111546.9021
B103: April | D103: 34751.9 | E103: 3.398 | F103: 118086.9562 | H103: =H27+H46+H65+H84 -> 34751.9 | I103: 0.8045 | J103: =J27+J46+J65+J84 -> 27957.90355 | L103: =L27+L46+L65+L84 -> 34751.9 | M103: 2.0194 | N103: =N27+N46+N65+N84 -> 70177.98686 | P103: 98135.89041
B104: May | D104: 33840.97 | E104: 3.398 | F104: 114991.6161 | H104: =H28+H47+H66+H85 -> 33840.97 | I104: 0.8045 | J104: =J28+J47+J66+J85 -> 27225.06037 | L104: =L28+L47+L66+L85 -> 33840.97 | M104: 2.0194 | N104: =N28+N47+N66+N85 -> 68338.45482 | P104: 95563.51518
B105: June | D105: 35005.07 | E105: 3.398 | F105: 118947.2279 | H105: =H29+H48+H67+H86 -> 35005.07 | I105: 0.8045 | J105: =J29+J48+J67+J86 -> 28161.57882 | L105: =L29+L48+L67+L86 -> 35005.07 | M105: 2.0194 | N105: =N29+N48+N67+N86 -> 70689.23836 | P105: 98850.81717
B106: July | D106: 41300.2 | E106: 3.398 | F106: 140338.0796 | H106: =H30+H49+H68+H87 -> 41300.2 | I106: 0.8045 | J106: =J30+J49+J68+J87 -> 33226.0109 | L106: =L30+L49+L68+L87 -> 41300.2 | M106: 2.0194 | N106: =N30+N49+N68+N87 -> 83401.62388 | P106: 116627.6348
B107: August | D107: 40396.87 | E107: 3.398 | F107: 137268.5643 | H107: =H31+H50+H69+H88 -> 40396.87 | I107: 0.8045 | J107: =J31+J50+J69+J88 -> 32499.28192 | L107: =L31+L50+L69+L88 -> 40396.87 | M107: 2.0194 | N107: =N31+N50+N69+N88 -> 81577.43928 | P107: 114076.7212
B108: September | D108: 36117.08 | E108: 3.398 | F108: 122725.8378 | H108: =H32+H51+H70+H89 -> 36331.11 | I108: 0.8045 | J108: =J32+J51+J70+J89 -> 29228.37799 | L108: =L32+L51+L70+L89 -> 36331.11 | M108: 2.0194 | N108: =N32+N51+N70+N89 -> 73367.04353 | P108: 102595.4215
B109: October | D109: 35070.6 | E109: 3.398 | F109: 119169.8988 | H109: =H33+H52+H71+H90 -> 35070.6 | I109: 0.8045 | J109: =J33+J52+J71+J90 -> 28214.2977 | L109: =L33+L52+L71+L90 -> 35070.6 | M109: 2.0194 | N109: =N33+N52+N71+N90 -> 70821.56964 | P109: 99035.86734
B110: November | D110: 38523.94 | E110: 3.398 | F110: 130904.3481 | H110: =H34+H53+H72+H91 -> 38523.94 | I110: 0.8045 | J110: =J34+J53+J72+J91 -> 30992.50973 | L110: =L34+L53+L72+L91 -> 38523.94 | M110: 2.0194 | N110: =N34+N53+N72+N91 -> 77795.24444 | P110: 108787.7542
B111: December | D111: 39728.55 | E111: 3.398 | F111: 134997.6129 | H111: =H35+H54+H73+H92 -> 39728.55 | I111: 0.8045 | J111: =J35+J54+J73+J92 -> 31961.61848 | L111: =L35+L54+L73+L92 -> 39728.55 | M111: 2.0194 | N111: =N35+N54+N73+N92 -> 80227.83387 | P111: 112189.4523
B113: Total | D113: =SUM(D100:D111) -> 458691.03 | E113: =IF(D113<>0,F113/D113,0) -> 3.398 | F113: =SUM(F100:F111) -> 1558632.12 | H113: =SUM(H100:H111) -> 458905.06 | I113: =IF(H113<>0,J113/H113,0) -> 0.8045 | J113: =SUM(J100:J111) -> 369189.1208 | L113: =SUM(L100:L111) -> 458905.06 | M113: =IF(L113<>0,N113/L113,0) -> 2.0194 | N113: =SUM(N100:N111) -> 926712.8782 | P113: =SUM(P100:P111) -> 1295901.999
N115: Low Voltage Switchgear Credit (if applicable) | P115: ='4. UTRs and Sub-Transmission'!L76 -> 0
N117: Total including deduction for Low Voltage Switchgear Credit | P117: =P113+P115 -> 1295901.999

Sheet 8. RTSR Rates to Forecast
A13: The purpose of this sheet is to re-align the current RTS Network Rates to recover current wholesale network costs.
A15: Rate Class | B15: Rate Description | C15: Unit | D15: Current RTSR-Network | E15: Loss Adjusted Billed kWh | F15: Billed kW | G15: Billed Amount | H15: Billed Amount % | I15: Current Wholesale Billing | J15: Adjusted RTSR Network
A17: RESIDENTIAL SERVICE CLASSIFICATION | B17: Retail Transmission Rate - Network Service Rate | C17: $/kWh | D17: 0.0065 | E17: 78970274.85 | F17: 0 | G17: =ROUND(D17*E17, 2) -> 513306.79 | H17: =G17/1624271.98 -> 0.3160226836 | I17: =H17*total_current_wholesale_network -> 492563.1053 | J17: =IF(ISERROR(I17/E17), 0, I17/E17) -> 0.00623732292
A18: GENERAL SERVICE LESS THAN 50 KW SERVICE CLASSIFICATION | B18: Retail Transmission Rate - Network Service Rate | C18: $/kWh | D18: 0.006 | E18: 36284593.49 | F18: 0 | G18: =ROUND(D18*E18, 2) -> 217707.56 | H18: 0.1340339319 | I18: 208909.5915 | J18: =IF(ISERROR(I18/E18), 0, I18/E18) -> 0.005757528784
A19: GENERAL SERVICE 50 TO 2,999 KW SERVICE CLASSIFICATION | B19: Retail Transmission Rate - Network Service Rate | C19: $/kW | D19: 2.4063 | E19: 123157262.9 | F19: 319666.54 | G19: =ROUND(D19*F19, 2) -> 769213.6 | H19: 0.4735743825 | I19: 738128.2438 | J19: =IF(ISERROR(I19/F19), 0, I19/F19) -> 2.309056944
A20: GENERAL SERVICE 3,000 TO 4,999 KW SERVICE CLASSIFICATION | B20: Retail Transmission Rate - Network Service Rate | C20: $/kW | D20: 2.6914 | E20: 20629094.95 | F20: 42405.1 | G20: =ROUND(D20*F20, 2) -> 114129.09 | H20: 0.07026476563 | I20: 109516.9206 | J20: =IF(ISERROR(I20/F20), 0, I20/F20) -> 2.582635594
A21: UNMETERED SCATTERED LOAD SERVICE CLASSIFICATION | B21: Retail Transmission Rate - Network Service Rate | C21: $/kWh | D21: 0.0068 | E21: 644653.521 | F21: 0 | G21: =ROUND(D21*E21, 2) -> 4383.64 | H21: 0.002698833726 | I21: 4206.488932 | J21: =IF(ISERROR(I21/E21), 0, I21/E21) -> 0.006525193448
A22: SENTINEL LIGHTING SERVICE CLASSIFICATION | B22: Retail Transmission Rate - Network Service Rate | C22: $/kW | D22: 1.8237 | E22: 46859.57892 | F22: 124.45 | G22: =ROUND(D22*F22, 2) -> 226.96 | H22: 0.0001397302932 | I22: 217.7881231 | J22: =IF(ISERROR(I22/F22), 0, I22/F22) -> 1.750005007
A23: STREET LIGHTING SERVICE CLASSIFICATION | B23: Retail Transmission Rate - Network Service Rate | C23: $/kW | D23: 1.8149 | E23: 1126603.036 | F23: 2922.66 | G23: =ROUND(D23*F23, 2) -> 5304.34 | H23: 0.003265672292 | I23: 5089.981728 | J23: =IF(ISERROR(I23/F23), 0, I23/F23) -> 1.74155794
A25: The purpose of this table is to re-align the current RTS Connection Rates to recover current wholesale connection costs.
A26: Rate Class | B26: Rate Description | C26: Unit | D26: Current RTSR-Connection | E26: Loss Adjusted Billed kWh | F26: Billed kW | G26: Billed Amount | H26: Billed Amount % | I26: Current Wholesale Billing | J26: Adjusted RTSR-Connection
A28: RESIDENTIAL SERVICE CLASSIFICATION | B28: Retail Transmission Rate - Line and Transformation Connection Service Rate | C28: $/kWh | D28: 0.0055 | E28: 78970274.85 | F28: 0 | G28: =ROUND(D28*E28, 2) -> 434336.51 | H28: =G28/1350807.6 -> 0.3215383967 | I28: =H28*Total_Current_Wholesale_Lineplus -> 416682.2511 | J28: =IF(ISERROR(I28/E28), 0, I28/E28) -> 0.00527644423
A29: GENERAL SERVICE LESS THAN 50 KW SERVICE CLASSIFICATION | B29: Retail Transmission Rate - Line and Transformation Connection Service Rate | C29: $/kWh | D29: 0.0049 | E29: 36284593.49 | F29: 0 | G29: =ROUND(D29*E29, 2) -> 177794.51 | H29: 0.1316208985 | I29: 170567.7855 | J29: =IF(ISERROR(I29/E29), 0, I29/E29) -> 0.0047008322
A30: GENERAL SERVICE 50 TO 2,999 KW SERVICE CLASSIFICATION | B30: Retail Transmission Rate - Line and Transformation Connection Service Rate | C30: $/kW | D30: 1.9749 | E30: 123157262.9 | F30: 319666.54 | G30: =ROUND(D30*F30, 2) -> 631309.45 | H30: 0.4673570463 | I30: 605648.9305 | J30: =IF(ISERROR(I30/F30), 0, I30/F30) -> 1.894627228
A31: GENERAL SERVICE 3,000 TO 4,999 KW SERVICE CLASSIFICATION | B31: Retail Transmission Rate - Line and Transformation Connection Service Rate | C31: $/kW | D31: 2.3294 | E31: 20629094.95 | F31: 42405.1 | G31: =ROUND(D31*F31, 2) -> 98778.44 | H31: 0.07312546953 | I31: 94763.44214 | J31: =IF(ISERROR(I31/F31), 0, I31/F31) -> 2.234718044
A32: UNMETERED SCATTERED LOAD SERVICE CLASSIFICATION | B32: Retail Transmission Rate - Line and Transformation Connection Service Rate | C32: $/kWh | D32: 0.0061 | E32: 644653.521 | F32: 0 | G32: =ROUND(D32*E32, 2) -> 3932.39 | H32: 0.002911139973 | I32: 3772.55211 | J32: =IF(ISERROR(I32/E32), 0, I32/E32) -> 0.005852061591
A33: SENTINEL LIGHTING SERVICE CLASSIFICATION | B33: Retail Transmission Rate - Line and Transformation Connection Service Rate | C33: $/kW | D33: 1.5587 | E33: 46859.57892 | F33: 124.45 | G33: =ROUND(D33*F33, 2) -> 193.98 | H33: 0.0001436029824 | I33: 186.0953919 | J33: =IF(ISERROR(I33/F33), 0, I33/F33) -> 1.495342643
A34: STREET LIGHTING SERVICE CLASSIFICATION | B34: Retail Transmission Rate - Line and Transformation Connection Service Rate | C34: $/kW | D34: 1.5268 | E34: 1126603.036 | F34: 2922.66 | G34: =ROUND(D34*F34, 2) -> 4462.32 | H34: 0.003303446027 | I34: 4280.94231 | J34: =IF(ISERROR(I34/F34), 0, I34/F34) -> 1.464741814
A36: The purpose of this table is to update the re-aligned RTS Network Rates to recover future wholesale network costs.
A37: Rate Class | B37: Rate Description | C37: Unit | D37: Adjusted RTSR-Network | E37: Loss Adjusted Billed kWh | F37: Billed kW | G37: Billed Amount | H37: Billed Amount % | I37: Forecast Wholesale Billing | J37: Proposed RTSR-Network
A39: RESIDENTIAL SERVICE CLASSIFICATION | B39: Retail Transmission Rate - Network Service Rate | C39: $/kWh | D39: 0.00623732292 | E39: 78970274.85 | F39: 0 | G39: =IF(ISERROR(D39*E39), 0, ROUND(D39*E39, 2)) -> 492563.11 | H39: =G39/1558632.12 -> 0.3160226866 | I39: =H39*forecast_wholesale_network -> 492563.11 | J39: =IF(ISERROR(I39/E39), 0, I39/E39) -> 0.006237322979
A40: GENERAL SERVICE LESS THAN 50 KW SERVICE CLASSIFICATION | B40: Retail Transmission Rate - Network Service Rate | C40: $/kWh | D40: 0.005757528784 | E40: 36284593.49 | F40: 0 | G40: =IF(ISERROR(D40*E40), 0, ROUND(D40*E40, 2)) -> 208909.59 | H40: 0.134033931 | I40: 208909.59 | J40: =IF(ISERROR(I40/E40), 0, I40/E40) -> 0.005757528744
A41: GENERAL SERVICE 50 TO 2,999 KW SERVICE CLASSIFICATION | B41: Retail Transmission Rate - Network Service Rate | C41: $/kW | D41: 2.309056944 | E41: 123157262.9 | F41: 319666.54 | G41: =ROUND(D41*F41, 2) -> 738128.24 | H41: 0.4735743801 | I41: 738128.24 | J41: =IF(ISERROR(I41/F41), 0, I41/F41) -> 2.309056932
A42: GENERAL SERVICE 3,000 TO 4,999 KW SERVICE CLASSIFICATION | B42: Retail Transmission Rate - Network Service Rate | C42: $/kW | D42: 2.582635594 | E42: 20629094.95 | F42: 42405.1 | G42: =ROUND(D42*F42, 2) -> 109516.92 | H42: 0.07026476524 | I42: 109516.92 | J42: =IF(ISERROR(I42/F42), 0, I42/F42) -> 2.582635579
A43: UNMETERED SCATTERED LOAD SERVICE CLASSIFICATION | B43: Retail Transmission Rate - Network Service Rate | C43: $/kWh | D43: 0.006525193448 | E43: 644653.521 | F43: 0 | G43: =IF(ISERROR(D43*E43), 0, ROUND(D43*E43, 2)) -> 4206.49 | H43: 0.002698834411 | I43: 4206.49 | J43: =IF(ISERROR(I43/E43), 0, I43/E43) -> 0.006525195105
A44: SENTINEL LIGHTING SERVICE CLASSIFICATION | B44: Retail Transmission Rate - Network Service Rate | C44: $/kW | D44: 1.750005007 | E44: 46859.57892 | F44: 124.45 | G44: =ROUND(D44*F44, 2) -> 217.79 | H44: 0.0001397314974 | I44: 217.79 | J44: =IF(ISERROR(I44/F44), 0, I44/F44) -> 1.750020088
A45: STREET LIGHTING SERVICE CLASSIFICATION | B45: Retail Transmission Rate - Network Service Rate | C45: $/kW | D45: 1.74155794 | E45: 1126603.036 | F45: 2922.66 | G45: =ROUND(D45*F45, 2) -> 5089.98 | H45: 0.003265671184 | I45: 5089.98 | J45: =IF(ISERROR(I45/F45), 0, I45/F45) -> 1.741557348
A47: The purpose of this table is to update the re-aligned RTS Connection Rates to recover future wholesale connection costs.
A48: Rate Class | B48: Rate Description | C48: Unit | D48: Adjusted RTSR-Connection | E48: Loss Adjusted Billed kWh | F48: Billed kW | G48: Billed Amount | H48: Billed Amount % | I48: Forecast Wholesale Billing | J48: Proposed RTSR-Connection
A50: RESIDENTIAL SERVICE CLASSIFICATION | B50: Retail Transmission Rate - Line and Transformation Connection Service Rate | C50: $/kWh | D50: 0.00527644423 | E50: 78970274.85 | F50: 0 | G50: =ROUND(D50*E50, 2) -> 416682.25 | H50: =G50/1295902 -> 0.3215383957 | I50: =H50*forecast_wholesale_lineplus -> 416682.2497 | J50: =IF(ISERROR(I50/E50), 0, I50/E50) -> 0.005276444212
A51: GENERAL SERVICE LESS THAN 50 KW SERVICE CLASSIFICATION | B51: Retail Transmission Rate - Line and Transformation Connection Service Rate | C51: $/kWh | D51: 0.0047008322 | E51: 36284593.49 | F51: 0 | G51: =ROUND(D51*E51, 2) -> 170567.79 | H51: 0.1316209019 | I51: 170567.7899 | J51: =IF(ISERROR(I51/E51), 0, I51/E51) -> 0.004700832321
A52: GENERAL SERVICE 50 TO 2,999 KW SERVICE CLASSIFICATION | B52: Retail Transmission Rate - Line and Transformation Connection Service Rate | C52: $/kW | D52: 1.894627228 | E52: 123157262.9 | F52: 319666.54 | G52: =ROUND(D52*F52, 2) -> 605648.93 | H52: 0.4673570455 | I52: 605648.9295 | J52: =IF(ISERROR(I52/F52), 0, I52/F52) -> 1.894627225
A53: GENERAL SERVICE 3,000 TO 4,999 KW SERVICE CLASSIFICATION | B53: Retail Transmission Rate - Line and Transformation Connection Service Rate | C53: $/kW | D53: 2.234718044 | E53: 20629094.95 | F53: 42405.1 | G53: =ROUND(D53*F53, 2) -> 94763.44 | H53: 0.07312546782 | I53: 94763.43992 | J53: =IF(ISERROR(I53/F53), 0, I53/F53) -> 2.234717992
A54: UNMETERED SCATTERED LOAD SERVICE CLASSIFICATION | B54: Retail Transmission Rate - Line and Transformation Connection Service Rate | C54: $/kWh | D54: 0.005852061591 | E54: 644653.521 | F54: 0 | G54: =ROUND(D54*E54, 2) -> 3772.55 | H54: 0.002911138342 | I54: 3772.549997 | J54: =IF(ISERROR(I54/E54), 0, I54/E54) -> 0.005852058313
A55: SENTINEL LIGHTING SERVICE CLASSIFICATION | B55: Retail Transmission Rate - Line and Transformation Connection Service Rate | C55: $/kW | D55: 1.495342643 | E55: 46859.57892 | F55: 124.45 | G55: =ROUND(D55*F55, 2) -> 186.1 | H55: 0.0001436065381 | I55: 186.0999998 | J55: =IF(ISERROR(I55/F55), 0, I55/F55) -> 1.495379669
A56: STREET LIGHTING SERVICE CLASSIFICATION | B56: Retail Transmission Rate - Line and Transformation Connection Service Rate | C56: $/kW | D56: 1.464741814 | E56: 1126603.036 | F56: 2922.66 | G56: =ROUND(D56*F56, 2) -> 4280.94 | H56: 0.003303444242 | I56: 4280.939996 | J56: =IF(ISERROR(I56/F56), 0, I56/F56) -> 1.464741022

Sheet RateClasses (hidden)
A2: Alectra Utilities Corporation-Brampton Rate Zone | B2: RESIDENTIAL SERVICE CLASSIFICATION~Retail Transmission Rate - Network Service Rate | C2: RESIDENTIAL SERVICE CLASSIFICATION~Retail Transmission Rate - Line and Transformation Connection Service Rate | D2: GENERAL SERVICE LESS THAN 50 KW SERVICE CLASSIFICATION~Retail Transmission Rate - Network Service Rate | E2: GENERAL SERVICE LESS THAN 50 KW SERVICE CLASSIFICATION~Retail Transmission Rate - Line and Transformation Connection Service Rate | F2: GENERAL SERVICE 50 TO 699 KW SERVICE CLASSIFICATION~Retail Transmission Rate - Network Service Rate | G2: GENERAL SERVICE 50 TO 699 KW SERVICE CLASSIFICATION~Retail Transmission Rate - Line and Transformation Connection Service Rate | H2: GENERAL SERVICE 700 TO 4,999 KW SERVICE CLASSIFICATION~Retail Transmission Rate - Network Service Rate | I2: GENERAL SERVICE 700 TO 4,999 KW SERVICE CLASSIFICATION~Retail Transmission Rate - Line and Transformation Connection Service Rate | J2: LARGE USE SERVICE CLASSIFICATION~Retail Transmission Rate - Network Service Rate | K2: LARGE USE SERVICE CLASSIFICATION~Retail Transmission Rate - Line and Transformation Connection Service Rate | L2: UNMETERED SCATTERED LOAD SERVICE CLASSIFICATION~Retail Transmission Rate - Network Service Rate | M2: UNMETERED SCATTERED LOAD SERVICE CLASSIFICATION~Retail Transmission Rate - Line and Transformation Connection Service Rate | N2: STREET LIGHTING SERVICE CLASSIFICATION~Retail Transmission Rate - Network Service Rate | O2: STREET LIGHTING SERVICE CLASSIFICATION~Retail Transmission Rate - Line and Transformation Connection Service Rate | P2: EMBEDDED DISTRIBUTOR SERVICE CLASSIFICATION~Retail Transmission Rate - Network Service Rate | Q2: EMBEDDED DISTRIBUTOR SERVICE CLASSIFICATION~Retail Transmission Rate - Line and Transformation Connection Service Rate | R2: DISTRIBUTED GENERATION [DGEN] SERVICE CLASSIFICATION~Retail Transmission Rate - Network Service Rate | S2: DISTRIBUTED GENERATION [DGEN] SERVICE CLASSIFICATION~Retail Transmission Rate - Line and Transformation Connection Service Rate
A3: Alectra Utilities Corporation-Enersource Rate Zone | B3: RESIDENTIAL SERVICE CLASSIFICATION~Retail Transmission Rate - Network Service Rate | C3: RESIDENTIAL SERVICE CLASSIFICATION~Retail Transmission Rate - Line and Transformation Connection Service Rate | D3: GENERAL SERVICE LESS THAN 50 KW SERVICE CLASSIFICATION~Retail Transmission Rate - Network Service Rate | E3: GENERAL SERVICE LESS THAN 50 KW SERVICE CLASSIFICATION~Retail Transmission Rate - Line and Transformation Connection Service Rate | F3: GENERAL SERVICE 50 TO 499 KW SERVICE CLASSIFICATION~Retail Transmission Rate - Network Service Rate | G3: GENERAL SERVICE 50 TO 499 KW SERVICE CLASSIFICATION~Retail Transmission Rate - Line and Transformation Connection Service Rate | H3: GENERAL SERVICE 500 TO 4,999 KW SERVICE CLASSIFICATION~Retail Transmission Rate - Network Service Rate | I3: GENERAL SERVICE 500 TO 4,999 KW SERVICE CLASSIFICATION~Retail Transmission Rate - Line and Transformation Connection Service Rate | J3: LARGE USE SERVICE CLASSIFICATION~Retail Transmission Rate - Network Service Rate – Interval Metered | K3: LARGE USE SERVICE CLASSIFICATION~Retail Transmission Rate - Line and Transformation Connection Service Rate – Interval Metered | L3: UNMETERED SCATTERED LOAD SERVICE CLASSIFICATION~Retail Transmission Rate - Network Service Rate | M3: UNMETERED SCATTERED LOAD SERVICE CLASSIFICATION~Retail Transmission Rate - Line and Transformation Connection Service Rate | N3: STREET LIGHTING SERVICE CLASSIFICATION~Retail Transmission Rate - Network Service Rate | O3: STREET LIGHTING SERVICE CLASSIFICATION~Retail Transmission Rate - Line and Transformation Connection Service Rate
A4: Alectra Utilities Corporation-Horizon Utilities Rate Zone | B4: RESIDENTIAL SERVICE CLASSIFICATION~Retail Transmission Rate - Network Service Rate | C4: RESIDENTIAL SERVICE CLASSIFICATION~Retail Transmission Rate - Line and Transformation Connection Service Rate | D4: GENERAL SERVICE LESS THAN 50 KW SERVICE CLASSIFICATION~Retail Transmission Rate - Network Service Rate | E4: GENERAL SERVICE LESS THAN 50 KW SERVICE CLASSIFICATION~Retail Transmission Rate - Line and Transformation Connection Service Rate | F4: GENERAL SERVICE 50 to 4,999 kW SERVICE CLASSIFICATION~Retail Transmission Rate - Network Service Rate | G4: GENERAL SERVICE 50 to 4,999 kW SERVICE CLASSIFICATION~Retail Transmission Rate - Line and Transformation Connection Service Rate | H4: LARGE USE SERVICE CLASSIFICATION~Retail Transmission Rate - Network Service Rate | I4: LARGE USE SERVICE CLASSIFICATION~Retail Transmission Rate - Line and Transformation Connection Service Rate | J4: LARGE USE WITH DEDICATED ASSETS SERVICE CLASSIFICATION~Retail Transmission Rate - Network Service Rate | K4: LARGE USE WITH DEDICATED ASSETS SERVICE CLASSIFICATION~Retail Transmission Rate - Line and Transformation Connection Service Rate | L4: UNMETERED SCATTERED LOAD SERVICE CLASSIFICATION~Retail Transmission Rate - Network Service Rate | M4: UNMETERED SCATTERED LOAD SERVICE CLASSIFICATION~Retail Transmission Rate - Line and Transformation Connection Service Rate | N4: SENTINEL LIGHTING SERVICE CLASSIFICATION~Retail Transmission Rate - Network Service Rate | O4: SENTINEL LIGHTING SERVICE CLASSIFICATION~Retail Transmission Rate - Line and Transformation Connection Service Rate | P4: STREET LIGHTING SERVICE CLASSIFICATION~Retail Transmission Rate - Network Service Rate | Q4: STREET LIGHTING SERVICE CLASSIFICATION~Retail Transmission Rate - Line and Transformation Connection Service Rate
A5: Alectra Utilities Corporation-PowerStream Rate Zone | B5: RESIDENTIAL SERVICE CLASSIFICATION~Retail Transmission Rate - Network Service Rate | C5: RESIDENTIAL SERVICE CLASSIFICATION~Retail Transmission Rate - Line and Transformation Connection Service Rate | D5: GENERAL SERVICE LESS THAN 50 KW SERVICE CLASSIFICATION~Retail Transmission Rate - Network Service Rate | E5: GENERAL SERVICE LESS THAN 50 KW SERVICE CLASSIFICATION~Retail Transmission Rate - Line and Transformation Connection Service Rate | F5: GENERAL SERVICE 50 to 4,999 kW SERVICE CLASSIFICATION~Retail Transmission Rate - Network Service Rate | G5: GENERAL SERVICE 50 to 4,999 kW SERVICE CLASSIFICATION~Retail Transmission Rate - Line and Transformation Connection Service Rate | H5: GENERAL SERVICE 50 to 4,999 kW SERVICE CLASSIFICATION~Retail Transmission Rate - Network Service Rate – Interval Metered | I5: GENERAL SERVICE 50 to 4,999 kW SERVICE CLASSIFICATION~Retail Transmission Rate - Line and Transformation Connection Service Rate – Interval Metered | J5: LARGE USE SERVICE CLASSIFICATION~Retail Transmission Rate - Network Service Rate | K5: LARGE USE SERVICE CLASSIFICATION~Retail Transmission Rate - Line and Transformation Connection Service Rate | L5: UNMETERED SCATTERED LOAD SERVICE CLASSIFICATION~Retail Transmission Rate - Network Service Rate | M5: UNMETERED SCATTERED LOAD SERVICE CLASSIFICATION~Retail Transmission Rate - Line and Transformation Connection Service Rate | N5: SENTINEL LIGHTING SERVICE CLASSIFICATION~Retail Transmission Rate - Network Service Rate | O5: SENTINEL LIGHTING SERVICE CLASSIFICATION~Retail Transmission Rate - Line and Transformation Connection Service Rate | P5: STREET LIGHTING SERVICE CLASSIFICATION~Retail Transmission Rate - Network Service Rate | Q5: STREET LIGHTING SERVICE CLASSIFICATION~Retail Transmission Rate - Line and Transformation Connection Service Rate
A6: Algoma Power Inc. | B6: RESIDENTIAL R1 SERVICE CLASSIFICATION~Retail Transmission Rate - Network Service Rate | C6: RESIDENTIAL R1 SERVICE CLASSIFICATION~Retail Transmission Rate - Line and Transformation Connection Service Rate | D6: RESIDENTIAL R2 SERVICE CLASSIFICATION~Retail Transmission Rate - Network Service Rate | E6: RESIDENTIAL R2 SERVICE CLASSIFICATION~Retail Transmission Rate - Line and Transformation Connection Service Rate | F6: SEASONAL CUSTOMERS SERVICE CLASSIFICATION~Retail Transmission Rate - Network Service Rate | G6: SEASONAL CUSTOMERS SERVICE CLASSIFICATION~Retail Transmission Rate - Line and Transformation Connection Service Rate | H6: STREET LIGHTING SERVICE CLASSIFICATION~Retail Transmission Rate - Network Service Rate | I6: STREET LIGHTING SERVICE CLASSIFICATION~Retail Transmission Rate - Line and Transformation Connection Service Rate
A7: Centre Wellington Hydro Ltd. | B7: RESIDENTIAL SERVICE CLASSIFICATION~Retail Transmission Rate - Network Service Rate | C7: RESIDENTIAL SERVICE CLASSIFICATION~Retail Transmission Rate - Line and Transformation Connection Service Rate | D7: GENERAL SERVICE LESS THAN 50 KW SERVICE CLASSIFICATION~Retail Transmission Rate - Network Service Rate | E7: GENERAL SERVICE LESS THAN 50 KW SERVICE CLASSIFICATION~Retail Transmission Rate - Line and Transformation Connection Service Rate | F7: GENERAL SERVICE 50 TO 2,999 KW SERVICE CLASSIFICATION~Retail Transmission Rate - Network Service Rate | G7: GENERAL SERVICE 50 TO 2,999 KW SERVICE CLASSIFICATION~Retail Transmission Rate - Line and Transformation Connection Service Rate | H7: GENERAL SERVICE 3,000 TO 4,999 KW SERVICE CLASSIFICATION~Retail Transmission Rate - Network Service Rate | I7: GENERAL SERVICE 3,000 TO 4,999 KW SERVICE CLASSIFICATION~Retail Transmission Rate - Line and Transformation Connection Service Rate | J7: UNMETERED SCATTERED LOAD SERVICE CLASSIFICATION~Retail Transmission Rate - Network Service Rate | K7: UNMETERED SCATTERED LOAD SERVICE CLASSIFICATION~Retail Transmission Rate - Line and Transformation Connection Service Rate | L7: SENTINEL LIGHTING SERVICE CLASSIFICATION~Retail Transmission Rate - Network Service Rate | M7: SENTINEL LIGHTING SERVICE CLASSIFICATION~Retail Transmission Rate - Line and Transformation Connection Service Rate | N7: STREET LIGHTING SERVICE CLASSIFICATION~Retail Transmission Rate - Network Service Rate | O7: STREET LIGHTING SERVICE CLASSIFICATION~Retail Transmission Rate - Line and Transformation Connection Service Rate
A8: Canadian Niagara Power Inc. | B8: RESIDENTIAL SERVICE CLASSIFICATION~Retail Transmission Rate - Network Service Rate | C8: RESIDENTIAL SERVICE CLASSIFICATION~Retail Transmission Rate - Line and Transformation Connection Service Rate | D8: GENERAL SERVICE LESS THAN 50 KW SERVICE CLASSIFICATION~Retail Transmission Rate - Network Service Rate | E8: GENERAL SERVICE LESS THAN 50 KW SERVICE CLASSIFICATION~Retail Transmission Rate - Line and Transformation Connection Service Rate | F8: GENERAL SERVICE 50 to 4,999 kW SERVICE CLASSIFICATION~Retail Transmission Rate - Network Service Rate | G8: GENERAL SERVICE 50 to 4,999 kW SERVICE CLASSIFICATION~Retail Transmission Rate - Line and Transformation Connection Service Rate | H8: EMBEDDED DISTRIBUTOR SERVICE CLASSIFICATION~Retail Transmission Rate - Network Service Rate | I8: EMBEDDED DISTRIBUTOR SERVICE CLASSIFICATION~Retail Transmission Rate - Line and Transformation Connection Service Rate | J8: UNMETERED SCATTERED LOAD SERVICE CLASSIFICATION~Retail Transmission Rate - Network Service Rate | K8: UNMETERED SCATTERED LOAD SERVICE CLASSIFICATION~Retail Transmission Rate - Line and Transformation Connection Service Rate | L8: SENTINEL LIGHTING SERVICE CLASSIFICATION~Retail Transmission Rate - Network Service Rate | M8: SENTINEL LIGHTING SERVICE CLASSIFICATION~Retail Transmission Rate - Line and Transformation Connection Service Rate | N8: STREET LIGHTING SERVICE CLASSIFICATION~Retail Transmission Rate - Network Service Rate | O8: STREET LIGHTING SERVICE CLASSIFICATION~Retail Transmission Rate - Line and Transformation Connection Service Rate
A9: Entegrus Powerlines Inc. | B9: RESIDENTIAL SERVICE CLASSIFICATION~Retail Transmission Rate - Network Service Rate | C9: RESIDENTIAL SERVICE CLASSIFICATION~Retail Transmission Rate - Line and Transformation Connection Service Rate | D9: GENERAL SERVICE LESS THAN 50 KW SERVICE CLASSIFICATION~Retail Transmission Rate - Network Service Rate | E9: GENERAL SERVICE LESS THAN 50 KW SERVICE CLASSIFICATION~Retail Transmission Rate - Line and Transformation Connection Service Rate | F9: GENERAL SERVICE 50 to 4,999 kW SERVICE CLASSIFICATION~Retail Transmission Rate - Network Service Rate | G9: GENERAL SERVICE 50 to 4,999 kW SERVICE CLASSIFICATION~Retail Transmission Rate - Line and Transformation Connection Service Rate (see Note 1) | H9: LARGE USE SERVICE CLASSIFICATION~Retail Transmission Rate - Network Service Rate | I9: LARGE USE SERVICE CLASSIFICATION~Retail Transmission Rate - Line and Transformation Connection Service Rate (see Note 1) | J9: UNMETERED SCATTERED LOAD SERVICE CLASSIFICATION~Retail Transmission Rate - Network Service Rate | K9: UNMETERED SCATTERED LOAD SERVICE CLASSIFICATION~Retail Transmission Rate - Line and Transformation Connection Service Rate | L9: SENTINEL LIGHTING SERVICE CLASSIFICATION~Retail Transmission Rate - Network Service Rate | M9: SENTINEL LIGHTING SERVICE CLASSIFICATION~Retail Transmission Rate - Line and Transformation Connection Service Rate | N9: STREET LIGHTING SERVICE CLASSIFICATION~Retail Transmission Rate - Network Service Rate | O9: STREET LIGHTING SERVICE CLASSIFICATION~Retail Transmission Rate - Line and Transformation Connection Service Rate | P9: EMBEDDED DISTRIBUTOR SERVICE CLASSIFICATION~Retail Transmission Rate - Network Service Rate | Q9: EMBEDDED DISTRIBUTOR SERVICE CLASSIFICATION~Retail Transmission Rate - Line and Transformation Connection Service Rate
A10: Entegrus Powerlines Inc.-For Former St. Thomas Energy Rate Zone | B10: RESIDENTIAL SERVICE CLASSIFICATION~Retail Transmission Rate - Network Service Rate | C10: RESIDENTIAL SERVICE CLASSIFICATION~Retail Transmission Rate - Line and Transformation Connection Service Rate | D10: GENERAL SERVICE LESS THAN 50 KW SERVICE CLASSIFICATION~Retail Transmission Rate - Network Service Rate | E10: GENERAL SERVICE LESS THAN 50 KW SERVICE CLASSIFICATION~Retail Transmission Rate - Line and Transformation Connection Service Rate | F10: GENERAL SERVICE 50 to 4,999 kW SERVICE CLASSIFICATION~Retail Transmission Rate - Network Service Rate | G10: GENERAL SERVICE 50 to 4,999 kW SERVICE CLASSIFICATION~Retail Transmission Rate - Line and Transformation Connection Service Rate | H10: SENTINEL LIGHTING SERVICE CLASSIFICATION~Retail Transmission Rate - Network Service Rate | I10: SENTINEL LIGHTING SERVICE CLASSIFICATION~Retail Transmission Rate - Line and Transformation Connection Service Rate | J10: STREET LIGHTING SERVICE CLASSIFICATION~Retail Transmission Rate - Network Service Rate | K10: STREET LIGHTING SERVICE CLASSIFICATION~Retail Transmission Rate - Line and Transformation Connection Service Rate
A11: Festival Hydro Inc. | B11: RESIDENTIAL SERVICE CLASSIFICATION~Retail Transmission Rate - Network Service Rate | C11: RESIDENTIAL SERVICE CLASSIFICATION~Retail Transmission Rate - Line and Transformation Connection Service Rate | D11: GENERAL SERVICE LESS THAN 50 KW SERVICE CLASSIFICATION~Retail Transmission Rate - Network Service Rate | E11: GENERAL SERVICE LESS THAN 50 KW SERVICE CLASSIFICATION~Retail Transmission Rate - Line and Transformation Connection Service Rate | F11: GENERAL SERVICE 50 to 4,999 kW SERVICE CLASSIFICATION~Retail Transmission Rate - Network Service Rate | G11: GENERAL SERVICE 50 to 4,999 kW SERVICE CLASSIFICATION~Retail Transmission Rate - Line and Transformation Connection Service Rate | H11: GENERAL SERVICE 50 to 4,999 kW SERVICE CLASSIFICATION~Retail Transmission Rate - Network Service Rate - Interval Metered | I11: GENERAL SERVICE 50 to 4,999 kW SERVICE CLASSIFICATION~Retail Transmission Rate - Line and Transformation Connection Service Rate - Interval Metered | J11: LARGE USE SERVICE CLASSIFICATION~Retail Transmission Rate - Network Service Rate - Interval Metered | K11: LARGE USE SERVICE CLASSIFICATION~Retail Transmission Rate - Line and Transformation Connection Service Rate - Interval Metered | L11: UNMETERED SCATTERED LOAD SERVICE CLASSIFICATION~Retail Transmission Rate - Network Service Rate | M11: UNMETERED SCATTERED LOAD SERVICE CLASSIFICATION~Retail Transmission Rate - Line and Transformation Connection Service Rate | N11: SENTINEL LIGHTING SERVICE CLASSIFICATION~Retail Transmission Rate - Network Service Rate | O11: SENTINEL LIGHTING SERVICE CLASSIFICATION~Retail Transmission Rate - Line and Transformation Connection Service Rate | P11: STREET LIGHTING SERVICE CLASSIFICATION~Retail Transmission Rate - Network Service Rate | Q11: STREET LIGHTING SERVICE CLASSIFICATION~Retail Transmission Rate - Line and Transformation Connection Service Rate
A12: Grimsby Power Incorporated | B12: RESIDENTIAL SERVICE CLASSIFICATION~Retail Transmission Rate - Network Service Rate | C12: RESIDENTIAL SERVICE CLASSIFICATION~Retail Transmission Rate - Line and Transformation Connection Service Rate | D12: GENERAL SERVICE LESS THAN 50 KW SERVICE CLASSIFICATION~Retail Transmission Rate - Network Service Rate | E12: GENERAL SERVICE LESS THAN 50 KW SERVICE CLASSIFICATION~Retail Transmission Rate - Line and Transformation Connection Service Rate | F12: GENERAL SERVICE 50 to 4,999 kW SERVICE CLASSIFICATION~Retail Transmission Rate - Network Service Rate | G12: GENERAL SERVICE 50 to 4,999 kW SERVICE CLASSIFICATION~Retail Transmission Rate - Line and Transformation Connection Service Rate | H12: GENERAL SERVICE 50 to 4,999 kW SERVICE CLASSIFICATION~Retail Transmission Rate - Network Service Rate - Interval Metered | I12: GENERAL SERVICE 50 to 4,999 kW SERVICE CLASSIFICATION~Retail Transmission Rate - Line and Transformation Connection Service Rate - Interval Metered | J12: UNMETERED SCATTERED LOAD SERVICE CLASSIFICATION~Retail Transmission Rate - Network Service Rate | K12: UNMETERED SCATTERED LOAD SERVICE CLASSIFICATION~Retail Transmission Rate - Line and Transformation Connection Service Rate | L12: STREET LIGHTING SERVICE CLASSIFICATION~Retail Transmission Rate - Network Service Rate | M12: STREET LIGHTING SERVICE CLASSIFICATION~Retail Transmission Rate - Line and Transformation Connection Service Rate | N12: EMBEDDED DISTRIBUTOR SERVICE CLASSIFICATION~Retail Transmission Rate - Network Service Rate | O12: EMBEDDED DISTRIBUTOR SERVICE CLASSIFICATION~Retail Transmission Rate - Line and Transformation Connection Service Rate
A13: Alectra Utilities Corporation-Guelph Rate Zone | B13: RESIDENTIAL SERVICE CLASSIFICATION~Retail Transmission Rate - Network Service Rate | C13: RESIDENTIAL SERVICE CLASSIFICATION~Retail Transmission Rate - Line and Transformation Connection Service Rate | D13: GENERAL SERVICE LESS THAN 50 KW SERVICE CLASSIFICATION~Retail Transmission Rate - Network Service Rate | E13: GENERAL SERVICE LESS THAN 50 KW SERVICE CLASSIFICATION~Retail Transmission Rate - Line and Transformation Connection Service Rate | F13: GENERAL SERVICE 50 TO 999 KW SERVICE CLASSIFICATION~Retail Transmission Rate - Network Service Rate | G13: GENERAL SERVICE 50 TO 999 KW SERVICE CLASSIFICATION~Retail Transmission Rate - Network Service Rate - Interval Metered | H13: GENERAL SERVICE 50 TO 999 KW SERVICE CLASSIFICATION~Retail Transmission Rate - Line and Transformation Connection Service Rate | I13: GENERAL SERVICE 50 TO 999 KW SERVICE CLASSIFICATION~Retail Transmission Rate - Line and Transformation Connection Service Rate - Interval Metered | J13: GENERAL SERVICE 1,000 TO 4,999 KW SERVICE CLASSIFICATION~Retail Transmission Rate - Network Service Rate - Interval Metered | K13: GENERAL SERVICE 1,000 TO 4,999 KW SERVICE CLASSIFICATION~Retail Transmission Rate - Line and Transformation Connection Service Rate - Interval Metered | L13: LARGE USE SERVICE CLASSIFICATION~Retail Transmission Rate - Network Service Rate - Interval Metered | M13: LARGE USE SERVICE CLASSIFICATION~Retail Transmission Rate - Line and Transformation Connection Service Rate - Interval Metered | N13: UNMETERED SCATTERED LOAD SERVICE CLASSIFICATION~Retail Transmission Rate - Network Service Rate | O13: UNMETERED SCATTERED LOAD SERVICE CLASSIFICATION~Retail Transmission Rate - Line and Transformation Connection Service Rate | P13: SENTINEL LIGHTING SERVICE CLASSIFICATION~Retail Transmission Rate - Network Service Rate | Q13: SENTINEL LIGHTING SERVICE CLASSIFICATION~Retail Transmission Rate - Line and Transformation Connection Service Rate | R13: STREET LIGHTING SERVICE CLASSIFICATION~Retail Transmission Rate - Network Service Rate | S13: STREET LIGHTING SERVICE CLASSIFICATION~Retail Transmission Rate - Line and Transformation Connection Service Rate
A14: Hydro Hawkesbury Inc. | B14: RESIDENTIAL SERVICE CLASSIFICATION~Retail Transmission Rate - Network Service Rate | C14: RESIDENTIAL SERVICE CLASSIFICATION~Retail Transmission Rate - Line and Transformation Connection Service Rate | D14: GENERAL SERVICE LESS THAN 50 KW SERVICE CLASSIFICATION~Retail Transmission Rate - Network Service Rate | E14: GENERAL SERVICE LESS THAN 50 KW SERVICE CLASSIFICATION~Retail Transmission Rate - Line and Transformation Connection Service Rate | F14: GENERAL SERVICE 50 to 4,999 kW SERVICE CLASSIFICATION~Retail Transmission Rate - Network Service Rate | G14: GENERAL SERVICE 50 to 4,999 kW SERVICE CLASSIFICATION~Retail Transmission Rate - Line and Transformation Connection Service Rate | H14: UNMETERED SCATTERED LOAD SERVICE CLASSIFICATION~Retail Transmission Rate - Network Service Rate | I14: UNMETERED SCATTERED LOAD SERVICE CLASSIFICATION~Retail Transmission Rate - Line and Transformation Connection Service Rate | J14: SENTINEL LIGHTING SERVICE CLASSIFICATION~Retail Transmission Rate - Network Service Rate | K14: SENTINEL LIGHTING SERVICE CLASSIFICATION~Retail Transmission Rate - Line and Transformation Connection Service Rate | L14: STREET LIGHTING SERVICE CLASSIFICATION~Retail Transmission Rate - Network Service Rate | M14: STREET LIGHTING SERVICE CLASSIFICATION~Retail Transmission Rate - Line and Transformation Connection Service Rate
A15: Hydro Ottawa Limited | B15: RESIDENTIAL SERVICE CLASSIFICATION~Retail Transmission Rate - Network Service Rate | C15: RESIDENTIAL SERVICE CLASSIFICATION~Retail Transmission Rate - Line and Transformation Connection Service Rate | D15: GENERAL SERVICE LESS THAN 50 KW SERVICE CLASSIFICATION~Retail Transmission Rate - Network Service Rate | E15: GENERAL SERVICE LESS THAN 50 KW SERVICE CLASSIFICATION~Retail Transmission Rate - Line and Transformation Connection Service Rate | F15: GENERAL SERVICE 50 TO 1,499 KW SERVICE CLASSIFICATION~Retail Transmission Rate - Network Service Rate | G15: GENERAL SERVICE 50 TO 1,499 KW SERVICE CLASSIFICATION~Retail Transmission Rate - Line and Transformation Connection Service Rate | H15: GENERAL SERVICE 1,500 TO 4,999 KW SERVICE CLASSIFICATION~Retail Transmission Rate - Network Service Rate | I15: GENERAL SERVICE 1,500 TO 4,999 KW SERVICE CLASSIFICATION~Retail Transmission Rate - Line and Transformation Connection Service Rate | J15: LARGE USE SERVICE CLASSIFICATION~Retail Transmission Rate - Network Service Rate | K15: LARGE USE SERVICE CLASSIFICATION~Retail Transmission Rate - Line and Transformation Connection Service Rate | L15: UNMETERED SCATTERED LOAD SERVICE CLASSIFICATION~Retail Transmission Rate - Network Service Rate | M15: UNMETERED SCATTERED LOAD SERVICE CLASSIFICATION~Retail Transmission Rate - Line and Transformation Connection Service Rate | N15: SENTINEL LIGHTING SERVICE CLASSIFICATION~Retail Transmission Rate - Network Service Rate | O15: SENTINEL LIGHTING SERVICE CLASSIFICATION~Retail Transmission Rate - Line and Transformation Connection Service Rate | P15: STREET LIGHTING SERVICE CLASSIFICATION~Retail Transmission Rate - Network Service Rate | Q15: STREET LIGHTING SERVICE CLASSIFICATION~Retail Transmission Rate - Line and Transformation Connection Service Rate
A16: InnPower Corporation | B16: RESIDENTIAL SERVICE CLASSIFICATION~Retail Transmission Rate - Network Service Rate | C16: RESIDENTIAL SERVICE CLASSIFICATION~Retail Transmission Rate - Line and Transformation Connection Service Rate | D16: GENERAL SERVICE LESS THAN 50 KW SERVICE CLASSIFICATION~Retail Transmission Rate - Network Service Rate | E16: GENERAL SERVICE LESS THAN 50 KW SERVICE CLASSIFICATION~Retail Transmission Rate - Line and Transformation Connection Service Rate | F16: GENERAL SERVICE 50 to 4,999 kW SERVICE CLASSIFICATION~Retail Transmission Rate - Network Service Rate | G16: GENERAL SERVICE 50 to 4,999 kW SERVICE CLASSIFICATION~Retail Transmission Rate - Line and Transformation Connection Service Rate | H16: GENERAL SERVICE 50 to 4,999 kW SERVICE CLASSIFICATION~Retail Transmission Rate - Network Service Rate - Interval Metered | I16: GENERAL SERVICE 50 to 4,999 kW SERVICE CLASSIFICATION~Retail Transmission Rate - Line and Transformation Connection Service Rate - Interval Metered | J16: UNMETERED SCATTERED LOAD SERVICE CLASSIFICATION~Retail Transmission Rate - Network Service Rate | K16: UNMETERED SCATTERED LOAD SERVICE CLASSIFICATION~Retail Transmission Rate - Line and Transformation Connection Service Rate | L16: SENTINEL LIGHTING SERVICE CLASSIFICATION~Retail Transmission Rate - Network Service Rate | M16: SENTINEL LIGHTING SERVICE CLASSIFICATION~Retail Transmission Rate - Line and Transformation Connection Service Rate | N16: STREET LIGHTING SERVICE CLASSIFICATION~Retail Transmission Rate - Network Service Rate | O16: STREET LIGHTING SERVICE CLASSIFICATION~Retail Transmission Rate - Line and Transformation Connection Service Rate
A17: Kingston Hydro Corporation | B17: RESIDENTIAL SERVICE CLASSIFICATION~Retail Transmission Rate - Network Service Rate | C17: RESIDENTIAL SERVICE CLASSIFICATION~Retail Transmission Rate - Line and Transformation Connection Service Rate | D17: GENERAL SERVICE LESS THAN 50 KW SERVICE CLASSIFICATION~Retail Transmission Rate - Network Service Rate | E17: GENERAL SERVICE LESS THAN 50 KW SERVICE CLASSIFICATION~Retail Transmission Rate - Line and Transformation Connection Service Rate | F17: GENERAL SERVICE 50 to 4,999 kW SERVICE CLASSIFICATION~Retail Transmission Rate - Network Service Rate | G17: GENERAL SERVICE 50 to 4,999 kW SERVICE CLASSIFICATION~Retail Transmission Rate - Line and Transformation Connection Service Rate | H17: LARGE USE SERVICE CLASSIFICATION~Retail Transmission Rate - Network Service Rate | I17: LARGE USE SERVICE CLASSIFICATION~Retail Transmission Rate - Line and Transformation Connection Service Rate | J17: UNMETERED SCATTERED LOAD SERVICE CLASSIFICATION~Retail Transmission Rate - Network Service Rate | K17: UNMETERED SCATTERED LOAD SERVICE CLASSIFICATION~Retail Transmission Rate - Line and Transformation Connection Service Rate | L17: STREET LIGHTING SERVICE CLASSIFICATION~Retail Transmission Rate - Network Service Rate | M17: STREET LIGHTING SERVICE CLASSIFICATION~Retail Transmission Rate - Line and Transformation Connection Service Rate
A18: Kitchener-Wilmot Hydro Inc. | B18: RESIDENTIAL SERVICE CLASSIFICATION~Retail Transmission Rate - Network Service Rate | C18: RESIDENTIAL SERVICE CLASSIFICATION~Retail Transmission Rate - Line and Transformation Connection Service Rate | D18: GENERAL SERVICE LESS THAN 50 KW SERVICE CLASSIFICATION~Retail Transmission Rate - Network Service Rate | E18: GENERAL SERVICE LESS THAN 50 KW SERVICE CLASSIFICATION~Retail Transmission Rate - Line and Transformation Connection Service Rate | F18: GENERAL SERVICE 50 to 4,999 kW SERVICE CLASSIFICATION~Retail Transmission Rate - Network Service Rate | G18: GENERAL SERVICE 50 to 4,999 kW SERVICE CLASSIFICATION~Retail Transmission Rate - Line and Transformation Connection Service Rate | H18: LARGE USE SERVICE CLASSIFICATION~Retail Transmission Rate - Network Service Rate - Interval Metered | I18: LARGE USE SERVICE CLASSIFICATION~Retail Transmission Rate - Line and Transformation Connection Service Rate - Interval Metered | J18: UNMETERED SCATTERED LOAD SERVICE CLASSIFICATION~Retail Transmission Rate - Network Service Rate | K18: UNMETERED SCATTERED LOAD SERVICE CLASSIFICATION~Retail Transmission Rate - Line and Transformation Connection Service Rate | L18: STREET LIGHTING SERVICE CLASSIFICATION~Retail Transmission Rate - Network Service Rate | M18: STREET LIGHTING SERVICE CLASSIFICATION~Retail Transmission Rate - Line and Transformation Connection Service Rate | N18: EMBEDDED DISTRIBUTOR SERVICE CLASSIFICATION~Retail Transmission Rate - Network Service Rate | O18: EMBEDDED DISTRIBUTOR SERVICE CLASSIFICATION~Retail Transmission Rate - Line and Transformation Connection Service Rate
A19: Renfrew Hydro Inc. | B19: RESIDENTIAL SERVICE CLASSIFICATION~Retail Transmission Rate - Network Service Rate | C19: RESIDENTIAL SERVICE CLASSIFICATION~Retail Transmission Rate - Line and Transformation Connection Service Rate | D19: GENERAL SERVICE LESS THAN 50 KW SERVICE CLASSIFICATION~Retail Transmission Rate - Network Service Rate | E19: GENERAL SERVICE LESS THAN 50 KW SERVICE CLASSIFICATION~Retail Transmission Rate - Line and Transformation Connection Service Rate | F19: GENERAL SERVICE 50 to 4,999 kW SERVICE CLASSIFICATION~Retail Transmission Rate - Network Service Rate | G19: GENERAL SERVICE 50 to 4,999 kW SERVICE CLASSIFICATION~Retail Transmission Rate - Line and Transformation Connection Service Rate | H19: UNMETERED SCATTERED LOAD SERVICE CLASSIFICATION~Retail Transmission Rate - Network Service Rate | I19: UNMETERED SCATTERED LOAD SERVICE CLASSIFICATION~Retail Transmission Rate - Line and Transformation Connection Service Rate | J19: STREET LIGHTING SERVICE CLASSIFICATION~Retail Transmission Rate - Network Service Rate | K19: STREET LIGHTING SERVICE CLASSIFICATION~Retail Transmission Rate - Line and Transformation Connection Service Rate
A20: Cooperative Hydro Embrun Inc. | B20: RESIDENTIAL SERVICE CLASSIFICATION~Retail Transmission Rate - Network Service Rate | C20: RESIDENTIAL SERVICE CLASSIFICATION~Retail Transmission Rate - Line and Transformation Connection Service Rate | D20: GENERAL SERVICE LESS THAN 50 KW SERVICE CLASSIFICATION~Retail Transmission Rate - Network Service Rate | E20: GENERAL SERVICE LESS THAN 50 KW SERVICE CLASSIFICATION~Retail Transmission Rate - Line and Transformation Connection Service Rate | F20: GENERAL SERVICE 50 to 4,999 kW SERVICE CLASSIFICATION~Retail Transmission Rate - Network Service Rate | G20: GENERAL SERVICE 50 to 4,999 kW SERVICE CLASSIFICATION~Retail Transmission Rate - Line and Transformation Connection Service Rate | H20: UNMETERED SCATTERED LOAD SERVICE CLASSIFICATION~Retail Transmission Rate - Network Service Rate | I20: UNMETERED SCATTERED LOAD SERVICE CLASSIFICATION~Retail Transmission Rate - Line and Transformation Connection Service Rate | J20: STREET LIGHTING SERVICE CLASSIFICATION~Retail Transmission Rate - Network Service Rate | K20: STREET LIGHTING SERVICE CLASSIFICATION~Retail Transmission Rate - Line and Transformation Connection Service Rate
A21: Lakefront Utilities Inc. | B21: RESIDENTIAL SERVICE CLASSIFICATION~Retail Transmission Rate - Network Service Rate | C21: RESIDENTIAL SERVICE CLASSIFICATION~Retail Transmission Rate - Line and Transformation Connection Service Rate | D21: GENERAL SERVICE LESS THAN 50 KW SERVICE CLASSIFICATION~Retail Transmission Rate - Network Service Rate | E21: GENERAL SERVICE LESS THAN 50 KW SERVICE CLASSIFICATION~Retail Transmission Rate - Line and Transformation Connection Service Rate | F21: GENERAL SERVICE 50 TO 2,999 KW SERVICE CLASSIFICATION~Retail Transmission Rate - Network Service Rate | G21: GENERAL SERVICE 50 TO 2,999 KW SERVICE CLASSIFICATION~Retail Transmission Rate - Line and Transformation Connection Service Rate | H21: GENERAL SERVICE 3,000 TO 4,999 KW SERVICE CLASSIFICATION~Retail Transmission Rate - Network Service Rate | I21: GENERAL SERVICE 3,000 TO 4,999 KW SERVICE CLASSIFICATION~Retail Transmission Rate - Line and Transformation Connection Service Rate | J21: UNMETERED SCATTERED LOAD SERVICE CLASSIFICATION~Retail Transmission Rate - Network Service Rate | K21: UNMETERED SCATTERED LOAD SERVICE CLASSIFICATION~Retail Transmission Rate - Line and Transformation Connection Service Rate | L21: SENTINEL LIGHTING SERVICE CLASSIFICATION~Retail Transmission Rate - Network Service Rate | M21: SENTINEL LIGHTING SERVICE CLASSIFICATION~Retail Transmission Rate - Line and Transformation Connection Service Rate | N21: STREET LIGHTING SERVICE CLASSIFICATION~Retail Transmission Rate - Network Service Rate | O21: STREET LIGHTING SERVICE CLASSIFICATION~Retail Transmission Rate - Line and Transformation Connection Service Rate
A22: Toronto Hydro-Electric System Limited | B22: RESIDENTIAL SERVICE CLASSIFICATION~Retail Transmission Rate - Network Service Rate | C22: RESIDENTIAL SERVICE CLASSIFICATION~Retail Transmission Rate - Line and Transformation Connection Service Rate | D22: COMPETITIVE SECTOR MULTI-UNIT RESIDENTIAL SERVICE CLASSIFICATION~Retail Transmission Rate - Network Service Rate | E22: COMPETITIVE SECTOR MULTI-UNIT RESIDENTIAL SERVICE CLASSIFICATION~Retail Transmission Rate - Line and Transformation Connection Service Rate | F22: GENERAL SERVICE LESS THAN 50 KW SERVICE CLASSIFICATION~Retail Transmission Rate - Network Service Rate | G22: GENERAL SERVICE LESS THAN 50 KW SERVICE CLASSIFICATION~Retail Transmission Rate - Line and Transformation Connection Service Rate | H22: GENERAL SERVICE 50 TO 999 KW SERVICE CLASSIFICATION~Retail Transmission Rate - Network Service Rate | I22: GENERAL SERVICE 50 TO 999 KW SERVICE CLASSIFICATION~Retail Transmission Rate - Line and Transformation Connection Service Rate | J22: GENERAL SERVICE 1,000 TO 4,999 KW SERVICE CLASSIFICATION~Retail Transmission Rate - Network Service Rate | K22: GENERAL SERVICE 1,000 TO 4,999 KW SERVICE CLASSIFICATION~Retail Transmission Rate - Line and Transformation Connection Service Rate | L22: LARGE USE SERVICE CLASSIFICATION~Retail Transmission Rate - Network Service Rate | M22: LARGE USE SERVICE CLASSIFICATION~Retail Transmission Rate - Line and Transformation Connection Service Rate | N22: UNMETERED SCATTERED LOAD SERVICE CLASSIFICATION~Retail Transmission Rate - Network Service Rate | O22: UNMETERED SCATTERED LOAD SERVICE CLASSIFICATION~Retail Transmission Rate - Line and Transformation Connection Service Rate | P22: STREET LIGHTING SERVICE CLASSIFICATION~Retail Transmission Rate - Network Service Rate | Q22: STREET LIGHTING SERVICE CLASSIFICATION~Retail Transmission Rate - Line and Transformation Connection Service Rate
A23: Waterloo North Hydro Inc. | B23: RESIDENTIAL SERVICE CLASSIFICATION~Retail Transmission Rate - Network Service Rate | C23: RESIDENTIAL SERVICE CLASSIFICATION~Retail Transmission Rate - Line and Transformation Connection Service Rate | D23: GENERAL SERVICE LESS THAN 50 KW SERVICE CLASSIFICATION~Retail Transmission Rate - Network Service Rate | E23: GENERAL SERVICE LESS THAN 50 KW SERVICE CLASSIFICATION~Retail Transmission Rate - Line and Transformation Connection Service Rate | F23: GENERAL SERVICE 50 to 4,999 kW SERVICE CLASSIFICATION~Retail Transmission Rate - Network Service Rate - (less than 1,000 kW) | G23: GENERAL SERVICE 50 to 4,999 kW SERVICE CLASSIFICATION~Retail Transmission Rate - Network Service Rate - Interval Metered (less than 1,000 kW) | H23: GENERAL SERVICE 50 to 4,999 kW SERVICE CLASSIFICATION~Retail Transmission Rate - Network Service Rate - Interval Metered (1,000 to 4,999 kW) | I23: GENERAL SERVICE 50 to 4,999 kW SERVICE CLASSIFICATION~Retail Transmission Rate - Line and Transformation Connection Service Rate - (less than 1,000 kW) | J23: GENERAL SERVICE 50 to 4,999 kW SERVICE CLASSIFICATION~Retail Transmission Rate - Line and Trans. Connection Service Rate - Interval Metered (less than 1,000 kW) | K23: GENERAL SERVICE 50 to 4,999 kW SERVICE CLASSIFICATION~Retail Transmission Rate - Line and Trans. Connection Service Rate - Interval Metered (1,000 to 4,999 kW) | L23: LARGE USE SERVICE CLASSIFICATION~Retail Transmission Rate - Network Service Rate - Interval Metered | M23: LARGE USE SERVICE CLASSIFICATION~Retail Transmission Rate - Line and Transformation Connection Service Rate - Interval Metered | N23: UNMETERED SCATTERED LOAD SERVICE CLASSIFICATION~Retail Transmission Rate - Network Service Rate | O23: UNMETERED SCATTERED LOAD SERVICE CLASSIFICATION~Retail Transmission Rate - Line and Transformation Connection Service Rate | P23: STREET LIGHTING SERVICE CLASSIFICATION~Retail Transmission Rate - Network Service Rate | Q23: STREET LIGHTING SERVICE CLASSIFICATION~Retail Transmission Rate - Line and Transformation Connection Service Rate
A24: Westario Power Inc. | B24: RESIDENTIAL SERVICE CLASSIFICATION~Retail Transmission Rate - Network Service Rate | C24: RESIDENTIAL SERVICE CLASSIFICATION~Retail Transmission Rate - Line and Transformation Connection Service Rate | D24: GENERAL SERVICE LESS THAN 50 KW SERVICE CLASSIFICATION~Retail Transmission Rate - Network Service Rate | E24: GENERAL SERVICE LESS THAN 50 KW SERVICE CLASSIFICATION~Retail Transmission Rate - Line and Transformation Connection Service Rate | F24: GENERAL SERVICE 50 to 4,999 kW SERVICE CLASSIFICATION~Retail Transmission Rate - Network Service Rate | G24: GENERAL SERVICE 50 to 4,999 kW SERVICE CLASSIFICATION~Retail Transmission Rate - Line and Transformation Connection Service Rate | H24: UNMETERED SCATTERED LOAD SERVICE CLASSIFICATION~Retail Transmission Rate - Network Service Rate | I24: UNMETERED SCATTERED LOAD SERVICE CLASSIFICATION~Retail Transmission Rate - Line and Transformation Connection Service Rate | J24: SENTINEL LIGHTING SERVICE CLASSIFICATION~Retail Transmission Rate - Network Service Rate | K24: SENTINEL LIGHTING SERVICE CLASSIFICATION~Retail Transmission Rate - Line and Transformation Connection Service Rate | L24: STREET LIGHTING SERVICE CLASSIFICATION~Retail Transmission Rate - Network Service Rate | M24: STREET LIGHTING SERVICE CLASSIFICATION~Retail Transmission Rate - Line and Transformation Connection Service Rate
A25: Elexicon Energy Inc.-Whitby Rate Zone | B25: RESIDENTIAL SERVICE CLASSIFICATION~Retail Transmission Rate - Network Service Rate | C25: RESIDENTIAL SERVICE CLASSIFICATION~Retail Transmission Rate - Line and Transformation Connection Service Rate | D25: GENERAL SERVICE LESS THAN 50 KW SERVICE CLASSIFICATION~Retail Transmission Rate - Network Service Rate | E25: GENERAL SERVICE LESS THAN 50 KW SERVICE CLASSIFICATION~Retail Transmission Rate - Line and Transformation Connection Service Rate | F25: GENERAL SERVICE 50 to 4,999 kW SERVICE CLASSIFICATION~Retail Transmission Rate - Network Service Rate | G25: GENERAL SERVICE 50 to 4,999 kW SERVICE CLASSIFICATION~Retail Transmission Rate - Line and Transformation Connection Service Rate | H25: UNMETERED SCATTERED LOAD SERVICE CLASSIFICATION~Retail Transmission Rate - Network Service Rate | I25: UNMETERED SCATTERED LOAD SERVICE CLASSIFICATION~Retail Transmission Rate - Line and Transformation Connection Service Rate | J25: SENTINEL LIGHTING SERVICE CLASSIFICATION~Retail Transmission Rate - Network Service Rate | K25: SENTINEL LIGHTING SERVICE CLASSIFICATION~Retail Transmission Rate - Line and Transformation Connection Service Rate | L25: STREET LIGHTING SERVICE CLASSIFICATION~Retail Transmission Rate - Network Service Rate | M25: STREET LIGHTING SERVICE CLASSIFICATION~Retail Transmission Rate - Line and Transformation Connection Service Rate
A26: Erie Thames Powerlines Corporation | B26: RESIDENTIAL SERVICE CLASSIFICATION~Retail Transmission Rate - Network Service Rate | C26: RESIDENTIAL SERVICE CLASSIFICATION~Retail Transmission Rate - Line and Transformation Connection Service Rate | D26: GENERAL SERVICE LESS THAN 50 KW SERVICE CLASSIFICATION~Retail Transmission Rate - Network Service Rate | E26: GENERAL SERVICE LESS THAN 50 KW SERVICE CLASSIFICATION~Retail Transmission Rate - Line and Transformation Connection Service Rate | F26: GENERAL SERVICE 50 TO 999 KW SERVICE CLASSIFICATION~Retail Transmission Rate - Network Service Rate | G26: GENERAL SERVICE 50 TO 999 KW SERVICE CLASSIFICATION~Retail Transmission Rate - Line and Transformation Connection Service Rate | H26: GENERAL SERVICE 1,000 TO 4,999 KW SERVICE CLASSIFICATION~Retail Transmission Rate - Network Service Rate | I26: GENERAL SERVICE 1,000 TO 4,999 KW SERVICE CLASSIFICATION~Retail Transmission Rate - Line and Transformation Connection Service Rate | J26: LARGE USE SERVICE CLASSIFICATION~Retail Transmission Rate - Network Service Rate | K26: LARGE USE SERVICE CLASSIFICATION~Retail Transmission Rate - Line and Transformation Connection Service Rate | L26: UNMETERED SCATTERED LOAD SERVICE CLASSIFICATION~Retail Transmission Rate - Network Service Rate | M26: UNMETERED SCATTERED LOAD SERVICE CLASSIFICATION~Retail Transmission Rate - Line and Transformation Connection Service Rate | N26: SENTINEL LIGHTING SERVICE CLASSIFICATION~Retail Transmission Rate - Network Service Rate | O26: SENTINEL LIGHTING SERVICE CLASSIFICATION~Retail Transmission Rate - Line and Transformation Connection Service Rate | P26: STREET LIGHTING SERVICE CLASSIFICATION~Retail Transmission Rate - Network Service Rate | Q26: STREET LIGHTING SERVICE CLASSIFICATION~Retail Transmission Rate - Line and Transformation Connection Service Rate | R26: EMBEDDED DISTRIBUTOR SERVICE CLASSIFICATION~Retail Transmission Rate - Network Service Rate | S26: EMBEDDED DISTRIBUTOR SERVICE CLASSIFICATION~Retail Transmission Rate - Line and Transformation Connection Service Rate
A27: Entegrus Powerlines Inc.-For Entegrus-Main Rate Zone | B27: RESIDENTIAL SERVICE CLASSIFICATION~Retail Transmission Rate - Network Service Rate | C27: RESIDENTIAL SERVICE CLASSIFICATION~Retail Transmission Rate - Line and Transformation Connection Service Rate | D27: GENERAL SERVICE LESS THAN 50 KW SERVICE CLASSIFICATION~Retail Transmission Rate - Network Service Rate | E27: GENERAL SERVICE LESS THAN 50 KW SERVICE CLASSIFICATION~Retail Transmission Rate - Line and Transformation Connection Service Rate | F27: GENERAL SERVICE 50 to 4,999 kW SERVICE CLASSIFICATION~Retail Transmission Rate - Network Service Rate | G27: GENERAL SERVICE 50 to 4,999 kW SERVICE CLASSIFICATION~Retail Transmission Rate - Line and Transformation Connection Service Rate (see Note 1) | H27: LARGE USE SERVICE CLASSIFICATION~Retail Transmission Rate - Network Service Rate | I27: LARGE USE SERVICE CLASSIFICATION~Retail Transmission Rate - Line and Transformation Connection Service Rate (see Note 1) | J27: UNMETERED SCATTERED LOAD SERVICE CLASSIFICATION~Retail Transmission Rate - Network Service Rate | K27: UNMETERED SCATTERED LOAD SERVICE CLASSIFICATION~Retail Transmission Rate - Line and Transformation Connection Service Rate | L27: SENTINEL LIGHTING SERVICE CLASSIFICATION~Retail Transmission Rate - Network Service Rate | M27: SENTINEL LIGHTING SERVICE CLASSIFICATION~Retail Transmission Rate - Line and Transformation Connection Service Rate | N27: STREET LIGHTING SERVICE CLASSIFICATION~Retail Transmission Rate - Network Service Rate | O27: STREET LIGHTING SERVICE CLASSIFICATION~Retail Transmission Rate - Line and Transformation Connection Service Rate | P27: EMBEDDED DISTRIBUTOR SERVICE CLASSIFICATION~Retail Transmission Rate - Network Service Rate | Q27: EMBEDDED DISTRIBUTOR SERVICE CLASSIFICATION~Retail Transmission Rate - Line and Transformation Connection Service Rate
A28: Lakeland Power Distribution Ltd.-Parry Sound Service Area | B28: RESIDENTIAL SERVICE CLASSIFICATION~Retail Transmission Rate - Network Service Rate | C28: RESIDENTIAL SERVICE CLASSIFICATION~Retail Transmission Rate - Line and Transformation Connection Service Rate | D28: GENERAL SERVICE LESS THAN 50 KW SERVICE CLASSIFICATION~Retail Transmission Rate - Network Service Rate | E28: GENERAL SERVICE LESS THAN 50 KW SERVICE CLASSIFICATION~Retail Transmission Rate - Line and Transformation Connection Service Rate | F28: GENERAL SERVICE 50 to 4,999 kW SERVICE CLASSIFICATION~Retail Transmission Rate - Network Service Rate | G28: GENERAL SERVICE 50 to 4,999 kW SERVICE CLASSIFICATION~Retail Transmission Rate - Line and Transformation Connection Service Rate | H28: UNMETERED SCATTERED LOAD SERVICE CLASSIFICATION~Retail Transmission Rate - Network Service Rate | I28: UNMETERED SCATTERED LOAD SERVICE CLASSIFICATION~Retail Transmission Rate - Line and Transformation Connection Service Rate | J28: SENTINEL LIGHTING SERVICE CLASSIFICATION~Retail Transmission Rate - Network Service Rate | K28: SENTINEL LIGHTING SERVICE CLASSIFICATION~Retail Transmission Rate - Line and Transformation Connection Service Rate | L28: STREET LIGHTING SERVICE CLASSIFICATION~Retail Transmission Rate - Network Service Rate | M28: STREET LIGHTING SERVICE CLASSIFICATION~Retail Transmission Rate - Line and Transformation Connection Service Rate
A29: Lakeland Power Distribution Ltd. | B29: RESIDENTIAL SERVICE CLASSIFICATION~Retail Transmission Rate - Network Service Rate | C29: RESIDENTIAL SERVICE CLASSIFICATION~Retail Transmission Rate - Line and Transformation Connection Service Rate | D29: GENERAL SERVICE LESS THAN 50 KW SERVICE CLASSIFICATION~Retail Transmission Rate - Network Service Rate | E29: GENERAL SERVICE LESS THAN 50 KW SERVICE CLASSIFICATION~Retail Transmission Rate - Line and Transformation Connection Service Rate | F29: GENERAL SERVICE 50 to 4,999 kW SERVICE CLASSIFICATION~Retail Transmission Rate - Network Service Rate | G29: GENERAL SERVICE 50 to 4,999 kW SERVICE CLASSIFICATION~Retail Transmission Rate - Line and Transformation Connection Service Rate | H29: UNMETERED SCATTERED LOAD SERVICE CLASSIFICATION~Retail Transmission Rate - Network Service Rate | I29: UNMETERED SCATTERED LOAD SERVICE CLASSIFICATION~Retail Transmission Rate - Line and Transformation Connection Service Rate | J29: SENTINEL LIGHTING SERVICE CLASSIFICATION~Retail Transmission Rate - Network Service Rate | K29: SENTINEL LIGHTING SERVICE CLASSIFICATION~Retail Transmission Rate - Line and Transformation Connection Service Rate | L29: STREET LIGHTING SERVICE CLASSIFICATION~Retail Transmission Rate - Network Service Rate | M29: STREET LIGHTING SERVICE CLASSIFICATION~Retail Transmission Rate - Line and Transformation Connection Service Rate
A30: Newmarket-Tay Power Distribution Ltd.-For Former Midland Power Utility Rate Zone | B30: RESIDENTIAL SERVICE CLASSIFICATION~Retail Transmission Rate - Network Service Rate | C30: RESIDENTIAL SERVICE CLASSIFICATION~Retail Transmission Rate - Line and Transformation Connection Service Rate | D30: GENERAL SERVICE LESS THAN 50 KW SERVICE CLASSIFICATION~Retail Transmission Rate - Network Service Rate | E30: GENERAL SERVICE LESS THAN 50 KW SERVICE CLASSIFICATION~Retail Transmission Rate - Line and Transformation Connection Service Rate | F30: GENERAL SERVICE 50 to 4,999 kW SERVICE CLASSIFICATION~Retail Transmission Rate - Network Service Rate | G30: GENERAL SERVICE 50 to 4,999 kW SERVICE CLASSIFICATION~Retail Transmission Rate - Line and Transformation Connection Service Rate | H30: UNMETERED SCATTERED LOAD SERVICE CLASSIFICATION~Retail Transmission Rate - Network Service Rate | I30: UNMETERED SCATTERED LOAD SERVICE CLASSIFICATION~Retail Transmission Rate - Line and Transformation Connection Service Rate | J30: STREET LIGHTING SERVICE CLASSIFICATION~Retail Transmission Rate - Network Service Rate | K30: STREET LIGHTING SERVICE CLASSIFICATION~Retail Transmission Rate - Line and Transformation Connection Service Rate
A31: Newmarket-Tay Power Distribution Ltd.-For Newmarket-Tay Power Main Rate Zone | B31: RESIDENTIAL SERVICE CLASSIFICATION~Retail Transmission Rate - Network Service Rate | C31: RESIDENTIAL SERVICE CLASSIFICATION~Retail Transmission Rate - Line and Transformation Connection Service Rate | D31: GENERAL SERVICE LESS THAN 50 KW SERVICE CLASSIFICATION~Retail Transmission Rate - Network Service Rate | E31: GENERAL SERVICE LESS THAN 50 KW SERVICE CLASSIFICATION~Retail Transmission Rate - Line and Transformation Connection Service Rate | F31: GENERAL SERVICE 50 to 4,999 kW SERVICE CLASSIFICATION~Retail Transmission Rate - Network Service Rate | G31: GENERAL SERVICE 50 to 4,999 kW SERVICE CLASSIFICATION~Retail Transmission Rate - Line and Transformation Connection Service Rate | H31: UNMETERED SCATTERED LOAD SERVICE CLASSIFICATION~Retail Transmission Rate - Network Service Rate | I31: UNMETERED SCATTERED LOAD SERVICE CLASSIFICATION~Retail Transmission Rate - Line and Transformation Connection Service Rate | J31: SENTINEL LIGHTING SERVICE CLASSIFICATION~Retail Transmission Rate - Network Service Rate | K31: SENTINEL LIGHTING SERVICE CLASSIFICATION~Retail Transmission Rate - Line and Transformation Connection Service Rate | L31: STREET LIGHTING SERVICE CLASSIFICATION~Retail Transmission Rate - Network Service Rate | M31: STREET LIGHTING SERVICE CLASSIFICATION~Retail Transmission Rate - Line and Transformation Connection Service Rate
A32: Bluewater Power Distribution Corporation | B32: RESIDENTIAL SERVICE CLASSIFICATION~Retail Transmission Rate - Network Service Rate | C32: RESIDENTIAL SERVICE CLASSIFICATION~Retail Transmission Rate - Line and Transformation Connection Service Rate | D32: GENERAL SERVICE LESS THAN 50 KW SERVICE CLASSIFICATION~Retail Transmission Rate - Network Service Rate | E32: GENERAL SERVICE LESS THAN 50 KW SERVICE CLASSIFICATION~Retail Transmission Rate - Line and Transformation Connection Service Rate | F32: GENERAL SERVICE 50 TO 999 KW SERVICE CLASSIFICATION~Retail Transmission Rate - Network Service Rate | G32: GENERAL SERVICE 50 TO 999 KW SERVICE CLASSIFICATION~Retail Transmission Rate - Line and Transformation Connection Service Rate | H32: GENERAL SERVICE 1,000 TO 4,999 KW SERVICE CLASSIFICATION~Retail Transmission Rate - Network Service Rate | I32: GENERAL SERVICE 1,000 TO 4,999 KW SERVICE CLASSIFICATION~Retail Transmission Rate - Line and Transformation Connection Service Rate | J32: LARGE USE SERVICE CLASSIFICATION~Retail Transmission Rate - Network Service Rate - Interval Metered | K32: LARGE USE SERVICE CLASSIFICATION~Retail Transmission Rate - Line and Transformation Connection Service Rate - Interval Metered | L32: UNMETERED SCATTERED LOAD SERVICE CLASSIFICATION~Retail Transmission Rate - Network Service Rate | M32: UNMETERED SCATTERED LOAD SERVICE CLASSIFICATION~Retail Transmission Rate - Line and Transformation Connection Service Rate | N32: SENTINEL LIGHTING SERVICE CLASSIFICATION~Retail Transmission Rate - Network Service Rate | O32: SENTINEL LIGHTING SERVICE CLASSIFICATION~Retail Transmission Rate - Line and Transformation Connection Service Rate | P32: STREET LIGHTING SERVICE CLASSIFICATION~Retail Transmission Rate - Network Service Rate | Q32: STREET LIGHTING SERVICE CLASSIFICATION~Retail Transmission Rate - Line and Transformation Connection Service Rate
A33: Atikokan Hydro Inc. | B33: RESIDENTIAL SERVICE CLASSIFICATION~Retail Transmission Rate - Network Service Rate | C33: RESIDENTIAL SERVICE CLASSIFICATION~Retail Transmission Rate - Transformation Connection Service Rate | D33: GENERAL SERVICE LESS THAN 50 KW SERVICE CLASSIFICATION~Retail Transmission Rate - Network Service Rate | E33: GENERAL SERVICE LESS THAN 50 KW SERVICE CLASSIFICATION~Retail Transmission Rate - Transformation Connection Service Rate | F33: GENERAL SERVICE 50 to 4,999 kW SERVICE CLASSIFICATION~Retail Transmission Rate - Network Service Rate | G33: GENERAL SERVICE 50 to 4,999 kW SERVICE CLASSIFICATION~Retail Transmission Rate - Line and Transformation Connection Service Rate | H33: GENERAL SERVICE 50 to 4,999 kW SERVICE CLASSIFICATION~Retail Transmission Rate - Network Service Rate - Interval Metered | I33: GENERAL SERVICE 50 to 4,999 kW SERVICE CLASSIFICATION~Retail Transmission Rate - Line and Transformation Connection Service Rate - Interval Metered | J33: STREET LIGHTING SERVICE CLASSIFICATION~Retail Transmission Rate - Network Service Rate | K33: STREET LIGHTING SERVICE CLASSIFICATION~Retail Transmission Rate - Line and Transformation Connection Service Rate
A34: Burlington Hydro Inc. | B34: RESIDENTIAL SERVICE CLASSIFICATION~Retail Transmission Rate - Network Service Rate | C34: RESIDENTIAL SERVICE CLASSIFICATION~Retail Transmission Rate - Line and Transformation Connection Service Rate | D34: GENERAL SERVICE LESS THAN 50 KW SERVICE CLASSIFICATION~Retail Transmission Rate - Network Service Rate | E34: GENERAL SERVICE LESS THAN 50 KW SERVICE CLASSIFICATION~Retail Transmission Rate - Line and Transformation Connection Service Rate | F34: GENERAL SERVICE 50 to 4,999 kW SERVICE CLASSIFICATION~Retail Transmission Rate - Network Service Rate - Interval Metered | G34: GENERAL SERVICE 50 to 4,999 kW SERVICE CLASSIFICATION~Retail Transmission Rate - Line and Transformation Connection Service Rate - Interval Metered | H34: UNMETERED SCATTERED LOAD SERVICE CLASSIFICATION~Retail Transmission Rate - Network Service Rate | I34: UNMETERED SCATTERED LOAD SERVICE CLASSIFICATION~Retail Transmission Rate - Line and Transformation Connection Service Rate | J34: STREET LIGHTING SERVICE CLASSIFICATION~Retail Transmission Rate - Network Service Rate | K34: STREET LIGHTING SERVICE CLASSIFICATION~Retail Transmission Rate - Line Connection Service Rate
A35: E.L.K. Energy Inc. | B35: RESIDENTIAL SERVICE CLASSIFICATION~Retail Transmission Rate - Network Service Rate | C35: RESIDENTIAL SERVICE CLASSIFICATION~Retail Transmission Rate - Line and Transformation Connection Service Rate | D35: GENERAL SERVICE LESS THAN 50 KW SERVICE CLASSIFICATION~Retail Transmission Rate - Network Service Rate | E35: GENERAL SERVICE LESS THAN 50 KW SERVICE CLASSIFICATION~Retail Transmission Rate - Line and Transformation Connection Service Rate | F35: GENERAL SERVICE 50 to 4,999 kW SERVICE CLASSIFICATION~Retail Transmission Rate - Network Service Rate | G35: GENERAL SERVICE 50 to 4,999 kW SERVICE CLASSIFICATION~Retail Transmission Rate - Line and Transformation Connection Service Rate | H35: UNMETERED SCATTERED LOAD SERVICE CLASSIFICATION~Retail Transmission Rate - Network Service Rate | I35: UNMETERED SCATTERED LOAD SERVICE CLASSIFICATION~Retail Transmission Rate - Line and Transformation Connection Service Rate | J35: SENTINEL LIGHTING SERVICE CLASSIFICATION~Retail Transmission Rate - Network Service Rate | K35: SENTINEL LIGHTING SERVICE CLASSIFICATION~Retail Transmission Rate - Line and Transformation Connection Service Rate | L35: STREET LIGHTING SERVICE CLASSIFICATION~Retail Transmission Rate - Network Service Rate | M35: STREET LIGHTING SERVICE CLASSIFICATION~Retail Transmission Rate - Line and Transformation Connection Service Rate | N35: EMBEDDED DISTRIBUTOR SERVICE CLASSIFICATION~Retail Transmission Rate - Network Service Rate | O35: EMBEDDED DISTRIBUTOR SERVICE CLASSIFICATION~Retail Transmission Rate - Line and Transformation Connection Service Rate
A36: EPCOR Electricity Distribution Ontario Inc. | B36: RESIDENTIAL SERVICE CLASSIFICATION~Retail Transmission Rate - Network Service Rate | C36: RESIDENTIAL SERVICE CLASSIFICATION~Retail Transmission Rate - Line and Transformation Connection Service Rate | D36: GENERAL SERVICE LESS THAN 50 KW SERVICE CLASSIFICATION~Retail Transmission Rate - Network Service Rate | E36: GENERAL SERVICE LESS THAN 50 KW SERVICE CLASSIFICATION~Retail Transmission Rate - Line and Transformation Connection Service Rate | F36: GENERAL SERVICE 50 to 4,999 kW SERVICE CLASSIFICATION~Retail Transmission Rate - Network Service Rate | G36: GENERAL SERVICE 50 to 4,999 kW SERVICE CLASSIFICATION~Retail Transmission Rate - Line and Transformation Connection Service Rate | H36: UNMETERED SCATTERED LOAD SERVICE CLASSIFICATION~Retail Transmission Rate - Network Service Rate | I36: UNMETERED SCATTERED LOAD SERVICE CLASSIFICATION~Retail Transmission Rate - Line and Transformation Connection Service Rate | J36: STREET LIGHTING SERVICE CLASSIFICATION~Retail Transmission Rate - Network Service Rate | K36: STREET LIGHTING SERVICE CLASSIFICATION~Retail Transmission Rate - Line and Transformation Connection Service Rate
A37: Essex Powerlines Corporation | B37: RESIDENTIAL SERVICE CLASSIFICATION~Retail Transmission Rate - Network Service Rate | C37: RESIDENTIAL SERVICE CLASSIFICATION~Retail Transmission Rate - Line and Transformation Connection Service Rate | D37: GENERAL SERVICE LESS THAN 50 KW SERVICE CLASSIFICATION~Retail Transmission Rate - Network Service Rate | E37: GENERAL SERVICE LESS THAN 50 KW SERVICE CLASSIFICATION~Retail Transmission Rate - Line and Transformation Connection Service Rate | F37: GENERAL SERVICE 50 to 4,999 kW SERVICE CLASSIFICATION~Retail Transmission Rate - Network Service Rate | G37: GENERAL SERVICE 50 to 4,999 kW SERVICE CLASSIFICATION~Retail Transmission Rate - Line and Transformation Connection Service Rate | H37: GENERAL SERVICE 50 to 4,999 kW SERVICE CLASSIFICATION~Retail Transmission Rate - Network Service Rate - Interval Metered | I37: GENERAL SERVICE 50 to 4,999 kW SERVICE CLASSIFICATION~Retail Transmission Rate - Line and Transformation Connection Service Rate - Interval Metered | J37: UNMETERED SCATTERED LOAD SERVICE CLASSIFICATION~Retail Transmission Rate - Network Service Rate | K37: UNMETERED SCATTERED LOAD SERVICE CLASSIFICATION~Retail Transmission Rate - Line and Transformation Connection Service Rate | L37: SENTINEL LIGHTING SERVICE CLASSIFICATION~Retail Transmission Rate - Network Service Rate | M37: SENTINEL LIGHTING SERVICE CLASSIFICATION~Retail Transmission Rate - Line and Transformation Connection Service Rate | N37: STREET LIGHTING SERVICE CLASSIFICATION~Retail Transmission Rate - Network Service Rate | O37: STREET LIGHTING SERVICE CLASSIFICATION~Retail Transmission Rate - Line and Transformation Connection Service Rate
A38: Fort Frances Power Corporation | B38: RESIDENTIAL SERVICE CLASSIFICATION~Retail Transmission Rate - Network Service Rate | C38: RESIDENTIAL SERVICE CLASSIFICATION~Retail Transmission Rate - Line and Transformation Connection Service Rate | D38: GENERAL SERVICE LESS THAN 50 KW SERVICE CLASSIFICATION~Retail Transmission Rate - Network Service Rate | E38: GENERAL SERVICE LESS THAN 50 KW SERVICE CLASSIFICATION~Retail Transmission Rate - Line and Transformation Connection Service Rate | F38: GENERAL SERVICE 50 to 4,999 kW SERVICE CLASSIFICATION~Retail Transmission Rate - Network Service Rate | G38: GENERAL SERVICE 50 to 4,999 kW SERVICE CLASSIFICATION~Retail Transmission Rate - Line and Transformation Connection Service Rate | H38: UNMETERED SCATTERED LOAD SERVICE CLASSIFICATION~Retail Transmission Rate - Network Service Rate | I38: UNMETERED SCATTERED LOAD SERVICE CLASSIFICATION~Retail Transmission Rate - Line and Transformation Connection Service Rate | J38: STREET LIGHTING SERVICE CLASSIFICATION~Retail Transmission Rate - Network Service Rate | K38: STREET LIGHTING SERVICE CLASSIFICATION~Retail Transmission Rate - Line and Transformation Connection Service Rate
A39: Greater Sudbury Hydro Inc. | B39: RESIDENTIAL SERVICE CLASSIFICATION~Retail Transmission Rate - Network Service Rate | C39: RESIDENTIAL SERVICE CLASSIFICATION~Retail Transmission Rate - Line and Transformation Connection Service Rate | D39: GENERAL SERVICE LESS THAN 50 KW SERVICE CLASSIFICATION~Retail Transmission Rate - Network Service Rate | E39: GENERAL SERVICE LESS THAN 50 KW SERVICE CLASSIFICATION~Retail Transmission Rate - Line and Transformation Connection Service Rate | F39: GENERAL SERVICE 50 to 4,999 kW SERVICE CLASSIFICATION~Retail Transmission Rate - Network Service Rate | G39: GENERAL SERVICE 50 to 4,999 kW SERVICE CLASSIFICATION~Retail Transmission Rate - Line and Transformation Connection Service Rate | H39: UNMETERED SCATTERED LOAD SERVICE CLASSIFICATION~Retail Transmission Rate - Network Service Rate | I39: UNMETERED SCATTERED LOAD SERVICE CLASSIFICATION~Retail Transmission Rate - Line and Transformation Connection Service Rate | J39: SENTINEL LIGHTING SERVICE CLASSIFICATION~Retail Transmission Rate - Network Service Rate | K39: SENTINEL LIGHTING SERVICE CLASSIFICATION~Retail Transmission Rate - Line and Transformation Connection Service Rate | L39: STREET LIGHTING SERVICE CLASSIFICATION~Retail Transmission Rate - Network Service Rate | M39: STREET LIGHTING SERVICE CLASSIFICATION~Retail Transmission Rate - Line and Transformation Connection Service Rate
A40: Halton Hills Hydro Inc. | B40: RESIDENTIAL SERVICE CLASSIFICATION~Retail Transmission Rate - Network Service Rate | C40: RESIDENTIAL SERVICE CLASSIFICATION~Retail Transmission Rate - Line and Transformation Connection Service Rate | D40: GENERAL SERVICE LESS THAN 50 KW SERVICE CLASSIFICATION~Retail Transmission Rate - Network Service Rate | E40: GENERAL SERVICE LESS THAN 50 KW SERVICE CLASSIFICATION~Retail Transmission Rate - Line and Transformation Connection Service Rate | F40: GENERAL SERVICE 50 TO 999 KW SERVICE CLASSIFICATION~Retail Transmission Rate - Network Service Rate | G40: GENERAL SERVICE 50 TO 999 KW SERVICE CLASSIFICATION~Retail Transmission Rate - Line and Transformation Connection Service Rate | H40: GENERAL SERVICE 1,000 TO 4,999 KW SERVICE CLASSIFICATION~Retail Transmission Rate - Network Service Rate | I40: GENERAL SERVICE 1,000 TO 4,999 KW SERVICE CLASSIFICATION~Retail Transmission Rate - Line and Transformation Connection Service Rate | J40: UNMETERED SCATTERED LOAD SERVICE CLASSIFICATION~Retail Transmission Rate - Network Service Rate | K40: UNMETERED SCATTERED LOAD SERVICE CLASSIFICATION~Retail Transmission Rate - Line and Transformation Connection Service Rate | L40: SENTINEL LIGHTING SERVICE CLASSIFICATION~Retail Transmission Rate - Network Service Rate | M40: SENTINEL LIGHTING SERVICE CLASSIFICATION~Retail Transmission Rate - Line and Transformation Connection Service Rate | N40: STREET LIGHTING SERVICE CLASSIFICATION~Retail Transmission Rate - Network Service Rate | O40: STREET LIGHTING SERVICE CLASSIFICATION~Retail Transmission Rate - Line and Transformation Connection Service Rate
A41: Hydro One Networks Inc.-Former Haldimand County Hydro Inc. Service Area | B41: RESIDENTIAL SERVICE CLASSIFICATION~Retail Transmission Rate - Network Service Rate | C41: RESIDENTIAL SERVICE CLASSIFICATION~Retail Transmission Rate - Line and Transformation Connection Service Rate | D41: GENERAL SERVICE LESS THAN 50 KW SERVICE CLASSIFICATION~Retail Transmission Rate - Network Service Rate | E41: GENERAL SERVICE LESS THAN 50 KW SERVICE CLASSIFICATION~Retail Transmission Rate - Line and Transformation Connection Service Rate | F41: GENERAL SERVICE 50 to 4,999 kW SERVICE CLASSIFICATION~Retail Transmission Rate - Network Service Rate | G41: GENERAL SERVICE 50 to 4,999 kW SERVICE CLASSIFICATION~Retail Transmission Rate - Line and Transformation Connection Service Rate | H41: UNMETERED SCATTERED LOAD SERVICE CLASSIFICATION~Retail Transmission Rate - Network Service Rate | I41: UNMETERED SCATTERED LOAD SERVICE CLASSIFICATION~Retail Transmission Rate - Line and Transformation Connection Service Rate | J41: SENTINEL LIGHTING SERVICE CLASSIFICATION~Retail Transmission Rate - Network Service Rate | K41: SENTINEL LIGHTING SERVICE CLASSIFICATION~Retail Transmission Rate - Line and Transformation Connection Service Rate | L41: STREET LIGHTING SERVICE CLASSIFICATION~Retail Transmission Rate - Network Service Rate | M41: STREET LIGHTING SERVICE CLASSIFICATION~Retail Transmission Rate - Line and Transformation Connection Service Rate | N41: EMBEDDED DISTRIBUTOR SERVICE CLASSIFICATION FOR HYDRO ONE NETWORKS INC.~Retail Transmission Rate - Network Service Rate | O41: EMBEDDED DISTRIBUTOR SERVICE CLASSIFICATION FOR HYDRO ONE NETWORKS INC.~Retail Transmission Rate - Line and Transformation Connection Service Rate
A42: Hydro One Networks Inc.-Former Norfolk Power Distribution Inc. Service Area | B42: RESIDENTIAL SERVICE CLASSIFICATION~Retail Transmission Rate - Network Service Rate | C42: RESIDENTIAL SERVICE CLASSIFICATION~Retail Transmission Rate - Line and Transformation Connection Service Rate | D42: GENERAL SERVICE LESS THAN 50 KW SERVICE CLASSIFICATION~Retail Transmission Rate - Network Service Rate | E42: GENERAL SERVICE LESS THAN 50 KW SERVICE CLASSIFICATION~Retail Transmission Rate - Line and Transformation Connection Service Rate | F42: GENERAL SERVICE 50 to 4,999 kW SERVICE CLASSIFICATION~Retail Transmission Rate - Network Service Rate | G42: GENERAL SERVICE 50 to 4,999 kW SERVICE CLASSIFICATION~Retail Transmission Rate - Line and Transformation Connection Service Rate | H42: UNMETERED SCATTERED LOAD SERVICE CLASSIFICATION~Retail Transmission Rate - Network Service Rate | I42: UNMETERED SCATTERED LOAD SERVICE CLASSIFICATION~Retail Transmission Rate - Line and Transformation Connection Service Rate | J42: SENTINEL LIGHTING SERVICE CLASSIFICATION~Retail Transmission Rate - Network Service Rate | K42: SENTINEL LIGHTING SERVICE CLASSIFICATION~Retail Transmission Rate - Line and Transformation Connection Service Rate | L42: STREET LIGHTING SERVICE CLASSIFICATION~Retail Transmission Rate - Network Service Rate | M42: STREET LIGHTING SERVICE CLASSIFICATION~Retail Transmission Rate - Line and Transformation Connection Service Rate
A43: Hydro One Networks Inc.-Former Woodstock Hydro Services Inc. Service Area | B43: RESIDENTIAL SERVICE CLASSIFICATION~Retail Transmission Rate - Network Service Rate | C43: RESIDENTIAL SERVICE CLASSIFICATION~Retail Transmission Rate - Line and Transformation Connection Service Rate | D43: GENERAL SERVICE LESS THAN 50 KW SERVICE CLASSIFICATION~Retail Transmission Rate - Network Service Rate | E43: GENERAL SERVICE LESS THAN 50 KW SERVICE CLASSIFICATION~Retail Transmission Rate - Line and Transformation Connection Service Rate | F43: GENERAL SERVICE 50 TO 999 KW SERVICE CLASSIFICATION~Retail Transmission Rate - Network Service Rate | G43: GENERAL SERVICE 50 TO 999 KW SERVICE CLASSIFICATION~Retail Transmission Rate - Line and Transformation Connection Service Rate | H43: GENERAL SERVICE GREATER THAN 1,000 KW SERVICE CLASSIFICATION~Retail Transmission Rate - Network Service Rate | I43: GENERAL SERVICE GREATER THAN 1,000 KW SERVICE CLASSIFICATION~Retail Transmission Rate - Line and Transformation Connection Service Rate | J43: UNMETERED SCATTERED LOAD SERVICE CLASSIFICATION~Retail Transmission Rate - Network Service Rate | K43: UNMETERED SCATTERED LOAD SERVICE CLASSIFICATION~Retail Transmission Rate - Line and Transformation Connection Service Rate | L43: STREET LIGHTING SERVICE CLASSIFICATION~Retail Transmission Rate - Network Service Rate | M43: STREET LIGHTING SERVICE CLASSIFICATION~Retail Transmission Rate - Line and Transformation Connection Service Rate
A44: Synergy North Corporation-Kenora Rate Zone | B44: RESIDENTIAL SERVICE CLASSIFICATION~Retail Transmission Rate - Network Service Rate | C44: RESIDENTIAL SERVICE CLASSIFICATION~Retail Transmission Rate - Line and Transformation Connection Service Rate | D44: GENERAL SERVICE LESS THAN 50 KW SERVICE CLASSIFICATION~Retail Transmission Rate - Network Service Rate | E44: GENERAL SERVICE LESS THAN 50 KW SERVICE CLASSIFICATION~Retail Transmission Rate - Line and Transformation Connection Service Rate | F44: GENERAL SERVICE 50 to 4,999 kW SERVICE CLASSIFICATION~Retail Transmission Rate - Network Service Rate | G44: GENERAL SERVICE 50 to 4,999 kW SERVICE CLASSIFICATION~Retail Transmission Rate - Line and Transformation Connection Service Rate | H44: UNMETERED SCATTERED LOAD SERVICE CLASSIFICATION~Retail Transmission Rate - Network Service Rate | I44: UNMETERED SCATTERED LOAD SERVICE CLASSIFICATION~Retail Transmission Rate - Line and Transformation Connection Service Rate | J44: STREET LIGHTING SERVICE CLASSIFICATION~Retail Transmission Rate - Network Service Rate | K44: STREET LIGHTING SERVICE CLASSIFICATION~Retail Transmission Rate - Line and Transformation Connection Service Rate
A45: London Hydro Inc. | B45: RESIDENTIAL SERVICE CLASSIFICATION~Retail Transmission Rate - Network Service Rate | C45: RESIDENTIAL SERVICE CLASSIFICATION~Retail Transmission Rate - Line and Transformation Connection Service Rate | D45: GENERAL SERVICE LESS THAN 50 KW SERVICE CLASSIFICATION~Retail Transmission Rate - Network Service Rate | E45: GENERAL SERVICE LESS THAN 50 KW SERVICE CLASSIFICATION~Retail Transmission Rate - Line and Transformation Connection Service Rate | F45: GENERAL SERVICE 50 to 4,999 kW SERVICE CLASSIFICATION~Retail Transmission Rate - Network Service Rate | G45: GENERAL SERVICE 50 to 4,999 kW SERVICE CLASSIFICATION~Retail Transmission Rate - Line and Transformation Connection Service Rate | H45: GENERAL SERVICE 50 to 4,999 kW SERVICE CLASSIFICATION~Retail Transmission Rate - Network Service Rate - Interval Metered | I45: GENERAL SERVICE 50 to 4,999 kW SERVICE CLASSIFICATION~Retail Transmission Rate - Line and Transformation Connection Service Rate - Interval Metered | J45: GENERAL SERVICE 1,000 TO 4,999 KW (CO-GENERATION) SERVICE CLASSIFICATION~Retail Transmission Rate - Network Service Rate | K45: GENERAL SERVICE 1,000 TO 4,999 KW (CO-GENERATION) SERVICE CLASSIFICATION~Retail Transmission Rate - Line and Transformation Connection Service Rate | L45: LARGE USE SERVICE CLASSIFICATION~Retail Transmission Rate - Network Service Rate - Interval Metered | M45: LARGE USE SERVICE CLASSIFICATION~Retail Transmission Rate - Line and Transformation Connection Service Rate - Interval Metered | N45: STREET LIGHTING SERVICE CLASSIFICATION~Retail Transmission Rate - Network Service Rate | O45: STREET LIGHTING SERVICE CLASSIFICATION~Retail Transmission Rate - Line and Transformation Connection Service Rate | P45: SENTINEL LIGHTING SERVICE CLASSIFICATION~Retail Transmission Rate - Network Service Rate | Q45: SENTINEL LIGHTING SERVICE CLASSIFICATION~Retail Transmission Rate - Line and Transformation Connection Service Rate | R45: UNMETERED SCATTERED LOAD SERVICE CLASSIFICATION~Retail Transmission Rate - Network Service Rate | S45: UNMETERED SCATTERED LOAD SERVICE CLASSIFICATION~Retail Transmission Rate - Line and Transformation Connection Service Rate
A46: Milton Hydro Distribution Inc. | B46: RESIDENTIAL SERVICE CLASSIFICATION~Retail Transmission Rate - Network Service Rate | C46: RESIDENTIAL SERVICE CLASSIFICATION~Retail Transmission Rate - Line and Transformation Connection Service Rate | D46: GENERAL SERVICE LESS THAN 50 KW SERVICE CLASSIFICATION~Retail Transmission Rate - Network Service Rate | E46: GENERAL SERVICE LESS THAN 50 KW SERVICE CLASSIFICATION~Retail Transmission Rate - Line and Transformation Connection Service Rate | F46: GENERAL SERVICE 50 TO 999 KW SERVICE CLASSIFICATION~Retail Transmission Rate - Network Service Rate | G46: GENERAL SERVICE 50 TO 999 KW SERVICE CLASSIFICATION~Retail Transmission Rate - Line and Transformation Connection Service Rate | H46: GENERAL SERVICE 1,000 TO 4,999 KW SERVICE CLASSIFICATION~Retail Transmission Rate - Network Service Rate | I46: GENERAL SERVICE 1,000 TO 4,999 KW SERVICE CLASSIFICATION~Retail Transmission Rate - Line and Transformation Connection Service Rate | J46: LARGE USE SERVICE CLASSIFICATION~Retail Transmission Rate - Network Service Rate - Interval Metered | K46: LARGE USE SERVICE CLASSIFICATION~Retail Transmission Rate - Line and Transformation Connection Service Rate - Interval Metered | L46: UNMETERED SCATTERED LOAD SERVICE CLASSIFICATION~Retail Transmission Rate - Network Service Rate | M46: UNMETERED SCATTERED LOAD SERVICE CLASSIFICATION~Retail Transmission Rate - Line and Transformation Connection Service Rate | N46: SENTINEL LIGHTING SERVICE CLASSIFICATION~Retail Transmission Rate - Network Service Rate | O46: SENTINEL LIGHTING SERVICE CLASSIFICATION~Retail Transmission Rate - Line and Transformation Connection Service Rate | P46: STREET LIGHTING SERVICE CLASSIFICATION~Retail Transmission Rate - Network Service Rate | Q46: STREET LIGHTING SERVICE CLASSIFICATION~Retail Transmission Rate - Line and Transformation Connection Service Rate
A47: North Bay Hydro Distribution Limited | B47: RESIDENTIAL SERVICE CLASSIFICATION~Retail Transmission Rate - Network Service Rate | C47: RESIDENTIAL SERVICE CLASSIFICATION~Retail Transmission Rate - Line and Transformation Connection Service Rate | D47: GENERAL SERVICE LESS THAN 50 KW SERVICE CLASSIFICATION~Retail Transmission Rate - Network Service Rate | E47: GENERAL SERVICE LESS THAN 50 KW SERVICE CLASSIFICATION~Retail Transmission Rate - Line and Transformation Connection Service Rate | F47: GENERAL SERVICE 50 TO 2,999 KW SERVICE CLASSIFICATION~Retail Transmission Rate - Network Service Rate | G47: GENERAL SERVICE 50 TO 2,999 KW SERVICE CLASSIFICATION~Retail Transmission Rate - Line and Transformation Connection Service Rate | H47: GENERAL SERVICE 3,000 TO 4,999 KW SERVICE CLASSIFICATION~Retail Transmission Rate - Network Service Rate - Interval Metered | I47: GENERAL SERVICE 3,000 TO 4,999 KW SERVICE CLASSIFICATION~Retail Transmission Rate - Line and Transformation Connection Service Rate - Interval Metered | J47: UNMETERED SCATTERED LOAD SERVICE CLASSIFICATION~Retail Transmission Rate - Network Service Rate | K47: UNMETERED SCATTERED LOAD SERVICE CLASSIFICATION~Retail Transmission Rate - Line and Transformation Connection Service Rate | L47: SENTINEL LIGHTING SERVICE CLASSIFICATION~Retail Transmission Rate - Network Service Rate | M47: SENTINEL LIGHTING SERVICE CLASSIFICATION~Retail Transmission Rate - Line and Transformation Connection Service Rate | N47: STREET LIGHTING SERVICE CLASSIFICATION~Retail Transmission Rate - Network Service Rate | O47: STREET LIGHTING SERVICE CLASSIFICATION~Retail Transmission Rate - Line and Transformation Connection Service Rate
A48: Northern Ontario Wires Inc. | B48: RESIDENTIAL SERVICE CLASSIFICATION~Retail Transmission Rate - Network Service Rate | C48: RESIDENTIAL SERVICE CLASSIFICATION~Retail Transmission Rate - Line and Transformation Connection Service Rate | D48: GENERAL SERVICE LESS THAN 50 KW SERVICE CLASSIFICATION~Retail Transmission Rate - Network Service Rate | E48: GENERAL SERVICE LESS THAN 50 KW SERVICE CLASSIFICATION~Retail Transmission Rate - Line and Transformation Connection Service Rate | F48: GENERAL SERVICE 50 to 4,999 kW SERVICE CLASSIFICATION~Retail Transmission Rate - Network Service Rate | G48: GENERAL SERVICE 50 to 4,999 kW SERVICE CLASSIFICATION~Retail Transmission Rate - Line and Transformation Connection Service Rate | H48: UNMETERED SCATTERED LOAD SERVICE CLASSIFICATION~Retail Transmission Rate - Network Service Rate | I48: UNMETERED SCATTERED LOAD SERVICE CLASSIFICATION~Retail Transmission Rate - Line and Transformation Connection Service Rate | J48: STREET LIGHTING SERVICE CLASSIFICATION~Retail Transmission Rate - Network Service Rate | K48: STREET LIGHTING SERVICE CLASSIFICATION~Retail Transmission Rate - Line and Transformation Connection Service Rate
A49: Niagara Peninsula Energy Inc. | B49: RESIDENTIAL SERVICE CLASSIFICATION~Retail Transmission Rate - Network Service Rate | C49: RESIDENTIAL SERVICE CLASSIFICATION~Retail Transmission Rate - Line and Transformation Connection Service Rate | D49: GENERAL SERVICE LESS THAN 50 KW SERVICE CLASSIFICATION~Retail Transmission Rate - Network Service Rate | E49: GENERAL SERVICE LESS THAN 50 KW SERVICE CLASSIFICATION~Retail Transmission Rate - Line and Transformation Connection Service Rate | F49: GENERAL SERVICE 50 to 4,999 kW SERVICE CLASSIFICATION~Retail Transmission Rate - Network Service Rate | G49: GENERAL SERVICE 50 to 4,999 kW SERVICE CLASSIFICATION~Retail Transmission Rate - Line and Transformation Connection Service Rate | H49: UNMETERED SCATTERED LOAD SERVICE CLASSIFICATION~Retail Transmission Rate - Network Service Rate | I49: UNMETERED SCATTERED LOAD SERVICE CLASSIFICATION~Retail Transmission Rate - Line and Transformation Connection Service Rate | J49: SENTINEL LIGHTING SERVICE CLASSIFICATION~Retail Transmission Rate - Network Service Rate | K49: SENTINEL LIGHTING SERVICE CLASSIFICATION~Retail Transmission Rate - Line and Transformation Connection Service Rate | L49: STREET LIGHTING SERVICE CLASSIFICATION~Retail Transmission Rate - Network Service Rate | M49: STREET LIGHTING SERVICE CLASSIFICATION~Retail Transmission Rate - Line and Transformation Connection Service Rate
A50: Orangeville Hydro Limited | B50: RESIDENTIAL SERVICE CLASSIFICATION~Retail Transmission Rate - Network Service Rate | C50: RESIDENTIAL SERVICE CLASSIFICATION~Retail Transmission Rate - Line and Transformation Connection Service Rate | D50: GENERAL SERVICE LESS THAN 50 KW SERVICE CLASSIFICATION~Retail Transmission Rate - Network Service Rate | E50: GENERAL SERVICE LESS THAN 50 KW SERVICE CLASSIFICATION~Retail Transmission Rate - Line and Transformation Connection Service Rate | F50: GENERAL SERVICE 50 to 4,999 kW SERVICE CLASSIFICATION~Retail Transmission Rate - Network Service Rate | G50: GENERAL SERVICE 50 to 4,999 kW SERVICE CLASSIFICATION~Retail Transmission Rate - Line and Transformation Connection Service Rate | H50: SENTINEL LIGHTING SERVICE CLASSIFICATION~Retail Transmission Rate - Network Service Rate | I50: SENTINEL LIGHTING SERVICE CLASSIFICATION~Retail Transmission Rate - Line and Transformation Connection Service Rate | J50: STREET LIGHTING SERVICE CLASSIFICATION~Retail Transmission Rate - Network Service Rate | K50: STREET LIGHTING SERVICE CLASSIFICATION~Retail Transmission Rate - Line and Transformation Connection Service Rate | L50: UNMETERED SCATTERED LOAD SERVICE CLASSIFICATION~Retail Transmission Rate - Network Service Rate | M50: UNMETERED SCATTERED LOAD SERVICE CLASSIFICATION~Retail Transmission Rate - Line and Transformation Connection Service Rate
A51: Orillia Power Distribution Corporation | B51: RESIDENTIAL SERVICE CLASSIFICATION~Retail Transmission Rate - Network Service Rate | C51: RESIDENTIAL SERVICE CLASSIFICATION~Retail Transmission Rate - Line and Transformation Connection Service Rate | D51: GENERAL SERVICE LESS THAN 50 KW SERVICE CLASSIFICATION~Retail Transmission Rate - Network Service Rate | E51: GENERAL SERVICE LESS THAN 50 KW SERVICE CLASSIFICATION~Retail Transmission Rate - Line and Transformation Connection Service Rate | F51: GENERAL SERVICE 50 to 4,999 kW SERVICE CLASSIFICATION~Retail Transmission Rate - Network Service Rate | G51: GENERAL SERVICE 50 to 4,999 kW SERVICE CLASSIFICATION~Retail Transmission Rate - Line and Transformation Connection Service Rate | H51: UNMETERED SCATTERED LOAD SERVICE CLASSIFICATION~Retail Transmission Rate - Network Service Rate | I51: UNMETERED SCATTERED LOAD SERVICE CLASSIFICATION~Retail Transmission Rate - Line and Transformation Connection Service Rate | J51: SENTINEL LIGHTING SERVICE CLASSIFICATION~Retail Transmission Rate - Network Service Rate | K51: SENTINEL LIGHTING SERVICE CLASSIFICATION~Retail Transmission Rate - Line and Transformation Connection Service Rate | L51: STREET LIGHTING SERVICE CLASSIFICATION~Retail Transmission Rate - Network Service Rate | M51: STREET LIGHTING SERVICE CLASSIFICATION~Retail Transmission Rate - Line and Transformation Connection Service Rate
A52: Ottawa River Power Corporation | B52: RESIDENTIAL SERVICE CLASSIFICATION~Retail Transmission Rate - Network Service Rate | C52: RESIDENTIAL SERVICE CLASSIFICATION~Retail Transmission Rate - Line and Transformation Connection Service Rate | D52: GENERAL SERVICE LESS THAN 50 KW SERVICE CLASSIFICATION~Retail Transmission Rate - Network Service Rate | E52: GENERAL SERVICE LESS THAN 50 KW SERVICE CLASSIFICATION~Retail Transmission Rate - Line and Transformation Connection Service Rate | F52: GENERAL SERVICE 50 to 4,999 kW SERVICE CLASSIFICATION~Retail Transmission Rate - Network Service Rate | G52: GENERAL SERVICE 50 to 4,999 kW SERVICE CLASSIFICATION~Retail Transmission Rate - Line and Transformation Connection Service Rate | H52: SENTINEL LIGHTING SERVICE CLASSIFICATION~Retail Transmission Rate - Network Service Rate | I52: SENTINEL LIGHTING SERVICE CLASSIFICATION~Retail Transmission Rate - Line and Transformation Connection Service Rate | J52: STREET LIGHTING SERVICE CLASSIFICATION~Retail Transmission Rate - Network Service Rate | K52: STREET LIGHTING SERVICE CLASSIFICATION~Retail Transmission Rate - Line and Transformation Connection Service Rate | L52: UNMETERED SCATTERED LOAD SERVICE CLASSIFICATION~Retail Transmission Rate - Network Service Rate | M52: UNMETERED SCATTERED LOAD SERVICE CLASSIFICATION~Retail Transmission Rate - Line and Transformation Connection Service Rate
A53: Peterborough Distribution Incorporated | B53: RESIDENTIAL SERVICE CLASSIFICATION~Retail Transmission Rate - Network Service Rate | C53: RESIDENTIAL SERVICE CLASSIFICATION~Retail Transmission Rate - Line and Transformation Connection Service Rate | D53: GENERAL SERVICE LESS THAN 50 KW SERVICE CLASSIFICATION~Retail Transmission Rate - Network Service Rate | E53: GENERAL SERVICE LESS THAN 50 KW SERVICE CLASSIFICATION~Retail Transmission Rate - Line and Transformation Connection Service Rate | F53: GENERAL SERVICE 50 to 4,999 kW SERVICE CLASSIFICATION~Retail Transmission Rate - Network Service Rate | G53: GENERAL SERVICE 50 to 4,999 kW SERVICE CLASSIFICATION~Retail Transmission Rate - Line and Transformation Connection Service Rate | H53: LARGE USE SERVICE CLASSIFICATION~Retail Transmission Rate - Network Service Rate | I53: LARGE USE SERVICE CLASSIFICATION~Retail Transmission Rate - Line and Transformation Connection Service Rate | J53: UNMETERED SCATTERED LOAD SERVICE CLASSIFICATION~Retail Transmission Rate - Network Service Rate | K53: UNMETERED SCATTERED LOAD SERVICE CLASSIFICATION~Retail Transmission Rate - Line and Transformation Connection Service Rate | L53: SENTINEL LIGHTING SERVICE CLASSIFICATION~Retail Transmission Rate - Network Service Rate | M53: SENTINEL LIGHTING SERVICE CLASSIFICATION~Retail Transmission Rate - Line and Transformation Connection Service Rate | N53: STREET LIGHTING SERVICE CLASSIFICATION~Retail Transmission Rate - Network Service Rate | O53: STREET LIGHTING SERVICE CLASSIFICATION~Retail Transmission Rate - Line and Transformation Connection Service Rate
A54: Rideau St. Lawrence Distribution Inc. | B54: RESIDENTIAL SERVICE CLASSIFICATION~Retail Transmission Rate - Network Service Rate | C54: RESIDENTIAL SERVICE CLASSIFICATION~Retail Transmission Rate - Line and Transformation Connection Service Rate | D54: GENERAL SERVICE LESS THAN 50 KW SERVICE CLASSIFICATION~Retail Transmission Rate - Network Service Rate | E54: GENERAL SERVICE LESS THAN 50 KW SERVICE CLASSIFICATION~Retail Transmission Rate - Line and Transformation Connection Service Rate | F54: GENERAL SERVICE 50 to 4,999 kW SERVICE CLASSIFICATION~Retail Transmission Rate - Network Service Rate | G54: GENERAL SERVICE 50 to 4,999 kW SERVICE CLASSIFICATION~Retail Transmission Rate - Line and Transformation Connection Service Rate | H54: GENERAL SERVICE 50 to 4,999 kW SERVICE CLASSIFICATION~Retail Transmission Rate - Network Service Rate - Interval Metered | I54: GENERAL SERVICE 50 to 4,999 kW SERVICE CLASSIFICATION~Retail Transmission Rate - Line and Transformation Connection Service Rate - Interval Metered | J54: UNMETERED SCATTERED LOAD SERVICE CLASSIFICATION~Retail Transmission Rate - Network Service Rate | K54: UNMETERED SCATTERED LOAD SERVICE CLASSIFICATION~Retail Transmission Rate - Line and Transformation Connection Service Rate | L54: SENTINEL LIGHTING SERVICE CLASSIFICATION~Retail Transmission Rate - Network Service Rate | M54: SENTINEL LIGHTING SERVICE CLASSIFICATION~Retail Transmission Rate - Line and Transformation Connection Service Rate | N54: STREET LIGHTING SERVICE CLASSIFICATION~Retail Transmission Rate - Network Service Rate | O54: STREET LIGHTING SERVICE CLASSIFICATION~Retail Transmission Rate - Line and Transformation Connection Service Rate
A55: Sioux Lookout Hydro Inc. | B55: RESIDENTIAL SERVICE CLASSIFICATION~Retail Transmission Rate - Network Service Rate | C55: RESIDENTIAL SERVICE CLASSIFICATION~Retail Transmission Rate - Line and Transformation Connection Service Rate | D55: GENERAL SERVICE LESS THAN 50 KW SERVICE CLASSIFICATION~Retail Transmission Rate - Network Service Rate | E55: GENERAL SERVICE LESS THAN 50 KW SERVICE CLASSIFICATION~Retail Transmission Rate - Line and Transformation Connection Service Rate | F55: GENERAL SERVICE 50 to 4,999 kW SERVICE CLASSIFICATION~Retail Transmission Rate - Network Service Rate | G55: GENERAL SERVICE 50 to 4,999 kW SERVICE CLASSIFICATION~Retail Transmission Rate - Line and Transformation Connection Service Rate | H55: GENERAL SERVICE 50 to 4,999 kW SERVICE CLASSIFICATION~Retail Transmission Rate - Network Service Rate - Interval Metered > 1,000 kW | I55: GENERAL SERVICE 50 to 4,999 kW SERVICE CLASSIFICATION~Retail Transmission Rate - Line and Transformation Connection Service Rate - Interval Metered > 1,000 kW | J55: STREET LIGHTING SERVICE CLASSIFICATION~Retail Transmission Rate - Network Service Rate | K55: STREET LIGHTING SERVICE CLASSIFICATION~Retail Transmission Rate - Line and Transformation Connection Service Rate
A56: Synergy North Corporation-Thunder Bay Rate Zone | B56: RESIDENTIAL SERVICE CLASSIFICATION~Retail Transmission Rate - Network Service Rate | C56: RESIDENTIAL SERVICE CLASSIFICATION~Retail Transmission Rate - Line and Transformation Connection Service Rate | D56: GENERAL SERVICE LESS THAN 50 KW SERVICE CLASSIFICATION~Retail Transmission Rate - Network Service Rate | E56: GENERAL SERVICE LESS THAN 50 KW SERVICE CLASSIFICATION~Retail Transmission Rate - Line and Transformation Connection Service Rate | F56: GENERAL SERVICE 50 TO 999 KW SERVICE CLASSIFICATION~Retail Transmission Rate - Network Service Rate | G56: GENERAL SERVICE 50 TO 999 KW SERVICE CLASSIFICATION~Retail Transmission Rate - Line and Transformation Connection Service Rate | H56: GENERAL SERVICE 50 TO 999 KW SERVICE CLASSIFICATION~Retail Transmission Rate - Network Service Rate - Interval Metered | I56: GENERAL SERVICE 50 TO 999 KW SERVICE CLASSIFICATION~Retail Transmission Rate - Line and Transformation Connection Service Rate - Interval Metered | J56: GENERAL SERVICE 1,000 KW OR GREATER SERVICE CLASSIFICATION~Retail Transmission Rate - Network Service Rate | K56: GENERAL SERVICE 1,000 KW OR GREATER SERVICE CLASSIFICATION~Retail Transmission Rate - Line and Transformation Connection Service Rate | L56: UNMETERED SCATTERED LOAD SERVICE CLASSIFICATION~Retail Transmission Rate - Network Service Rate | M56: UNMETERED SCATTERED LOAD SERVICE CLASSIFICATION~Retail Transmission Rate - Line and Transformation Connection Service Rate | N56: SENTINEL LIGHTING SERVICE CLASSIFICATION~Retail Transmission Rate - Network Service Rate | O56: SENTINEL LIGHTING SERVICE CLASSIFICATION~Retail Transmission Rate - Line and Transformation Connection Service Rate | P56: STREET LIGHTING SERVICE CLASSIFICATION~Retail Transmission Rate - Network Service Rate | Q56: STREET LIGHTING SERVICE CLASSIFICATION~Retail Transmission Rate - Line and Transformation Connection Service Rate
A57: ENWIN Utilities Ltd. | B57: RESIDENTIAL SERVICE CLASSIFICATION~Retail Transmission Rate - Network Service Rate | C57: RESIDENTIAL SERVICE CLASSIFICATION~Retail Transmission Rate - Line and Transformation Connection Service Rate | D57: GENERAL SERVICE LESS THAN 50 KW SERVICE CLASSIFICATION~Retail Transmission Rate - Network Service Rate | E57: GENERAL SERVICE LESS THAN 50 KW SERVICE CLASSIFICATION~Retail Transmission Rate - Line and Transformation Connection Service Rate | F57: GENERAL SERVICE 50 to 4,999 kW SERVICE CLASSIFICATION~Retail Transmission Rate - Network Service Rate | G57: GENERAL SERVICE 50 to 4,999 kW SERVICE CLASSIFICATION~Retail Transmission Rate - Line and Transformation Connection Service Rate | H57: GENERAL SERVICE 3,000 TO 4,999 KW - INTERMEDIATE USE SERVICE CLASSIFICATION~Retail Transmission Rate - Network Service Rate | I57: GENERAL SERVICE 3,000 TO 4,999 KW - INTERMEDIATE USE SERVICE CLASSIFICATION~Retail Transmission Rate - Line and Transformation Connection Service Rate | J57: LARGE USE - REGULAR SERVICE CLASSIFICATION~Retail Transmission Rate - Network Service Rate | K57: LARGE USE - REGULAR SERVICE CLASSIFICATION~Retail Transmission Rate - Line Connection Service Rate | L57: LARGE USE - REGULAR SERVICE CLASSIFICATION~Retail Transmission Rate - Transformation Connection Service Rate | M57: LARGE USE - 3TS SERVICE CLASSIFICATION~Retail Transmission Rate - Network Service Rate | N57: LARGE USE - 3TS SERVICE CLASSIFICATION~Retail Transmission Rate - Line Connection Service Rate | O57: LARGE USE - FORD ANNEX SERVICE CLASSIFICATION~Retail Transmission Rate - Network Service Rate | P57: LARGE USE - FORD ANNEX SERVICE CLASSIFICATION~Retail Transmission Rate - Line Connection Service Rate | Q57: UNMETERED SCATTERED LOAD SERVICE CLASSIFICATION~Retail Transmission Rate - Network Service Rate | R57: UNMETERED SCATTERED LOAD SERVICE CLASSIFICATION~Retail Transmission Rate - Line and Transformation Connection Service Rate | S57: SENTINEL LIGHTING SERVICE CLASSIFICATION~Retail Transmission Rate - Network Service Rate | T57: SENTINEL LIGHTING SERVICE CLASSIFICATION~Retail Transmission Rate - Line and Transformation Connection Service Rate | U57: STREET LIGHTING SERVICE CLASSIFICATION~Retail Transmission Rate - Network Service Rate | V57: STREET LIGHTING SERVICE CLASSIFICATION~Retail Transmission Rate - Line and Transformation Connection Service Rate
A58: Hearst Power Distribution Co. Ltd. | B58: RESIDENTIAL SERVICE CLASSIFICATION~Retail Transmission Rate - Network Service Rate | C58: RESIDENTIAL SERVICE CLASSIFICATION~Retail Transmission Rate - Line and Transformation Connection Service Rate | D58: GENERAL SERVICE LESS THAN 50 KW SERVICE CLASSIFICATION~Retail Transmission Rate - Network Service Rate | E58: GENERAL SERVICE LESS THAN 50 KW SERVICE CLASSIFICATION~Retail Transmission Rate - Line and Transformation Connection Service Rate | F58: GENERAL SERVICE 50 TO 1,499 KW SERVICE CLASSIFICATION~Retail Transmission Rate - Network Service Rate | G58: GENERAL SERVICE 50 TO 1,499 KW SERVICE CLASSIFICATION~Retail Transmission Rate - Line and Transformation Connection Service Rate | H58: INTERMEDIATE USER SERVICE CLASSIFICATION~Retail Transmission Rate - Network Service Rate | I58: INTERMEDIATE USER SERVICE CLASSIFICATION~Retail Transmission Rate - Line and Transformation Connection Service Rate | J58: SENTINEL LIGHTING SERVICE CLASSIFICATION~Retail Transmission Rate - Network Service Rate | K58: SENTINEL LIGHTING SERVICE CLASSIFICATION~Retail Transmission Rate - Line and Transformation Connection Service Rate | L58: STREET LIGHTING SERVICE CLASSIFICATION~Retail Transmission Rate - Network Service Rate | M58: STREET LIGHTING SERVICE CLASSIFICATION~Retail Transmission Rate - Line and Transformation Connection Service Rate
A59: ERTH Power Corporation-ERTH Power Main Rate Zone | B59: RESIDENTIAL SERVICE CLASSIFICATION~Retail Transmission Rate - Network Service Rate | C59: RESIDENTIAL SERVICE CLASSIFICATION~Retail Transmission Rate - Line and Transformation Connection Service Rate | D59: GENERAL SERVICE LESS THAN 50 KW SERVICE CLASSIFICATION~Retail Transmission Rate - Network Service Rate | E59: GENERAL SERVICE LESS THAN 50 KW SERVICE CLASSIFICATION~Retail Transmission Rate - Line and Transformation Connection Service Rate | F59: GENERAL SERVICE 50 TO 999 KW SERVICE CLASSIFICATION~Retail Transmission Rate - Network Service Rate | G59: GENERAL SERVICE 50 TO 999 KW SERVICE CLASSIFICATION~Retail Transmission Rate - Line and Transformation Connection Service Rate | H59: GENERAL SERVICE 1,000 TO 4,999 KW SERVICE CLASSIFICATION~Retail Transmission Rate - Network Service Rate | I59: GENERAL SERVICE 1,000 TO 4,999 KW SERVICE CLASSIFICATION~Retail Transmission Rate - Line and Transformation Connection Service Rate | J59: LARGE USE SERVICE CLASSIFICATION~Retail Transmission Rate - Network Service Rate | K59: LARGE USE SERVICE CLASSIFICATION~Retail Transmission Rate - Line and Transformation Connection Service Rate | L59: UNMETERED SCATTERED LOAD SERVICE CLASSIFICATION~Retail Transmission Rate - Network Service Rate | M59: UNMETERED SCATTERED LOAD SERVICE CLASSIFICATION~Retail Transmission Rate - Line and Transformation Connection Service Rate | N59: SENTINEL LIGHTING SERVICE CLASSIFICATION~Retail Transmission Rate - Network Service Rate | O59: SENTINEL LIGHTING SERVICE CLASSIFICATION~Retail Transmission Rate - Line and Transformation Connection Service Rate | P59: STREET LIGHTING SERVICE CLASSIFICATION~Retail Transmission Rate - Network Service Rate | Q59: STREET LIGHTING SERVICE CLASSIFICATION~Retail Transmission Rate - Line and Transformation Connection Service Rate | R59: EMBEDDED DISTRIBUTOR SERVICE CLASSIFICATION~Retail Transmission Rate - Network Service Rate | S59: EMBEDDED DISTRIBUTOR SERVICE CLASSIFICATION~Retail Transmission Rate - Line and Transformation Connection Service Rate
A60: Welland Hydro-Electric System Corp. | B60: RESIDENTIAL SERVICE CLASSIFICATION~Retail Transmission Rate - Network Service Rate | C60: RESIDENTIAL SERVICE CLASSIFICATION~Retail Transmission Rate - Line and Transformation Connection Service Rate | D60: GENERAL SERVICE LESS THAN 50 KW SERVICE CLASSIFICATION~Retail Transmission Rate - Network Service Rate | E60: GENERAL SERVICE LESS THAN 50 KW SERVICE CLASSIFICATION~Retail Transmission Rate - Line and Transformation Connection Service Rate | F60: GENERAL SERVICE 50 to 4,999 kW SERVICE CLASSIFICATION~Retail Transmission Rate - Network Service Rate | G60: GENERAL SERVICE 50 to 4,999 kW SERVICE CLASSIFICATION~Retail Transmission Rate - Line and Transformation Connection Service Rate | H60: UNMETERED SCATTERED LOAD SERVICE CLASSIFICATION~Retail Transmission Rate - Network Service Rate | I60: UNMETERED SCATTERED LOAD SERVICE CLASSIFICATION~Retail Transmission Rate - Line and Transformation Connection Service Rate | J60: SENTINEL LIGHTING SERVICE CLASSIFICATION~Retail Transmission Rate - Network Service Rate | K60: SENTINEL LIGHTING SERVICE CLASSIFICATION~Retail Transmission Rate - Line and Transformation Connection Service Rate | L60: STREET LIGHTING SERVICE CLASSIFICATION~Retail Transmission Rate - Network Service Rate | M60: STREET LIGHTING SERVICE CLASSIFICATION~Retail Transmission Rate - Line and Transformation Connection Service Rate
A61: Wellington North Power Inc. | B61: RESIDENTIAL SERVICE CLASSIFICATION~Retail Transmission Rate - Network Service Rate | C61: RESIDENTIAL SERVICE CLASSIFICATION~Retail Transmission Rate - Line and Transformation Connection Service Rate | D61: GENERAL SERVICE LESS THAN 50 KW SERVICE CLASSIFICATION~Retail Transmission Rate - Network Service Rate | E61: GENERAL SERVICE LESS THAN 50 KW SERVICE CLASSIFICATION~Retail Transmission Rate - Line and Transformation Connection Service Rate | F61: GENERAL SERVICE 50 TO 999 KW SERVICE CLASSIFICATION~Retail Transmission Rate - Network Service Rate | G61: GENERAL SERVICE 50 TO 999 KW SERVICE CLASSIFICATION~Retail Transmission Rate - Line and Transformation Connection Service Rate | H61: GENERAL SERVICE 1,000 TO 4,999 KW SERVICE CLASSIFICATION~Retail Transmission Rate - Network Service Rate | I61: GENERAL SERVICE 1,000 TO 4,999 KW SERVICE CLASSIFICATION~Retail Transmission Rate - Line and Transformation Connection Service Rate | J61: UNMETERED SCATTERED LOAD SERVICE CLASSIFICATION~Retail Transmission Rate - Network Service Rate | K61: UNMETERED SCATTERED LOAD SERVICE CLASSIFICATION~Retail Transmission Rate - Line and Transformation Connection Service Rate | L61: SENTINEL LIGHTING SERVICE CLASSIFICATION~Retail Transmission Rate - Network Service Rate | M61: SENTINEL LIGHTING SERVICE CLASSIFICATION~Retail Transmission Rate - Line and Transformation Connection Service Rate | N61: STREET LIGHTING SERVICE CLASSIFICATION~Retail Transmission Rate - Network Service Rate | O61: STREET LIGHTING SERVICE CLASSIFICATION~Retail Transmission Rate - Line and Transformation Connection Service Rate
A62: Tillsonburg Hydro Inc. | B62: RESIDENTIAL SERVICE CLASSIFICATION~Retail Transmission Rate - Network Service Rate | C62: RESIDENTIAL SERVICE CLASSIFICATION~Retail Transmission Rate - Line and Transformation Connection Service Rate | D62: GENERAL SERVICE LESS THAN 50 KW SERVICE CLASSIFICATION~Retail Transmission Rate - Network Service Rate | E62: GENERAL SERVICE LESS THAN 50 KW SERVICE CLASSIFICATION~Retail Transmission Rate - Line and Transformation Connection Service Rate | F62: GENERAL SERVICE 50 TO 499 KW SERVICE CLASSIFICATION~Retail Transmission Rate - Network Service Rate | G62: GENERAL SERVICE 50 TO 499 KW SERVICE CLASSIFICATION~Retail Transmission Rate - Line and Transformation Connection Service Rate | H62: GENERAL SERVICE 500 TO 1,499 KW SERVICE CLASSIFICATION~Retail Transmission Rate - Network Service Rate - Interval Metered | I62: GENERAL SERVICE 500 TO 1,499 KW SERVICE CLASSIFICATION~Retail Transmission Rate - Line and Transformation Connection Service Rate - Interval Metered | J62: GENERAL SERVICE EQUAL TO OR GREATER THAN 1,500 KW SERVICE CLASSIFICATION~Retail Transmission Rate - Network Service Rate - Interval Metered | K62: GENERAL SERVICE EQUAL TO OR GREATER THAN 1,500 KW SERVICE CLASSIFICATION~Retail Transmission Rate - Line and Transformation Connection Service Rate - Interval Metered | L62: UNMETERED SCATTERED LOAD SERVICE CLASSIFICATION~Retail Transmission Rate - Network Service Rate | M62: UNMETERED SCATTERED LOAD SERVICE CLASSIFICATION~Retail Transmission Rate - Line and Transformation Connection Service Rate | N62: SENTINEL LIGHTING SERVICE CLASSIFICATION~Retail Transmission Rate - Network Service Rate | O62: SENTINEL LIGHTING SERVICE CLASSIFICATION~Retail Transmission Rate - Line and Transformation Connection Service Rate | P62: STREET LIGHTING SERVICE CLASSIFICATION~Retail Transmission Rate - Network Service Rate | Q62: STREET LIGHTING SERVICE CLASSIFICATION~Retail Transmission Rate - Line and Transformation Connection Service Rate
A63: Elexicon Energy Inc.-Veridian Rate Zone | B63: RESIDENTIAL SERVICE CLASSIFICATION~Retail Transmission Rate - Network Service Rate | C63: RESIDENTIAL SERVICE CLASSIFICATION~Retail Transmission Rate - Line and Transformation Connection Service Rate | D63: SEASONAL RESIDENTIAL SERVICE CLASSIFICATION~Retail Transmission Rate - Network Service Rate | E63: SEASONAL RESIDENTIAL SERVICE CLASSIFICATION~Retail Transmission Rate - Line and Transformation Connection Service Rate | F63: GENERAL SERVICE LESS THAN 50 KW SERVICE CLASSIFICATION~Retail Transmission Rate - Network Service Rate | G63: GENERAL SERVICE LESS THAN 50 KW SERVICE CLASSIFICATION~Retail Transmission Rate - Line and Transformation Connection Service Rate | H63: GENERAL SERVICE 50 TO 2,999 KW SERVICE CLASSIFICATION~Retail Transmission Rate - Network Service Rate | I63: GENERAL SERVICE 50 TO 2,999 KW SERVICE CLASSIFICATION~Retail Transmission Rate - Line and Transformation Connection Service Rate | J63: GENERAL SERVICE 3,000 TO 4,999 KW SERVICE CLASSIFICATION~Retail Transmission Rate - Network Service Rate | K63: GENERAL SERVICE 3,000 TO 4,999 KW SERVICE CLASSIFICATION~Retail Transmission Rate - Line and Transformation Connection Service Rate | L63: LARGE USE SERVICE CLASSIFICATION~Retail Transmission Rate - Network Service Rate | M63: LARGE USE SERVICE CLASSIFICATION~Retail Transmission Rate - Line and Transformation Connection Service Rate | N63: UNMETERED SCATTERED LOAD SERVICE CLASSIFICATION~Retail Transmission Rate - Network Service Rate | O63: UNMETERED SCATTERED LOAD SERVICE CLASSIFICATION~Retail Transmission Rate - Line and Transformation Connection Service Rate | P63: SENTINEL LIGHTING SERVICE CLASSIFICATION~Retail Transmission Rate - Network Service Rate | Q63: SENTINEL LIGHTING SERVICE CLASSIFICATION~Retail Transmission Rate - Line and Transformation Connection Service Rate | R63: STREET LIGHTING SERVICE CLASSIFICATION~Retail Transmission Rate - Network Service Rate | S63: STREET LIGHTING SERVICE CLASSIFICATION~Retail Transmission Rate - Line and Transformation Connection Service Rate
A64: Wasaga Distribution Inc. | B64: RESIDENTIAL SERVICE CLASSIFICATION~Retail Transmission Rate - Network Service Rate | C64: RESIDENTIAL SERVICE CLASSIFICATION~Retail Transmission Rate - Line and Transformation Connection Service Rate | D64: GENERAL SERVICE LESS THAN 50 KW SERVICE CLASSIFICATION~Retail Transmission Rate - Network Service Rate | E64: GENERAL SERVICE LESS THAN 50 KW SERVICE CLASSIFICATION~Retail Transmission Rate - Line and Transformation Connection Service Rate | F64: GENERAL SERVICE 50 to 4,999 kW SERVICE CLASSIFICATION~Retail Transmission Rate - Network Service Rate | G64: GENERAL SERVICE 50 to 4,999 kW SERVICE CLASSIFICATION~Retail Transmission Rate - Line and Transformation Connection Service Rate | H64: UNMETERED SCATTERED LOAD SERVICE CLASSIFICATION~Retail Transmission Rate - Network Service Rate | I64: UNMETERED SCATTERED LOAD SERVICE CLASSIFICATION~Retail Transmission Rate - Line and Transformation Connection Service Rate | J64: STREET LIGHTING SERVICE CLASSIFICATION~Retail Transmission Rate - Network Service Rate | K64: STREET LIGHTING SERVICE CLASSIFICATION~Retail Transmission Rate - Line and Transformation Connection Service Rate
A65: ERTH Power Corporation – Goderich Rate Zone | B65: RESIDENTIAL SERVICE CLASSIFICATION~Retail Transmission Rate - Network Service Rate | C65: RESIDENTIAL SERVICE CLASSIFICATION~Retail Transmission Rate - Line and Transformation Connection Service Rate | D65: GENERAL SERVICE LESS THAN 50 KW SERVICE CLASSIFICATION~Retail Transmission Rate - Network Service Rate | E65: GENERAL SERVICE LESS THAN 50 KW SERVICE CLASSIFICATION~Retail Transmission Rate - Line and Transformation Connection Service Rate | F65: GENERAL SERVICE 50 TO 499 KW SERVICE CLASSIFICATION~Retail Transmission Rate - Network Service Rate | G65: GENERAL SERVICE 50 TO 499 KW SERVICE CLASSIFICATION~Retail Transmission Rate - Line and Transformation Connection Service Rate | H65: GENERAL SERVICE 500 TO 4,999 KW SERVICE CLASSIFICATION~Retail Transmission Rate - Network Service Rate | I65: GENERAL SERVICE 500 TO 4,999 KW SERVICE CLASSIFICATION~Retail Transmission Rate - Line and Transformation Connection Service Rate | J65: LARGE USE SERVICE CLASSIFICATION~Retail Transmission Rate - Network Service Rate | K65: LARGE USE SERVICE CLASSIFICATION~Retail Transmission Rate - Line and Transformation Connection Service Rate | L65: UNMETERED SCATTERED LOAD SERVICE CLASSIFICATION~Retail Transmission Rate - Network Service Rate | M65: UNMETERED SCATTERED LOAD SERVICE CLASSIFICATION~Retail Transmission Rate - Line and Transformation Connection Service Rate | N65: SENTINEL LIGHTING SERVICE CLASSIFICATION~Retail Transmission Rate - Network Service Rate | O65: SENTINEL LIGHTING SERVICE CLASSIFICATION~Retail Transmission Rate - Line and Transformation Connection Service Rate | P65: STREET LIGHTING SERVICE CLASSIFICATION~Retail Transmission Rate - Network Service Rate | Q65: STREET LIGHTING SERVICE CLASSIFICATION~Retail Transmission Rate - Line and Transformation Connection Service Rate
A66: Oshawa PUC Networks Inc. | B66: RESIDENTIAL SERVICE CLASSIFICATION~Retail Transmission Rate - Network Service Rate | C66: RESIDENTIAL SERVICE CLASSIFICATION~Retail Transmission Rate - Line and Transformation Connection Service Rate | D66: GENERAL SERVICE LESS THAN 50 KW SERVICE CLASSIFICATION~Retail Transmission Rate - Network Service Rate | E66: GENERAL SERVICE LESS THAN 50 KW SERVICE CLASSIFICATION~Retail Transmission Rate - Line and Transformation Connection Service Rate | F66: GENERAL SERVICE 50 TO 999 KW SERVICE CLASSIFICATION~Retail Transmission Rate - Network Service Rate | G66: GENERAL SERVICE 50 TO 999 KW SERVICE CLASSIFICATION~Retail Transmission Rate - Line and Transformation Connection Service Rate | H66: GENERAL SERVICE 50 TO 999 KW SERVICE CLASSIFICATION~Retail Transmission Rate - Network Service Rate - Interval Metered | I66: GENERAL SERVICE 50 TO 999 KW SERVICE CLASSIFICATION~Retail Transmission Rate - Line and Transformation Connection Service Rate - Interval Metered | J66: GENERAL SERVICE 1,000 TO 4,999 KW SERVICE CLASSIFICATION~Retail Transmission Rate - Network Service Rate - Interval Metered | K66: GENERAL SERVICE 1,000 TO 4,999 KW SERVICE CLASSIFICATION~Retail Transmission Rate - Line and Transformation Connection Service Rate - Interval Metered | L66: LARGE USE SERVICE CLASSIFICATION~Retail Transmission Rate - Network Service Rate - Interval Metered | M66: LARGE USE SERVICE CLASSIFICATION~Retail Transmission Rate - Line and Transformation Connection Service Rate - Interval Metered | N66: UNMETERED SCATTERED LOAD SERVICE CLASSIFICATION~Retail Transmission Rate - Network Service Rate | O66: UNMETERED SCATTERED LOAD SERVICE CLASSIFICATION~Retail Transmission Rate - Line and Transformation Connection Service Rate | P66: SENTINEL LIGHTING SERVICE CLASSIFICATION~Retail Transmission Rate - Network Service Rate | Q66: SENTINEL LIGHTING SERVICE CLASSIFICATION~Retail Transmission Rate - Line and Transformation Connection Service Rate | R66: STREET LIGHTING SERVICE CLASSIFICATION~Retail Transmission Rate - Network Service Rate | S66: STREET LIGHTING SERVICE CLASSIFICATION~Retail Transmission Rate - Line and Transformation Connection Service Rate
A67: Brantford Power Inc. | B67: RESIDENTIAL SERVICE CLASSIFICATION~Retail Transmission Rate - Network Service Rate | C67: RESIDENTIAL SERVICE CLASSIFICATION~Retail Transmission Rate - Line and Transformation Connection Service Rate | D67: GENERAL SERVICE LESS THAN 50 KW SERVICE CLASSIFICATION~Retail Transmission Rate - Network Service Rate | E67: GENERAL SERVICE LESS THAN 50 KW SERVICE CLASSIFICATION~Retail Transmission Rate - Line and Transformation Connection Service Rate | F67: GENERAL SERVICE 50 to 4,999 kW SERVICE CLASSIFICATION~Retail Transmission Rate - Network Service Rate | G67: GENERAL SERVICE 50 to 4,999 kW SERVICE CLASSIFICATION~Retail Transmission Rate - Line and Transformation Connection Service Rate | H67: EMBEDDED DISTRIBUTOR SERVICE CLASSIFICATION~Retail Transmission Rate - Network Service Rate | I67: EMBEDDED DISTRIBUTOR SERVICE CLASSIFICATION~Retail Transmission Rate - Line and Transformation Connection Service Rate | J67: SENTINEL LIGHTING SERVICE CLASSIFICATION~Retail Transmission Rate - Network Service Rate | K67: SENTINEL LIGHTING SERVICE CLASSIFICATION~Retail Transmission Rate - Line and Transformation Connection Service Rate | L67: STREET LIGHTING SERVICE CLASSIFICATION~Retail Transmission Rate - Network Service Rate | M67: STREET LIGHTING SERVICE CLASSIFICATION~Retail Transmission Rate - Line and Transformation Connection Service Rate | N67: UNMETERED SCATTERED LOAD SERVICE CLASSIFICATION~Retail Transmission Rate - Network Service Rate | O67: UNMETERED SCATTERED LOAD SERVICE CLASSIFICATION~Retail Transmission Rate - Line and Transformation Connection Service Rate
A68: Oakville Hydro Electricity Distribution Inc. | B68: RESIDENTIAL SERVICE CLASSIFICATION~Retail Transmission Rate - Network Service Rate | C68: RESIDENTIAL SERVICE CLASSIFICATION~Retail Transmission Rate - Line and Transformation Connection Service Rate | D68: GENERAL SERVICE LESS THAN 50 KW SERVICE CLASSIFICATION~Retail Transmission Rate - Network Service Rate | E68: GENERAL SERVICE LESS THAN 50 KW SERVICE CLASSIFICATION~Retail Transmission Rate - Line and Transformation Connection Service Rate | F68: GENERAL SERVICE 50 TO 999 KW SERVICE CLASSIFICATION~Retail Transmission Rate - Network Service Rate | G68: GENERAL SERVICE 50 TO 999 KW SERVICE CLASSIFICATION~Retail Transmission Rate - Network Service Rate - Interval Metered | H68: GENERAL SERVICE 50 TO 999 KW SERVICE CLASSIFICATION~Retail Transmission Rate - Line and Transformation Connection Service Rate | I68: GENERAL SERVICE 50 TO 999 KW SERVICE CLASSIFICATION~Retail Transmission Rate - Line and Transformation Connection Service Rate - Interval Metered | J68: GENERAL SERVICE 1,000 KW AND GREATER SERVICE CLASSIFICATION~Retail Transmission Rate - Network Service Rate - Interval Metered | K68: GENERAL SERVICE 1,000 KW AND GREATER SERVICE CLASSIFICATION~Retail Transmission Rate - Line and Transformation Connection Service Rate - Interval Metered | L68: UNMETERED SCATTERED LOAD SERVICE CLASSIFICATION~Retail Transmission Rate - Network Service Rate | M68: UNMETERED SCATTERED LOAD SERVICE CLASSIFICATION~Retail Transmission Rate - Line and Transformation Connection Service Rate | N68: SENTINEL LIGHTING SERVICE CLASSIFICATION~Retail Transmission Rate - Network Service Rate | O68: SENTINEL LIGHTING SERVICE CLASSIFICATION~Retail Transmission Rate - Line and Transformation Connection Service Rate | P68: STREET LIGHTING SERVICE CLASSIFICATION~Retail Transmission Rate - Network Service Rate | Q68: STREET LIGHTING SERVICE CLASSIFICATION~Retail Transmission Rate - Line and Transformation Connection Service Rate | R68: EMBEDDED DISTRIBUTOR SERVICE CLASSIFICATION~Retail Transmission Rate - Network Service Rate | S68: EMBEDDED DISTRIBUTOR SERVICE CLASSIFICATION~Retail Transmission Rate - Line and Transformation Connection Service Rate
A69: Chapleau Public Utilities Corporation | B69: RESIDENTIAL SERVICE CLASSIFICATION~Retail Transmission Rate - Network Service Rate | C69: RESIDENTIAL SERVICE CLASSIFICATION~Retail Transmission Rate - Line and Transformation Connection Service Rate | D69: GENERAL SERVICE LESS THAN 50 kW SERVICE CLASSIFICATION~Retail Transmission Rate - Network Service Rate | E69: GENERAL SERVICE LESS THAN 50 kW SERVICE CLASSIFICATION~Retail Transmission Rate - Line and Transformation Connection Service Rate | F69: GENERAL SERVICE 50 TO 4,999 KW SERVICE CLASSIFICATION~Retail Transmission Rate - Network Service Rate | G69: GENERAL SERVICE 50 TO 4,999 KW SERVICE CLASSIFICATION~Retail Transmission Rate - Line and Transformation Connection Service Rate | H69: UNMETERED SCATTERED LOAD SERVICE CLASSIFICATION~Retail Transmission Rate - Network Service Rate | I69: UNMETERED SCATTERED LOAD SERVICE CLASSIFICATION~Retail Transmission Rate - Line and Transformation Connection Service Rate | J69: SENTINEL LIGHTING SERVICE CLASSIFICATION~Retail Transmission Rate - Network Service Rate | K69: SENTINEL LIGHTING SERVICE CLASSIFICATION~Retail Transmission Rate - Line and Transformation Connection Service Rate | L69: STREET LIGHTING SERVICE CLASSIFICATION~Retail Transmission Rate - Network Service Rate | M69: STREET LIGHTING SERVICE CLASSIFICATION~Retail Transmission Rate - Line and Transformation Connection Service Rate
A70: Espanola Regional Hydro Distribution Corporation | B70: RESIDENTIAL SERVICE CLASSIFICATION~Retail Transmission Rate - Network Service Rate | C70: RESIDENTIAL SERVICE CLASSIFICATION~Retail Transmission Rate - Line and Transformation Connection Service Rate | D70: GENERAL SERVICE LESS THAN 50 kW SERVICE CLASSIFICATION~Retail Transmission Rate - Network Service Rate | E70: GENERAL SERVICE LESS THAN 50 kW SERVICE CLASSIFICATION~Retail Transmission Rate - Line and Transformation Connection Service Rate | F70: GENERAL SERVICE 50 TO 4,999 KW SERVICE CLASSIFICATION~Retail Transmission Rate - Network Service Rate | G70: GENERAL SERVICE 50 TO 4,999 KW SERVICE CLASSIFICATION~Retail Transmission Rate - Line and Transformation Connection Service Rate | H70: GENERAL SERVICE 50 TO 4,999 KW SERVICE CLASSIFICATION~Retail Transmission Rate - Network Service Rate - Interval Metered | I70: GENERAL SERVICE 50 TO 4,999 KW SERVICE CLASSIFICATION~Retail Transmission Rate - Line and Transformation Connection Service Rate - Interval Metered | J70: UNMETERED SCATTERED LOAD SERVICE CLASSIFICATION~Retail Transmission Rate - Network Service Rate | K70: UNMETERED SCATTERED LOAD SERVICE CLASSIFICATION~Retail Transmission Rate - Line and Transformation Connection Service Rate | L70: SENTINEL LIGHTING SERVICE CLASSIFICATION~Retail Transmission Rate - Network Service Rate | M70: SENTINEL LIGHTING SERVICE CLASSIFICATION~Retail Transmission Rate - Line and Transformation Connection Service Rate | N70: STREET LIGHTING SERVICE CLASSIFICATION~Retail Transmission Rate - Network Service Rate | O70: STREET LIGHTING SERVICE CLASSIFICATION~Retail Transmission Rate - Line and Transformation Connection Service Rate
A71: Energy+ Inc.-For Former Brant County Power Service Area | B71: RESIDENTIAL SERVICE CLASSIFICATION~Retail Transmission Rate - Network Service Rate | C71: RESIDENTIAL SERVICE CLASSIFICATION~Retail Transmission Rate - Line and Transformation Connection Service Rate | D71: GENERAL SERVICE LESS THAN 50 KW SERVICE CLASSIFICATION~Retail Transmission Rate - Network Service Rate | E71: GENERAL SERVICE LESS THAN 50 KW SERVICE CLASSIFICATION~Retail Transmission Rate - Line and Transformation Connection Service Rate | F71: GENERAL SERVICE 50 to 4,999 kW SERVICE CLASSIFICATION~Retail Transmission Rate - Network Service Rate | G71: GENERAL SERVICE 50 to 4,999 kW SERVICE CLASSIFICATION~Retail Transmission Rate - Line and Transformation Connection Service Rate | H71: GENERAL SERVICE 50 to 4,999 kW SERVICE CLASSIFICATION~Retail Transmission Rate - Network Service Rate - Interval Metered < 1,000 kW | I71: GENERAL SERVICE 50 to 4,999 kW SERVICE CLASSIFICATION~Retail Transmission Rate - Line and Transformation Connection Service Rate - Interval Metered < 1,000 kW | J71: GENERAL SERVICE 50 to 4,999 kW SERVICE CLASSIFICATION~Retail Transmission Rate - Network Service Rate - Interval Metered > 1,000 kW | K71: GENERAL SERVICE 50 to 4,999 kW SERVICE CLASSIFICATION~Retail Transmission Rate - Line and Transformation Connection Service Rate - Interval Metered > 1,000 kW | L71: UNMETERED SCATTERED LOAD SERVICE CLASSIFICATION~Retail Transmission Rate - Network Service Rate | M71: UNMETERED SCATTERED LOAD SERVICE CLASSIFICATION~Retail Transmission Rate - Line and Transformation Connection Service Rate | N71: SENTINEL LIGHTING SERVICE CLASSIFICATION~Retail Transmission Rate - Network Service Rate | O71: SENTINEL LIGHTING SERVICE CLASSIFICATION~Retail Transmission Rate - Line and Transformation Connection Service Rate | P71: STREET LIGHTING SERVICE CLASSIFICATION~Retail Transmission Rate - Network Service Rate | Q71: STREET LIGHTING SERVICE CLASSIFICATION~Retail Transmission Rate - Line and Transformation Connection Service Rate
A72: Energy+ Inc.-For Former Cambridge and North Dumfries Hydro Service Area | B72: RESIDENTIAL SERVICE CLASSIFICATION~Retail Transmission Rate - Network Service Rate | C72: RESIDENTIAL SERVICE CLASSIFICATION~Retail Transmission Rate - Line and Transformation Connection Service Rate | D72: GENERAL SERVICE LESS THAN 50 KW SERVICE CLASSIFICATION~Retail Transmission Rate - Network Service Rate | E72: GENERAL SERVICE LESS THAN 50 KW SERVICE CLASSIFICATION~Retail Transmission Rate - Line and Transformation Connection Service Rate | F72: GENERAL SERVICE 50 TO 999 KW SERVICE CLASSIFICATION~Retail Transmission Rate - Network Service Rate | G72: GENERAL SERVICE 50 TO 999 KW SERVICE CLASSIFICATION~Retail Transmission Rate - Line and Transformation Connection Service Rate | H72: GENERAL SERVICE 1,000 TO 4,999 KW SERVICE CLASSIFICATION~Retail Transmission Rate - Network Service Rate | I72: GENERAL SERVICE 1,000 TO 4,999 KW SERVICE CLASSIFICATION~Retail Transmission Rate - Line and Transformation Connection Service Rate | J72: LARGE USE SERVICE CLASSIFICATION~Retail Transmission Rate - Network Service Rate | K72: LARGE USE SERVICE CLASSIFICATION~Retail Transmission Rate - Line and Transformation Connection Service Rate | L72: UNMETERED SCATTERED LOAD SERVICE CLASSIFICATION~Retail Transmission Rate - Network Service Rate | M72: UNMETERED SCATTERED LOAD SERVICE CLASSIFICATION~Retail Transmission Rate - Line and Transformation Connection Service Rate | N72: STREET LIGHTING SERVICE CLASSIFICATION~Retail Transmission Rate - Network Service Rate | O72: STREET LIGHTING SERVICE CLASSIFICATION~Retail Transmission Rate - Line and Transformation Connection Service Rate | P72: EMBEDDED DISTRIBUTOR SERVICE CLASSIFICATION~Retail Transmission Rate - Network Service Rate | Q72: EMBEDDED DISTRIBUTOR SERVICE CLASSIFICATION~Retail Transmission Rate - Line and Transformation Connection Service Rate
A73: Hydro 2000 Inc. | B73: RESIDENTIAL SERVICE CLASSIFICATION~Retail Transmission Rate - Network Service Rate | C73: RESIDENTIAL SERVICE CLASSIFICATION~Retail Transmission Rate - Line and Transformation Connection Service Rate | D73: GENERAL SERVICE LESS THAN 50 kW SERVICE CLASSIFICATION~Retail Transmission Rate - Network Service Rate | E73: GENERAL SERVICE LESS THAN 50 kW SERVICE CLASSIFICATION~Retail Transmission Rate - Line and Transformation Connection Service Rate | F73: GENERAL SERVICE 50 TO 4,999 KW SERVICE CLASSIFICATION~Retail Transmission Rate - Network Service Rate | G73: GENERAL SERVICE 50 TO 4,999 KW SERVICE CLASSIFICATION~Retail Transmission Rate - Line and Transformation Connection Service Rate | H73: STREET LIGHTING SERVICE CLASSIFICATION~Retail Transmission Rate - Network Service Rate | I73: STREET LIGHTING SERVICE CLASSIFICATION~Retail Transmission Rate - Line and Transformation Connection Service Rate | J73: UNMETERED SCATTERED LOAD SERVICE CLASSIFICATION~Retail Transmission Rate - Network Service Rate | K73: UNMETERED SCATTERED LOAD SERVICE CLASSIFICATION~Retail Transmission Rate - Line and Transformation Connection Service Rate
A74: Niagara-on-the-Lake Hydro Inc. | B74: RESIDENTIAL SERVICE CLASSIFICATION~Retail Transmission Rate - Network Service Rate | C74: RESIDENTIAL SERVICE CLASSIFICATION~Retail Transmission Rate - Line and Transformation Connection Service Rate | D74: GENERAL SERVICE LESS THAN 50 KW SERVICE CLASSIFICATION~Retail Transmission Rate - Network Service Rate | E74: GENERAL SERVICE LESS THAN 50 KW SERVICE CLASSIFICATION~Retail Transmission Rate - Line and Transformation Connection Service Rate | F74: GENERAL SERVICE 50 to 4,999 kW SERVICE CLASSIFICATION~Retail Transmission Rate - Network Service Rate | G74: GENERAL SERVICE 50 to 4,999 kW SERVICE CLASSIFICATION~Retail Transmission Rate - Line and Transformation Connection Service Rate | H74: GENERAL SERVICE 50 to 4,999 kW SERVICE CLASSIFICATION~Retail Transmission Rate - Network Service Rate - Interval Metered | I74: GENERAL SERVICE 50 to 4,999 kW SERVICE CLASSIFICATION~Retail Transmission Rate - Line and Transformation Connection Service Rate - Interval Metered | J74: UNMETERED SCATTERED LOAD SERVICE CLASSIFICATION~Retail Transmission Rate - Network Service Rate | K74: UNMETERED SCATTERED LOAD SERVICE CLASSIFICATION~Retail Transmission Rate - Line and Transformation Connection Service Rate | L74: STREET LIGHTING SERVICE CLASSIFICATION~Retail Transmission Rate - Network Service Rate | M74: STREET LIGHTING SERVICE CLASSIFICATION~Retail Transmission Rate - Line and Transformation Connection Service Rate
A75: PUC Distribution Inc. | B75: RESIDENTIAL SERVICE CLASSIFICATION~Retail Transmission Rate - Network Service Rate | C75: GENERAL SERVICE LESS THAN 50 KW SERVICE CLASSIFICATION~Retail Transmission Rate - Network Service Rate | D75: GENERAL SERVICE 50 to 4,999 kW SERVICE CLASSIFICATION~Retail Transmission Rate - Network Service Rate | E75: GENERAL SERVICE 50 to 4,999 kW SERVICE CLASSIFICATION~Retail Transmission Rate - Network Service Rate - Interval Metered | F75: UNMETERED SCATTERED LOAD SERVICE CLASSIFICATION~Retail Transmission Rate - Network Service Rate | G75: SENTINEL LIGHTING SERVICE CLASSIFICATION~Retail Transmission Rate - Network Service Rate | H75: STREET LIGHTING SERVICE CLASSIFICATION~Retail Transmission Rate - Network Service Rate
A76: Hydro One Networks Inc. | B76: YEAR-ROUND URBAN DENSITY - UR SERVICE CLASSIFICATION~Retail Transmission Rate - Network Service Rate | C76: YEAR-ROUND URBAN DENSITY - UR SERVICE CLASSIFICATION~Retail Transmission Rate - Line and Transformation Connection Service Rate | D76: YEAR-ROUND MEDIUM DENSITY - R1 SERVICE CLASSIFICATION~Retail Transmission Rate - Network Service Rate | E76: YEAR-ROUND MEDIUM DENSITY - R1 SERVICE CLASSIFICATION~Retail Transmission Rate - Line and Transformation Connection Service Rate | F76: YEAR-ROUND LOW DENSITY - R2 SERVICE CLASSIFICATION~Retail Transmission Rate - Network Service Rate | G76: YEAR-ROUND LOW DENSITY - R2 SERVICE CLASSIFICATION~Retail Transmission Rate - Line and Transformation Connection Service Rate | H76: SEASONAL SERVICE CLASSIFICATION~Retail Transmission Rate - Network Service Rate | I76: SEASONAL SERVICE CLASSIFICATION~Retail Transmission Rate - Line and Transformation Connection Service Rate | J76: URBAN GENERAL SERVICE ENERGY BILLED - UGe SERVICE CLASSIFICATION~Retail Transmission Rate - Network Service Rate | K76: URBAN GENERAL SERVICE ENERGY BILLED - UGe SERVICE CLASSIFICATION~Retail Transmission Rate - Line and Transformation Connection Service Rate | L76: GENERAL SERVICE ENERGY BILLED - GSe SERVICE CLASSIFICATION~Retail Transmission Rate - Network Service Rate | M76: GENERAL SERVICE ENERGY BILLED - GSe SERVICE CLASSIFICATION~Retail Transmission Rate - Line and Transformation Connection Service Rate | N76: URBAN GENERAL SERVICE DEMAND BILLED - UGd SERVICE CLASSIFICATION~Retail Transmission Rate - Network Service Rate | O76: URBAN GENERAL SERVICE DEMAND BILLED - UGd SERVICE CLASSIFICATION~Retail Transmission Rate - Line and Transformation Connection Service Rate | P76: GENERAL SERVICE DEMAND BILLED - GSd SERVICE CLASSIFICATION~Retail Transmission Rate - Network Service Rate | Q76: GENERAL SERVICE DEMAND BILLED - GSd SERVICE CLASSIFICATION~Retail Transmission Rate - Line and Transformation Connection Service Rate | R76: DISTRIBUTED GENERATION - DGen SERVICE CLASSIFICATION~Retail Transmission Rate - Network Service Rate | S76: DISTRIBUTED GENERATION - DGen SERVICE CLASSIFICATION~Retail Transmission Rate - Line and Transformation Connection Service Rate | T76: SUB TRANSMISSION - ST SERVICE CLASSIFICATION~Retail Transmission Rate - Network Service Rate | U76: SUB TRANSMISSION - ST SERVICE CLASSIFICATION~Retail Transmission Rate - Line Connection Service Rate | V76: SUB TRANSMISSION - ST SERVICE CLASSIFICATION~Retail Transmission Rate - Transformation Connection Service Rate | W76: UNMETERED SCATTERED LOAD SERVICE CLASSIFICATION~Retail Transmission Rate - Network Service Rate | X76: UNMETERED SCATTERED LOAD SERVICE CLASSIFICATION~Retail Transmission Rate - Line and Transformation Connection Service Rate | Y76: SENTINEL LIGHTING SERVICE CLASSIFICATION~Retail Transmission Rate - Network Service Rate | Z76: SENTINEL LIGHTING SERVICE CLASSIFICATION~Retail Transmission Rate - Line and Transformation Connection Service Rate | AA76: STREET LIGHTING SERVICE CLASSIFICATION~Retail Transmission Rate - Network Service Rate | AB76: STREET LIGHTING SERVICE CLASSIFICATION~Retail Transmission Rate - Line and Transformation Connection Service Rate

Sheet DELETE 3. Rate Classes (hidden)
C13: 1. Select the appropriate rate classes that appear on your most recent OEB-Approved Tariff of Rates and Charges. 2. Enter the RTSR Network and Connection Rate as it appears on the Tariff of Rates and Charges
C15: Rate Class | E15: Unit | G15: RTSR-Network | I15: RTSR-Connection
L17: =IF(OR(ISBLANK(C17), ISERROR(FIND("Choose", C17))=FALSE), 0, 1) -> 0 | M17: ="C" & ROW(C17) -> C17 | N17: =IF(OR(C17="General Service Intermediate Rate Class 1,000 To 4,999 kW (formerly General Service > 50 kW Customers)", C17="General Service Intermediate Rate Class 1,000 To 4,999 kW (formerly Large Use Customers)"), "x", "") ->  | W17: Choose Rate Class
L18: 0 | M18: C18 | N18: =IF(OR(C18="General Service Intermediate Rate Class 1,000 To 4,999 kW (formerly General Service > 50 kW Customers)", C18="General Service Intermediate Rate Class 1,000 To 4,999 kW (formerly Large Use Customers)"), "x", "") ->  | W18: Residential
L19: 0 | M19: C19 | W19: Residential Regular
L20: 0 | M20: C20 | W20: Residential Urban
L21: 0 | M21: C21 | W21: Residential Urban Year-Round
L22: =IF(OR(ISBLANK(C22), ISERROR(FIND("Choose", C22))=FALSE), 0, 1) -> 0 | M22: C22 | W22: Residential Suburban
L23: 0 | M23: C23 | W23: Residential Suburban Seasonal
L24: 0 | M24: C24 | W24: Residential Suburban Year Round
L25: 0 | M25: C25 | W25: Residential - Time of Use
L26: 0 | M26: C26 | W26: Residential - Hensall
L27: 0 | M27: C27 | W27: Residential – High Density [R1]
L28: 0 | M28: C28 | W28: Residential – Normal Density [R2]
L29: 0 | M29: C29 | W29: Seasonal Residential – High Density [R3]
L30: 0 | M30: C30 | W30: Seasonal Residential – Normal Density [R4]
L31: 0 | M31: C31 | W31: Residential – Urban [UR]
L32: 0 | M32: C32 | W32: General Service Less Than 50 kW
L33: 0 | M33: C33 | W33: General Service Less Than 50 kW – Single Phase energy-billed [G1]
L34: 0 | M34: C34 | W34: General Service Less Than 50 kW – Three Phase energy-billed [G3]
L35: 0 | M35: C35 | W35: General Service Less Than 50 kW – Transmission Class energy-billed [T]
L36: 0 | M36: C36 | W36: General Service Less Than 50 kW – Urban energy-billed [UG]
L37: 0 | M37: C37 | W37: Westport Sewage Treatment Plant
L38: 0 | M38: C38 | W38: Small Commercial and USL - per meter
N39: =COUNTIF(N17:N38, "x") -> 0 | W39: Small Commercial and USL - per connection
W40: Farms – Single Phase energy-billed [F1]
W41: General Service 50 to 499 kW
W42: General Service 50 to 699 kW
W43: General Service 50 to 999 kW
W44: General Service 50 to 999 kW - Interval Metered
W45: General Service 50 to 1,000 kW
W46: General Service 50 to 1,000 kW - Interval Meters
W47: General Service 50 to 1,000 kW - Non Interval Meters
W48: General Service 50 to 1,499 kW
W49: General Service 50 to 1,499 kW - Interval Metered
W50: General Service 50 to 2,499 kW
W51: General Service 50 to 2,999 kW
W52: General Service 50 to 2,999 kW - Time of Use
W53: General Service 50 to 4,999 kW
W54: General Service 50 to 4,999 kW – Interval Metered
W55: General Service 50 to 4,999 kW - Time of Use
W56: General Service 50 to 4,999 kW (CoGeneration)
W57: General Service 50 to 4,999 kW (formerly Time of Use)
W58: General Service 500 to 4,999 kW
W59: General Service 700 to 4,999 kW
W60: General Service 1,000 to 2,999 kW
W61: General Service 1,000 to 4,999 kW
W62: General Service 1,000 to 4,999 kW - Interval Meters
W63: General Service 1,000 To 4,999 kW (co-generation)
W64: General Service Greater Than 1,000 kW
W65: General Service Intermediate Rate Class 1,000 To 4,999 kW (formerly Large Use Customers)
W66: General Service Intermediate Rate Class 1,000 To 4,999 kW (formerly General Service > 50 kW Customers)
W67: General Service 1,500 to 4,999 kW
W68: General Service Equal To Or Greater Than 1,500 kW
W69: General Service Equal To Or Greater Than 1,500 kW - Interval Metered
W70: General Service Intermediate 1,000 To 4,999 kW
W71: General Service 2,500 to 4,999 kW
W72: General Service 3,000 to 4,999 kW
W73: General Service 3,000 to 4,999 kW - Interval Metered
W74: General Service 3,000 to 4,999 kW - Intermediate Use
W75: General Service 3,000 to 4,999 kW - Time of Use
W76: Intermediate With Self Generation
W77: General Service - Commercial
W78: General Service - Institutional
W79: Farms – Three Phase energy-billed [F3]
W80: Large Use
W81: Large Use - Regular
W82: Large Use > 5000 kW
W83: Large Use - 3TS
W84: Large Use - Ford Annex
W85: Unmetered Scattered Load
W86: Sentinel Lighting
W87: Street Lighting
W88: Embedded Distributor
W89: Low Voltage Wheeling Charge Rate
W90: Stand-By
W91: Standby Power
W92: Standby Power – INTERIM APPROVAL
W93: Standby Power - APPROVED ON AN INTERIM BASIS
W94: Standby - General Service 50 - 1,000 kW
W95: Standby Power General Service 50 to 1,499 kW
W96: Standby - General Service 1,000 - 5,000 kW
W97: Standby Power General Service 1,500 to 4,999 kW
W98: Standby - Large Use
W99: Standby Power General Service Large Use
W100: Standby Distribution Service

Sheet 2 1 5 TotalConsumptionData_Dist (hidden)
A1: 2.1.5 TotalConsumptionData_Dist_Ret_Total_Combined_2019
A2: Time run: 6/26/2019 11:05:37 AM
A4: Filing_Year | B4: Company_Name | C4: Rate_Class | D4: Rate_Class_Detail | E4: Company+DetailClass | F4: New Column (Replaces all dashes with underscores in Col E) | G4: Ret_Metered_consumption_in_kWhs | H4: Ret_Metered_consumption_in_kWs | I4: Dist_RPPMeterCustkWh | J4: Dist_RPPMeterCustkW | K4: Dist_NonRPPMeterCustkWh | L4: Dist_NonRPPMeterCustkW | M4: IESOMeterCustkWh | N4: IESOMeterCustKW | O4: Class_A_Consumption_kWhs | P4: Class_A_Consumption_kWs | Q4: TotConsmptionforDistCustkWh | R4: TotConsmptionforDistCustkW | S4: Calculated_TOTAL_KWH | T4: Calculated_TOTAL_KW
A5: 2019 | B5: ALECTRA UTILITIES CORPORATION | C5: EMBEDDED DISTRIBUTOR(S) | D5: HYDRO ONE BRAMPTON_EMBEDDED DISTRIBUTOR | E5: ALECTRA UTILITIES CORPORATION_BRAMPTON RATE ZONE_EMBEDDED DISTRIBUTOR SERVICE CLASSIFICATION | F5: ALECTRA UTILITIES CORPORATION_BRAMPTON RATE ZONE_EMBEDDED DISTRIBUTOR SERVICE CLASSIFICATION | G5: 0 | H5: 0 | I5: 0 | J5: 0 | K5: 3402773 | L5: 0 | M5: 0 | N5: 0 | O5: 0 | P5: 0 | Q5: 3402773 | R5: 0 | S5: 3402773 | T5: 0
A6: 2019 | B6: ALECTRA UTILITIES CORPORATION | C6: GENERAL SERVICE EQUAL TO OR GREATER THAN 50 KW | D6: ENERSOURCE_GENERAL SERVICE 50 TO 499 KW | E6: ALECTRA UTILITIES CORPORATION_ENERSOURCE RATE ZONE_GENERAL SERVICE 50 TO 499 KW SERVICE CLASSIFICATION | F6: ALECTRA UTILITIES CORPORATION_ENERSOURCE RATE ZONE_GENERAL SERVICE 50 TO 499 KW SERVICE CLASSIFICATION | G6: 306711404 | H6: 913898 | I6: 312801507 | J6: 818487 | K6: 1430572850 | L6: 3973663 | M6: 1343047 | N6: 4363 | O6: 0 | P6: 0 | Q6: 1744717404 | R6: 4796513 | S6: 2051428808 | T6: 5710411
A7: 2019 | B7: ALECTRA UTILITIES CORPORATION | C7: GENERAL SERVICE EQUAL TO OR GREATER THAN 50 KW | D7: ENERSOURCE_GENERAL SERVICE 500 TO 4,999 KW | E7: ALECTRA UTILITIES CORPORATION_ENERSOURCE RATE ZONE_GENERAL SERVICE 500 TO 4,999 KW SERVICE CLASSIFICATION | F7: ALECTRA UTILITIES CORPORATION_ENERSOURCE RATE ZONE_GENERAL SERVICE 500 TO 4,999 KW SERVICE CLASSIFICATION | G7: 389288926 | H7: 916874 | I7: 148988424 | J7: 314127 | K7: 1485483954 | L7: 3326827 | M7: 13999209 | N7: 27950 | O7: 0 | P7: 0 | Q7: 1648471587 | R7: 3668904 | S7: 2037760513 | T7: 4585778
A8: 2019 | B8: ALECTRA UTILITIES CORPORATION | C8: GENERAL SERVICE EQUAL TO OR GREATER THAN 50 KW | D8: HORIZON_GENERAL SERVICE 50 TO 4,999 KW | E8: ALECTRA UTILITIES CORPORATION_HORIZON UTILITIES RATE ZONE_GENERAL SERVICE 50 TO 4,999 KW SERVICE CLASSIFICATION | F8: ALECTRA UTILITIES CORPORATION_HORIZON UTILITIES RATE ZONE_GENERAL SERVICE 50 TO 4,999 KW SERVICE CLASSIFICATION | G8: 236880257 | H8: 658415 | I8: 188338786 | J8: 780057 | K8: 1401197541 | L8: 3290328 | M8: 9937969 | N8: 17495 | O8: 0 | P8: 0 | Q8: 1599474296 | R8: 4087880 | S8: 1836354553 | T8: 4746295
A9: 2019 | B9: ALECTRA UTILITIES CORPORATION | C9: GENERAL SERVICE EQUAL TO OR GREATER THAN 50 KW | D9: HYDRO ONE BRAMPTON_ENERGY FROM WASTE | E9: ALECTRA UTILITIES CORPORATION_BRAMPTON RATE ZONE_ENERGY FROM WASTE SERVICE CLASSIFICATION | F9: ALECTRA UTILITIES CORPORATION_BRAMPTON RATE ZONE_ENERGY FROM WASTE SERVICE CLASSIFICATION | G9: 0 | H9: 0 | I9: 0 | J9: 0 | K9: 0 | L9: 0 | M9: 0 | N9: 0 | O9: 0 | P9: 0 | Q9: 0 | R9: 0 | S9: 0 | T9: 0
A10: 2019 | B10: ALECTRA UTILITIES CORPORATION | C10: GENERAL SERVICE EQUAL TO OR GREATER THAN 50 KW | D10: HYDRO ONE BRAMPTON_GENERAL SERVICE 50 TO 699 KW | E10: ALECTRA UTILITIES CORPORATION_BRAMPTON RATE ZONE_GENERAL SERVICE 50 TO 699 KW SERVICE CLASSIFICATION | F10: ALECTRA UTILITIES CORPORATION_BRAMPTON RATE ZONE_GENERAL SERVICE 50 TO 699 KW SERVICE CLASSIFICATION | G10: 192773803 | H10: 538975 | I10: 160863095 | J10: 450633 | K10: 774513072 | L10: 2169676 | M10: 3538226 | N10: 20319 | O10: 0 | P10: 0 | Q10: 938914393 | R10: 2640628 | S10: 1131688196 | T10: 3179603
A11: 2019 | B11: ALECTRA UTILITIES CORPORATION | C11: GENERAL SERVICE EQUAL TO OR GREATER THAN 50 KW | D11: HYDRO ONE BRAMPTON_GENERAL SERVICE 700 TO 4,999 KW | E11: ALECTRA UTILITIES CORPORATION_BRAMPTON RATE ZONE_GENERAL SERVICE 700 TO 4,999 KW SERVICE CLASSIFICATION | F11: ALECTRA UTILITIES CORPORATION_BRAMPTON RATE ZONE_GENERAL SERVICE 700 TO 4,999 KW SERVICE CLASSIFICATION | G11: 174497599 | H11: 417675 | I11: 1655366 | J11: 3930 | K11: 634875892 | L11: 1493473 | M11: 64062176 | N11: 105486 | O11: 0 | P11: 0 | Q11: 700593432 | R11: 1602889 | S11: 875091031 | T11: 2020564
A12: 2019 | B12: ALECTRA UTILITIES CORPORATION | C12: GENERAL SERVICE EQUAL TO OR GREATER THAN 50 KW | D12: POWERSTREAM_GENERAL SERVICE 50 TO 4,999 KW | E12: ALECTRA UTILITIES CORPORATION_POWERSTREAM RATE ZONE_GENERAL SERVICE 50 TO 4,999 KW SERVICE CLASSIFICATION | F12: ALECTRA UTILITIES CORPORATION_POWERSTREAM RATE ZONE_GENERAL SERVICE 50 TO 4,999 KW SERVICE CLASSIFICATION | G12: 588552983 | H12: 1586719 | I12: 376569967 | J12: 970323 | K12: 3684442577 | L12: 9554737 | M12: 30400416 | N12: 81097 | O12: 0 | P12: 0 | Q12: 4091412961 | R12: 10606157 | S12: 4679965944 | T12: 12192876
A13: 2019 | B13: ALECTRA UTILITIES CORPORATION | C13: GENERAL SERVICE LESS THAN 50 KW | D13: ENERSOURCE_GENERAL SERVICE LESS THAN 50 KW | E13: ALECTRA UTILITIES CORPORATION_ENERSOURCE RATE ZONE_GENERAL SERVICE LESS THAN 50 KW SERVICE CLASSIFICATION | F13: ALECTRA UTILITIES CORPORATION_ENERSOURCE RATE ZONE_GENERAL SERVICE LESS THAN 50 KW SERVICE CLASSIFICATION | G13: 91858679 | H13: 0 | I13: 593758005 | J13: 0 | K13: 0 | L13: 0 | M13: 0 | N13: 0 | O13: 0 | P13: 0 | Q13: 593758005 | R13: 0 | S13: 685616684 | T13: 0
A14: 2019 | B14: ALECTRA UTILITIES CORPORATION | C14: GENERAL SERVICE LESS THAN 50 KW | D14: HORIZON_GENERAL SERVICE LESS THAN 50 KW | E14: ALECTRA UTILITIES CORPORATION_HORIZON UTILITIES RATE ZONE_GENERAL SERVICE LESS THAN 50 KW SERVICE CLASSIFICATION | F14: ALECTRA UTILITIES CORPORATION_HORIZON UTILITIES RATE ZONE_GENERAL SERVICE LESS THAN 50 KW SERVICE CLASSIFICATION | G14: 94016209 | H14: 0 | I14: 485047020 | J14: 0 | K14: 1279820 | L14: 0 | M14: 0 | N14: 0 | O14: 0 | P14: 0 | Q14: 486326840 | R14: 0 | S14: 580343049 | T14: 0
A15: 2019 | B15: ALECTRA UTILITIES CORPORATION | C15: GENERAL SERVICE LESS THAN 50 KW | D15: HYDRO ONE BRAMPTON_DISTRIBUTED GENERATION - DGEN | E15: ALECTRA UTILITIES CORPORATION_BRAMPTON RATE ZONE_DISTRIBUTED GENERATION [DGEN] SERVICE CLASSIFICATION | F15: ALECTRA UTILITIES CORPORATION_BRAMPTON RATE ZONE_DISTRIBUTED GENERATION [DGEN] SERVICE CLASSIFICATION | G15: 0 | H15: 0 | I15: 0 | J15: 0 | K15: 277418 | L15: 0 | M15: 0 | N15: 0 | O15: 0 | P15: 0 | Q15: 277418 | R15: 0 | S15: 277418 | T15: 0
A16: 2019 | B16: ALECTRA UTILITIES CORPORATION | C16: GENERAL SERVICE LESS THAN 50 KW | D16: HYDRO ONE BRAMPTON_GENERAL SERVICE LESS THAN 50 KW | E16: ALECTRA UTILITIES CORPORATION_BRAMPTON RATE ZONE_GENERAL SERVICE LESS THAN 50 KW SERVICE CLASSIFICATION | F16: ALECTRA UTILITIES CORPORATION_BRAMPTON RATE ZONE_GENERAL SERVICE LESS THAN 50 KW SERVICE CLASSIFICATION | G16: 59144132 | H16: 0 | I16: 285641775 | J16: 0 | K16: 0 | L16: 0 | M16: 0 | N16: 0 | O16: 0 | P16: 0 | Q16: 285641775 | R16: 0 | S16: 344785907 | T16: 0
A17: 2019 | B17: ALECTRA UTILITIES CORPORATION | C17: GENERAL SERVICE LESS THAN 50 KW | D17: POWERSTREAM_GENERAL SERVICE LESS THAN 50 KW | E17: ALECTRA UTILITIES CORPORATION_POWERSTREAM RATE ZONE_GENERAL SERVICE LESS THAN 50 KW SERVICE CLASSIFICATION | F17: ALECTRA UTILITIES CORPORATION_POWERSTREAM RATE ZONE_GENERAL SERVICE LESS THAN 50 KW SERVICE CLASSIFICATION | G17: 179014510 | H17: 0 | I17: 861013452 | J17: 0 | K17: 9587702 | L17: 0 | M17: 0 | N17: 0 | O17: 0 | P17: 0 | Q17: 870601154 | R17: 0 | S17: 1049615664 | T17: 0
A18: 2019 | B18: ALECTRA UTILITIES CORPORATION | C18: LARGE USER | D18: ENERSOURCE_LARGE USE | E18: ALECTRA UTILITIES CORPORATION_ENERSOURCE RATE ZONE_LARGE USE SERVICE CLASSIFICATION | F18: ALECTRA UTILITIES CORPORATION_ENERSOURCE RATE ZONE_LARGE USE SERVICE CLASSIFICATION | G18: 28684761 | H18: 132055 | I18: 0 | J18: 0 | K18: 948364601 | L18: 1621108 | M18: 0 | N18: 0 | O18: 0 | P18: 0 | Q18: 948364601 | R18: 1621108 | S18: 977049362 | T18: 1753163
A19: 2019 | B19: ALECTRA UTILITIES CORPORATION | C19: LARGE USER | D19: HORIZON_LARGE USE | E19: ALECTRA UTILITIES CORPORATION_HORIZON UTILITIES RATE ZONE_LARGE USE SERVICE CLASSIFICATION | F19: ALECTRA UTILITIES CORPORATION_HORIZON UTILITIES RATE ZONE_LARGE USE SERVICE CLASSIFICATION | G19: 30664671 | H19: 74975 | I19: 0 | J19: 0 | K19: 156746130 | L19: 264735 | M19: 6811835 | N19: 20550 | O19: 0 | P19: 0 | Q19: 163557965 | R19: 285285 | S19: 194222636 | T19: 360260
A20: 2019 | B20: ALECTRA UTILITIES CORPORATION | C20: LARGE USER | D20: HORIZON_LARGE USE WITH DEDICATED ASSETS | E20: ALECTRA UTILITIES CORPORATION_HORIZON UTILITIES RATE ZONE_LARGE USE WITH DEDICATED ASSETS SERVICE CLASSIFICATION | F20: ALECTRA UTILITIES CORPORATION_HORIZON UTILITIES RATE ZONE_LARGE USE WITH DEDICATED ASSETS SERVICE CLASSIFICATION | G20: 0 | H20: 0 | I20: 0 | J20: 0 | K20: 338136687 | L20: 775690 | M20: 772569984 | N20: 1226740 | O20: 0 | P20: 0 | Q20: 1110706646 | R20: 2002430 | S20: 1110706646 | T20: 2002430
A21: 2019 | B21: ALECTRA UTILITIES CORPORATION | C21: LARGE USER | D21: HYDRO ONE BRAMPTON_LARGE USE | E21: ALECTRA UTILITIES CORPORATION_BRAMPTON RATE ZONE_LARGE USE SERVICE CLASSIFICATION | F21: ALECTRA UTILITIES CORPORATION_BRAMPTON RATE ZONE_LARGE USE SERVICE CLASSIFICATION | G21: 36181265 | H21: 64480 | I21: 0 | J21: 0 | K21: 314198440 | L21: 593377 | M21: 0 | N21: 0 | O21: 0 | P21: 0 | Q21: 314198440 | R21: 593377 | S21: 350379705 | T21: 657857
A22: 2019 | B22: ALECTRA UTILITIES CORPORATION | C22: LARGE USER | D22: POWERSTREAM_LARGE USE | E22: ALECTRA UTILITIES CORPORATION_POWERSTREAM RATE ZONE_LARGE USE SERVICE CLASSIFICATION | F22: ALECTRA UTILITIES CORPORATION_POWERSTREAM RATE ZONE_LARGE USE SERVICE CLASSIFICATION | G22: 0 | H22: 0 | I22: 0 | J22: 0 | K22: 53218181 | L22: 102871 | M22: 0 | N22: 0 | O22: 0 | P22: 0 | Q22: 53218181 | R22: 102871 | S22: 53218181 | T22: 102871
A23: 2019 | B23: ALECTRA UTILITIES CORPORATION | C23: NO RATE CLASS | D23: NO RATE CLASS | E23: ALECTRA UTILITIES CORPORATION_NO RATE CLASS SERVICE CLASSIFICATION | F23: ALECTRA UTILITIES CORPORATION_NO RATE CLASS SERVICE CLASSIFICATION | G23: 0 | H23: 0 | I23: 0 | J23: 0 | K23: 0 | L23: 0 | M23: 0 | N23: 0 | O23: 5208559616 | P23: 10695302 | Q23: 0 | R23: 0 | S23: 0 | T23: 0
A24: 2019 | B24: ALECTRA UTILITIES CORPORATION | C24: RESIDENTIAL | D24: ENERSOURCE_RESIDENTIAL | E24: ALECTRA UTILITIES CORPORATION_ENERSOURCE RATE ZONE_RESIDENTIAL SERVICE CLASSIFICATION | F24: ALECTRA UTILITIES CORPORATION_ENERSOURCE RATE ZONE_RESIDENTIAL SERVICE CLASSIFICATION | G24: 47757736 | H24: 0 | I24: 1442774932 | J24: 0 | K24: 0 | L24: 0 | M24: 0 | N24: 0 | O24: 0 | P24: 0 | Q24: 1442774932 | R24: 0 | S24: 1490532668 | T24: 0
A25: 2019 | B25: ALECTRA UTILITIES CORPORATION | C25: RESIDENTIAL | D25: HORIZON_RESIDENTIAL | E25: ALECTRA UTILITIES CORPORATION_HORIZON UTILITIES RATE ZONE_RESIDENTIAL SERVICE CLASSIFICATION | F25: ALECTRA UTILITIES CORPORATION_HORIZON UTILITIES RATE ZONE_RESIDENTIAL SERVICE CLASSIFICATION | G25: 56706021 | H25: 0 | I25: 1602310791 | J25: 0 | K25: 0 | L25: 0 | M25: 0 | N25: 0 | O25: 0 | P25: 0 | Q25: 1602310791 | R25: 0 | S25: 1659016812 | T25: 0
A26: 2019 | B26: ALECTRA UTILITIES CORPORATION | C26: RESIDENTIAL | D26: HYDRO ONE BRAMPTON_RESIDENTIAL | E26: ALECTRA UTILITIES CORPORATION_BRAMPTON RATE ZONE_RESIDENTIAL SERVICE CLASSIFICATION | F26: ALECTRA UTILITIES CORPORATION_BRAMPTON RATE ZONE_RESIDENTIAL SERVICE CLASSIFICATION | G26: 56192652 | H26: 0 | I26: 1328933161 | J26: 0 | K26: 0 | L26: 0 | M26: 0 | N26: 0 | O26: 0 | P26: 0 | Q26: 1328933161 | R26: 0 | S26: 1385125813 | T26: 0
A27: 2019 | B27: ALECTRA UTILITIES CORPORATION | C27: RESIDENTIAL | D27: POWERSTREAM_RESIDENTIAL | E27: ALECTRA UTILITIES CORPORATION_POWERSTREAM RATE ZONE_RESIDENTIAL SERVICE CLASSIFICATION | F27: ALECTRA UTILITIES CORPORATION_POWERSTREAM RATE ZONE_RESIDENTIAL SERVICE CLASSIFICATION | G27: 71000892 | H27: 0 | I27: 2712707803 | J27: 0 | K27: 0 | L27: 0 | M27: 0 | N27: 0 | O27: 0 | P27: 0 | Q27: 2712707803 | R27: 0 | S27: 2783708695 | T27: 0
A28: 2019 | B28: ALECTRA UTILITIES CORPORATION | C28: SENTINEL LIGHTING CONNECTIONS | D28: HORIZON_SENTINEL LIGHTING | E28: ALECTRA UTILITIES CORPORATION_HORIZON UTILITIES RATE ZONE_SENTINEL LIGHTING SERVICE CLASSIFICATION | F28: ALECTRA UTILITIES CORPORATION_HORIZON UTILITIES RATE ZONE_SENTINEL LIGHTING SERVICE CLASSIFICATION | G28: 4291 | H28: 20 | I28: 478026 | J28: 1301 | K28: 0 | L28: 0 | M28: 0 | N28: 0 | O28: 0 | P28: 0 | Q28: 478026 | R28: 1301 | S28: 482317 | T28: 1321
A29: 2019 | B29: ALECTRA UTILITIES CORPORATION | C29: SENTINEL LIGHTING CONNECTIONS | D29: POWERSTREAM_SENTINEL LIGHTING | E29: ALECTRA UTILITIES CORPORATION_POWERSTREAM RATE ZONE_SENTINEL LIGHTING SERVICE CLASSIFICATION | F29: ALECTRA UTILITIES CORPORATION_POWERSTREAM RATE ZONE_SENTINEL LIGHTING SERVICE CLASSIFICATION | G29: 10167 | H29: 21 | I29: 274120 | J29: 769 | K29: 2097 | L29: 6 | M29: 0 | N29: 0 | O29: 0 | P29: 0 | Q29: 276217 | R29: 775 | S29: 286384 | T29: 796
A30: 2019 | B30: ALECTRA UTILITIES CORPORATION | C30: STREET LIGHTING CONNECTIONS | D30: ENERSOURCE_STREET LIGHTING | E30: ALECTRA UTILITIES CORPORATION_ENERSOURCE RATE ZONE_STREET LIGHTING SERVICE CLASSIFICATION | F30: ALECTRA UTILITIES CORPORATION_ENERSOURCE RATE ZONE_STREET LIGHTING SERVICE CLASSIFICATION | G30: 0 | H30: 0 | I30: 0 | J30: 0 | K30: 13289944 | L30: 40572 | M30: 0 | N30: 0 | O30: 0 | P30: 0 | Q30: 13289944 | R30: 40572 | S30: 13289944 | T30: 40572
A31: 2019 | B31: ALECTRA UTILITIES CORPORATION | C31: STREET LIGHTING CONNECTIONS | D31: HORIZON_STREET LIGHTING | E31: ALECTRA UTILITIES CORPORATION_HORIZON UTILITIES RATE ZONE_STREET LIGHTING SERVICE CLASSIFICATION | F31: ALECTRA UTILITIES CORPORATION_HORIZON UTILITIES RATE ZONE_STREET LIGHTING SERVICE CLASSIFICATION | G31: 0 | H31: 0 | I31: 228968 | J31: 635 | K31: 18577033 | L31: 58133 | M31: 0 | N31: 0 | O31: 0 | P31: 0 | Q31: 18806001 | R31: 58768 | S31: 18806001 | T31: 58768
A32: 2019 | B32: ALECTRA UTILITIES CORPORATION | C32: STREET LIGHTING CONNECTIONS | D32: HYDRO ONE BRAMPTON_STREET LIGHTING | E32: ALECTRA UTILITIES CORPORATION_BRAMPTON RATE ZONE_STREET LIGHTING SERVICE CLASSIFICATION | F32: ALECTRA UTILITIES CORPORATION_BRAMPTON RATE ZONE_STREET LIGHTING SERVICE CLASSIFICATION | G32: 0 | H32: 0 | I32: 0 | J32: 0 | K32: 34968321 | L32: 98842 | M32: 0 | N32: 0 | O32: 0 | P32: 0 | Q32: 34968321 | R32: 98842 | S32: 34968321 | T32: 98842
A33: 2019 | B33: ALECTRA UTILITIES CORPORATION | C33: STREET LIGHTING CONNECTIONS | D33: POWERSTREAM_STREET LIGHTING | E33: ALECTRA UTILITIES CORPORATION_POWERSTREAM RATE ZONE_STREET LIGHTING SERVICE CLASSIFICATION | F33: ALECTRA UTILITIES CORPORATION_POWERSTREAM RATE ZONE_STREET LIGHTING SERVICE CLASSIFICATION | G33: 722865 | H33: 1949 | I33: 671388 | J33: 1845 | K33: 47489700 | L33: 130357 | M33: 0 | N33: 0 | O33: 0 | P33: 0 | Q33: 48161088 | R33: 132202 | S33: 48883953 | T33: 134151
A34: 2019 | B34: ALECTRA UTILITIES CORPORATION | C34: UNMETERED SCATTERED LOAD CONNECTIONS | D34: ENERSOURCE_UNMETERED SCATTERED LOAD | E34: ALECTRA UTILITIES CORPORATION_ENERSOURCE RATE ZONE_UNMETERED SCATTERED LOAD SERVICE CLASSIFICATION | F34: ALECTRA UTILITIES CORPORATION_ENERSOURCE RATE ZONE_UNMETERED SCATTERED LOAD SERVICE CLASSIFICATION | G34: 444303 | H34: 0 | I34: 10993339 | J34: 0 | K34: 0 | L34: 0 | M34: 0 | N34: 0 | O34: 0 | P34: 0 | Q34: 10993339 | R34: 0 | S34: 11437642 | T34: 0
A35: 2019 | B35: ALECTRA UTILITIES CORPORATION | C35: UNMETERED SCATTERED LOAD CONNECTIONS | D35: HORIZON_UNMETERED SCATTERED LOAD | E35: ALECTRA UTILITIES CORPORATION_HORIZON UTILITIES RATE ZONE_UNMETERED SCATTERED LOAD SERVICE CLASSIFICATION | F35: ALECTRA UTILITIES CORPORATION_HORIZON UTILITIES RATE ZONE_UNMETERED SCATTERED LOAD SERVICE CLASSIFICATION | G35: 803996 | H35: 0 | I35: 10563222 | J35: 0 | K35: 5283 | L35: 0 | M35: 0 | N35: 0 | O35: 0 | P35: 0 | Q35: 10568505 | R35: 0 | S35: 11372501 | T35: 0
A36: 2019 | B36: ALECTRA UTILITIES CORPORATION | C36: UNMETERED SCATTERED LOAD CONNECTIONS | D36: HYDRO ONE BRAMPTON_UNMETERED SCATTERED LOAD | E36: ALECTRA UTILITIES CORPORATION_BRAMPTON RATE ZONE_UNMETERED SCATTERED LOAD SERVICE CLASSIFICATION | F36: ALECTRA UTILITIES CORPORATION_BRAMPTON RATE ZONE_UNMETERED SCATTERED LOAD SERVICE CLASSIFICATION | G36: 1417365 | H36: 0 | I36: 48791 | J36: 0 | K36: 4448499 | L36: 0 | M36: 0 | N36: 0 | O36: 0 | P36: 0 | Q36: 4497290 | R36: 0 | S36: 5914655 | T36: 0
A37: 2019 | B37: ALECTRA UTILITIES CORPORATION | C37: UNMETERED SCATTERED LOAD CONNECTIONS | D37: POWERSTREAM_UNMETERED SCATTERED LOAD | E37: ALECTRA UTILITIES CORPORATION_POWERSTREAM RATE ZONE_UNMETERED SCATTERED LOAD SERVICE CLASSIFICATION | F37: ALECTRA UTILITIES CORPORATION_POWERSTREAM RATE ZONE_UNMETERED SCATTERED LOAD SERVICE CLASSIFICATION | G37: 214076 | H37: 0 | I37: 13616712 | J37: 0 | K37: 0 | L37: 0 | M37: 0 | N37: 0 | O37: 0 | P37: 0 | Q37: 13616712 | R37: 0 | S37: 13830788 | T37: 0
A38: 2019 | B38: ALGOMA POWER INC. | C38: GENERAL SERVICE EQUAL TO OR GREATER THAN 50 KW | D38: RESIDENTIAL - R2 | E38: ALGOMA POWER INC._RESIDENTIAL R2 SERVICE CLASSIFICATION | F38: ALGOMA POWER INC._RESIDENTIAL R2 SERVICE CLASSIFICATION | G38: 3883820.015 | H38: 9879 | I38: 3264387.377 | J38: 9707.85 | K38: 102237367 | L38: 215211.14 | M38: 0 | N38: 0 | O38: 0 | P38: 0 | Q38: 105501754.4 | R38: 224918.99 | S38: 109385574.4 | T38: 234798.3
A39: 2019 | B39: ALGOMA POWER INC. | C39: NO RATE CLASS | D39: NO RATE CLASS | E39: ALGOMA POWER INC._NO RATE CLASS SERVICE CLASSIFICATION | F39: ALGOMA POWER INC._NO RATE CLASS SERVICE CLASSIFICATION | G39: 0 | H39: 0 | I39: 0 | J39: 0 | K39: 0 | L39: 0 | M39: 0 | N39: 0 | O39: 73319688 | P39: 123205.7891 | Q39: 0 | R39: 0 | S39: 0 | T39: 0
A40: 2019 | B40: ALGOMA POWER INC. | C40: RESIDENTIAL | D40: RESIDENTIAL - R1 | E40: ALGOMA POWER INC._RESIDENTIAL R1 SERVICE CLASSIFICATION | F40: ALGOMA POWER INC._RESIDENTIAL R1 SERVICE CLASSIFICATION | G40: 4067502.28 | H40: 0 | I40: 104489332.1 | J40: 0 | K40: 0 | L40: 0 | M40: 0 | N40: 0 | O40: 0 | P40: 0 | Q40: 104489332.1 | R40: 0 | S40: 108556834.4 | T40: 0
A41: 2019 | B41: ALGOMA POWER INC. | C41: RESIDENTIAL | D41: RESIDENTIAL - SEASONAL | E41: ALGOMA POWER INC._SEASONAL CUSTOMERS SERVICE CLASSIFICATION | F41: ALGOMA POWER INC._SEASONAL CUSTOMERS SERVICE CLASSIFICATION | G41: 28074.79 | H41: 0 | I41: 6018194.5 | J41: 0 | K41: 0 | L41: 0 | M41: 0 | N41: 0 | O41: 0 | P41: 0 | Q41: 6018194.5 | R41: 0 | S41: 6046269.29 | T41: 0
A42: 2019 | B42: ALGOMA POWER INC. | C42: STREET LIGHTING CONNECTIONS | D42: STREET LIGHTING | E42: ALGOMA POWER INC._STREET LIGHTING SERVICE CLASSIFICATION | F42: ALGOMA POWER INC._STREET LIGHTING SERVICE CLASSIFICATION | G42: 125331.9 | H42: 0 | I42: 0 | J42: 0 | K42: 451765.1 | L42: 0 | M42: 0 | N42: 0 | O42: 0 | P42: 0 | Q42: 451765.1 | R42: 0 | S42: 577097 | T42: 0
A43: 2019 | B43: ATIKOKAN HYDRO INC. | C43: GENERAL SERVICE EQUAL TO OR GREATER THAN 50 KW | D43: GENERAL SERVICE 50 TO 4,999 KW | E43: ATIKOKAN HYDRO INC._GENERAL SERVICE 50 TO 4,999 KW SERVICE CLASSIFICATION | F43: ATIKOKAN HYDRO INC._GENERAL SERVICE 50 TO 4,999 KW SERVICE CLASSIFICATION | G43: 1013760 | H43: 2303 | I43: 0 | J43: 0 | K43: 14840826 | L43: 53481.95 | M43: 0 | N43: 0 | O43: 0 | P43: 0 | Q43: 14840826 | R43: 53481.95 | S43: 15854586 | T43: 55785.65
A44: 2019 | B44: ATIKOKAN HYDRO INC. | C44: GENERAL SERVICE LESS THAN 50 KW | D44: GENERAL SERVICE LESS THAN 50 KW | E44: ATIKOKAN HYDRO INC._GENERAL SERVICE LESS THAN 50 KW SERVICE CLASSIFICATION | F44: ATIKOKAN HYDRO INC._GENERAL SERVICE LESS THAN 50 KW SERVICE CLASSIFICATION | G44: 45906.1 | H44: 0 | I44: 4682965.57 | J44: 0 | K44: 0 | L44: 0 | M44: 0 | N44: 0 | O44: 0 | P44: 0 | Q44: 4682965.57 | R44: 0 | S44: 4728871.67 | T44: 0
A45: 2019 | B45: ATIKOKAN HYDRO INC. | C45: NO RATE CLASS | D45: NO RATE CLASS | E45: ATIKOKAN HYDRO INC._NO RATE CLASS SERVICE CLASSIFICATION | F45: ATIKOKAN HYDRO INC._NO RATE CLASS SERVICE CLASSIFICATION | G45: 0 | H45: 0 | I45: 0 | J45: 0 | K45: 0 | L45: 0 | M45: 0 | N45: 0 | O45: 494323.5938 | P45: 3072.47998 | Q45: 0 | R45: 0 | S45: 0 | T45: 0
A46: 2019 | B46: ATIKOKAN HYDRO INC. | C46: RESIDENTIAL | D46: RESIDENTIAL | E46: ATIKOKAN HYDRO INC._RESIDENTIAL SERVICE CLASSIFICATION | F46: ATIKOKAN HYDRO INC._RESIDENTIAL SERVICE CLASSIFICATION | G46: 62968.6 | H46: 0 | I46: 9079646.85 | J46: 0 | K46: 0 | L46: 0 | M46: 0 | N46: 0 | O46: 0 | P46: 0 | Q46: 9079646.85 | R46: 0 | S46: 9142615.45 | T46: 0
A47: 2019 | B47: ATIKOKAN HYDRO INC. | C47: STREET LIGHTING CONNECTIONS | D47: STREET LIGHTING | E47: ATIKOKAN HYDRO INC._STREET LIGHTING SERVICE CLASSIFICATION | F47: ATIKOKAN HYDRO INC._STREET LIGHTING SERVICE CLASSIFICATION | G47: 0 | H47: 0 | I47: 0 | J47: 0 | K47: 419430.6 | L47: 1300.56 | M47: 0 | N47: 0 | O47: 0 | P47: 0 | Q47: 419430.6 | R47: 1300.56 | S47: 419430.6 | T47: 1300.56
A48: 2019 | B48: BLUEWATER POWER DISTRIBUTION CORPORATION | C48: GENERAL SERVICE EQUAL TO OR GREATER THAN 50 KW | D48: GENERAL SERVICE 1,000 TO 4,999 KW | E48: BLUEWATER POWER DISTRIBUTION CORPORATION_GENERAL SERVICE 1,000 TO 4,999 KW SERVICE CLASSIFICATION | F48: BLUEWATER POWER DISTRIBUTION CORPORATION_GENERAL SERVICE 1,000 TO 4,999 KW SERVICE CLASSIFICATION | G48: 0 | H48: 0 | I48: 0 | J48: 0 | K48: 136386985 | L48: 279319 | M48: 0 | N48: 0 | O48: 0 | P48: 0 | Q48: 136386985 | R48: 279319 | S48: 136386985 | T48: 279319
A49: 2019 | B49: BLUEWATER POWER DISTRIBUTION CORPORATION | C49: GENERAL SERVICE EQUAL TO OR GREATER THAN 50 KW | D49: GENERAL SERVICE 50 TO 999 KW | E49: BLUEWATER POWER DISTRIBUTION CORPORATION_GENERAL SERVICE 50 TO 999 KW SERVICE CLASSIFICATION | F49: BLUEWATER POWER DISTRIBUTION CORPORATION_GENERAL SERVICE 50 TO 999 KW SERVICE CLASSIFICATION | G49: 32473459 | H49: 104800 | I49: 43874551 | J49: 282451 | K49: 119444230 | L49: 148428 | M49: 4258881 | N49: 8284 | O49: 0 | P49: 0 | Q49: 167577662 | R49: 439163 | S49: 200051121 | T49: 543963
A50: 2019 | B50: BLUEWATER POWER DISTRIBUTION CORPORATION | C50: GENERAL SERVICE LESS THAN 50 KW | D50: GENERAL SERVICE LESS THAN 50 KW | E50: BLUEWATER POWER DISTRIBUTION CORPORATION_GENERAL SERVICE LESS THAN 50 KW SERVICE CLASSIFICATION | F50: BLUEWATER POWER DISTRIBUTION CORPORATION_GENERAL SERVICE LESS THAN 50 KW SERVICE CLASSIFICATION | G50: 16708479 | H50: 0 | I50: 85676435 | J50: 0 | K50: 0 | L50: 0 | M50: 0 | N50: 0 | O50: 0 | P50: 0 | Q50: 85676435 | R50: 0 | S50: 102384914 | T50: 0
A51: 2019 | B51: BLUEWATER POWER DISTRIBUTION CORPORATION | C51: LARGE USER | D51: LARGE USE | E51: BLUEWATER POWER DISTRIBUTION CORPORATION_LARGE USE SERVICE CLASSIFICATION | F51: BLUEWATER POWER DISTRIBUTION CORPORATION_LARGE USE SERVICE CLASSIFICATION | G51: 0 | H51: 0 | I51: 0 | J51: 0 | K51: 175694404 | L51: 300440 | M51: 111693024 | N51: 186019 | O51: 0 | P51: 0 | Q51: 287387432 | R51: 486459 | S51: 287387432 | T51: 486459
A52: 2019 | B52: BLUEWATER POWER DISTRIBUTION CORPORATION | C52: NO RATE CLASS | D52: NO RATE CLASS | E52: BLUEWATER POWER DISTRIBUTION CORPORATION_NO RATE CLASS SERVICE CLASSIFICATION | F52: BLUEWATER POWER DISTRIBUTION CORPORATION_NO RATE CLASS SERVICE CLASSIFICATION | G52: 0 | H52: 0 | I52: 0 | J52: 0 | K52: 0 | L52: 0 | M52: 0 | N52: 0 | O52: 308027904 | P52: 562016 | Q52: 0 | R52: 0 | S52: 0 | T52: 0
A53: 2019 | B53: BLUEWATER POWER DISTRIBUTION CORPORATION | C53: RESIDENTIAL | D53: RESIDENTIAL | E53: BLUEWATER POWER DISTRIBUTION CORPORATION_RESIDENTIAL SERVICE CLASSIFICATION | F53: BLUEWATER POWER DISTRIBUTION CORPORATION_RESIDENTIAL SERVICE CLASSIFICATION | G53: 8337898 | H53: 0 | I53: 250709361 | J53: 0 | K53: 0 | L53: 0 | M53: 0 | N53: 0 | O53: 0 | P53: 0 | Q53: 250709361 | R53: 0 | S53: 259047259 | T53: 0
A54: 2019 | B54: BLUEWATER POWER DISTRIBUTION CORPORATION | C54: SENTINEL LIGHTING CONNECTIONS | D54: SENTINEL LIGHTING | E54: BLUEWATER POWER DISTRIBUTION CORPORATION_SENTINEL LIGHTING SERVICE CLASSIFICATION | F54: BLUEWATER POWER DISTRIBUTION CORPORATION_SENTINEL LIGHTING SERVICE CLASSIFICATION | G54: 34289 | H54: 90 | I54: 420523 | J54: 1213 | K54: 0 | L54: 0 | M54: 0 | N54: 0 | O54: 0 | P54: 0 | Q54: 420523 | R54: 1213 | S54: 454812 | T54: 1303
A55: 2019 | B55: BLUEWATER POWER DISTRIBUTION CORPORATION | C55: STREET LIGHTING CONNECTIONS | D55: STREET LIGHTING | E55: BLUEWATER POWER DISTRIBUTION CORPORATION_STREET LIGHTING SERVICE CLASSIFICATION | F55: BLUEWATER POWER DISTRIBUTION CORPORATION_STREET LIGHTING SERVICE CLASSIFICATION | G55: 0 | H55: 0 | I55: 0 | J55: 0 | K55: 3664818 | L55: 10173 | M55: 0 | N55: 0 | O55: 0 | P55: 0 | Q55: 3664818 | R55: 10173 | S55: 3664818 | T55: 10173
A56: 2019 | B56: BLUEWATER POWER DISTRIBUTION CORPORATION | C56: UNMETERED SCATTERED LOAD CONNECTIONS | D56: UNMETERED SCATTERED LOAD | E56: BLUEWATER POWER DISTRIBUTION CORPORATION_UNMETERED SCATTERED LOAD SERVICE CLASSIFICATION | F56: BLUEWATER POWER DISTRIBUTION CORPORATION_UNMETERED SCATTERED LOAD SERVICE CLASSIFICATION | G56: 212632 | H56: 0 | I56: 1845708 | J56: 0 | K56: 0 | L56: 0 | M56: 0 | N56: 0 | O56: 0 | P56: 0 | Q56: 1845708 | R56: 0 | S56: 2058340 | T56: 0
A57: 2019 | B57: BRANTFORD POWER INC. | C57: EMBEDDED DISTRIBUTOR(S) | D57: EMBEDDED DISTRIBUTOR | E57: BRANTFORD POWER INC._EMBEDDED DISTRIBUTOR SERVICE CLASSIFICATION | F57: BRANTFORD POWER INC._EMBEDDED DISTRIBUTOR SERVICE CLASSIFICATION | G57: 0 | H57: 0 | I57: 0 | J57: 0 | K57: 0 | L57: 0 | M57: 41227724 | N57: 95218.59375 | O57: 0 | P57: 0 | Q57: 41227723 | R57: 95218.59 | S57: 41227723 | T57: 95218.59
A58: 2019 | B58: BRANTFORD POWER INC. | C58: GENERAL SERVICE EQUAL TO OR GREATER THAN 50 KW | D58: GENERAL SERVICE 50 TO 4,999 KW | E58: BRANTFORD POWER INC._GENERAL SERVICE 50 TO 4,999 KW SERVICE CLASSIFICATION | F58: BRANTFORD POWER INC._GENERAL SERVICE 50 TO 4,999 KW SERVICE CLASSIFICATION | G58: 136415423 | H58: 333728 | I58: 36929489.57 | J58: 106844.53 | K58: 356247686.9 | L58: 994672.08 | M58: 6330357 | N58: 12258.42969 | O58: 0 | P58: 0 | Q58: 399507533.4 | R58: 1113775.04 | S58: 535922956.4 | T58: 1447503.11
A59: 2019 | B59: BRANTFORD POWER INC. | C59: GENERAL SERVICE LESS THAN 50 KW | D59: GENERAL SERVICE LESS THAN 50 KW | E59: BRANTFORD POWER INC._GENERAL SERVICE LESS THAN 50 KW SERVICE CLASSIFICATION | F59: BRANTFORD POWER INC._GENERAL SERVICE LESS THAN 50 KW SERVICE CLASSIFICATION | G59: 12017127.98 | H59: 0 | I59: 82456911.89 | J59: 0 | K59: 254548.22 | L59: 0 | M59: 0 | N59: 0 | O59: 0 | P59: 0 | Q59: 82711460.11 | R59: 0 | S59: 94728588.09 | T59: 0
A60: 2019 | B60: BRANTFORD POWER INC. | C60: NO RATE CLASS | D60: NO RATE CLASS | E60: BRANTFORD POWER INC._NO RATE CLASS SERVICE CLASSIFICATION | F60: BRANTFORD POWER INC._NO RATE CLASS SERVICE CLASSIFICATION | G60: 0 | H60: 0 | I60: 0 | J60: 0 | K60: 0 | L60: 0 | M60: 0 | N60: 0 | O60: 187005648 | P60: 405217.4688 | Q60: 0 | R60: 0 | S60: 0 | T60: 0
A61: 2019 | B61: BRANTFORD POWER INC. | C61: RESIDENTIAL | D61: RESIDENTIAL | E61: BRANTFORD POWER INC._RESIDENTIAL SERVICE CLASSIFICATION | F61: BRANTFORD POWER INC._RESIDENTIAL SERVICE CLASSIFICATION | G61: 11330956.93 | H61: 0 | I61: 289979565.7 | J61: 0 | K61: 0 | L61: 0 | M61: 0 | N61: 0 | O61: 0 | P61: 0 | Q61: 289979565.7 | R61: 0 | S61: 301310522.6 | T61: 0
A62: 2019 | B62: BRANTFORD POWER INC. | C62: SENTINEL LIGHTING CONNECTIONS | D62: SENTINEL LIGHTING | E62: BRANTFORD POWER INC._SENTINEL LIGHTING SERVICE CLASSIFICATION | F62: BRANTFORD POWER INC._SENTINEL LIGHTING SERVICE CLASSIFICATION | G62: 0 | H62: 0 | I62: 190022.91 | J62: 520.3 | K62: 0 | L62: 0 | M62: 0 | N62: 0 | O62: 0 | P62: 0 | Q62: 190022.91 | R62: 520.3 | S62: 190022.91 | T62: 520.3
A63: 2019 | B63: BRANTFORD POWER INC. | C63: STREET LIGHTING CONNECTIONS | D63: STREET LIGHTING | E63: BRANTFORD POWER INC._STREET LIGHTING SERVICE CLASSIFICATION | F63: BRANTFORD POWER INC._STREET LIGHTING SERVICE CLASSIFICATION | G63: 0 | H63: 0 | I63: 0 | J63: 0 | K63: 7191579.98 | L63: 22227 | M63: 0 | N63: 0 | O63: 0 | P63: 0 | Q63: 7191579.98 | R63: 22227 | S63: 7191579.98 | T63: 22227
A64: 2019 | B64: BRANTFORD POWER INC. | C64: UNMETERED SCATTERED LOAD CONNECTIONS | D64: UNMETERED SCATTERED LOAD | E64: BRANTFORD POWER INC._UNMETERED SCATTERED LOAD SERVICE CLASSIFICATION | F64: BRANTFORD POWER INC._UNMETERED SCATTERED LOAD SERVICE CLASSIFICATION | G64: 0 | H64: 0 | I64: 1497429.01 | J64: 0 | K64: 0 | L64: 0 | M64: 0 | N64: 0 | O64: 0 | P64: 0 | Q64: 1497429.01 | R64: 0 | S64: 1497429.01 | T64: 0
A65: 2019 | B65: BURLINGTON HYDRO INC. | C65: GENERAL SERVICE EQUAL TO OR GREATER THAN 50 KW | D65: GENERAL SERVICE 50 TO 4,999 KW | E65: BURLINGTON HYDRO INC._GENERAL SERVICE 50 TO 4,999 KW SERVICE CLASSIFICATION | F65: BURLINGTON HYDRO INC._GENERAL SERVICE 50 TO 4,999 KW SERVICE CLASSIFICATION | G65: 132082156 | H65: 346060 | I65: 133881209 | J65: 385241 | K65: 612711824 | L65: 1647107 | M65: 0 | N65: 0 | O65: 0 | P65: 0 | Q65: 746593033 | R65: 2032348 | S65: 878675189 | T65: 2378408
A66: 2019 | B66: BURLINGTON HYDRO INC. | C66: GENERAL SERVICE LESS THAN 50 KW | D66: GENERAL SERVICE LESS THAN 50 KW | E66: BURLINGTON HYDRO INC._GENERAL SERVICE LESS THAN 50 KW SERVICE CLASSIFICATION | F66: BURLINGTON HYDRO INC._GENERAL SERVICE LESS THAN 50 KW SERVICE CLASSIFICATION | G66: 21219320 | H66: 0 | I66: 145092205 | J66: 0 | K66: 6839750 | L66: 0 | M66: 0 | N66: 0 | O66: 0 | P66: 0 | Q66: 151931955 | R66: 0 | S66: 173151275 | T66: 0
A67: 2019 | B67: BURLINGTON HYDRO INC. | C67: NO RATE CLASS | D67: NO RATE CLASS | E67: BURLINGTON HYDRO INC._NO RATE CLASS SERVICE CLASSIFICATION | F67: BURLINGTON HYDRO INC._NO RATE CLASS SERVICE CLASSIFICATION | G67: 0 | H67: 0 | I67: 0 | J67: 0 | K67: 0 | L67: 0 | M67: 0 | N67: 0 | O67: 211575456 | P67: 514564 | Q67: 0 | R67: 0 | S67: 0 | T67: 0
A68: 2019 | B68: BURLINGTON HYDRO INC. | C68: RESIDENTIAL | D68: RESIDENTIAL | E68: BURLINGTON HYDRO INC._RESIDENTIAL SERVICE CLASSIFICATION | F68: BURLINGTON HYDRO INC._RESIDENTIAL SERVICE CLASSIFICATION | G68: 8487586 | H68: 0 | I68: 526783090 | J68: 0 | K68: 0 | L68: 0 | M68: 0 | N68: 0 | O68: 0 | P68: 0 | Q68: 526783090 | R68: 0 | S68: 535270676 | T68: 0
A69: 2019 | B69: BURLINGTON HYDRO INC. | C69: STREET LIGHTING CONNECTIONS | D69: STREET LIGHTING | E69: BURLINGTON HYDRO INC._STREET LIGHTING SERVICE CLASSIFICATION | F69: BURLINGTON HYDRO INC._STREET LIGHTING SERVICE CLASSIFICATION | G69: 0 | H69: 0 | I69: 46982 | J69: 131 | K69: 7353934 | L69: 20440 | M69: 0 | N69: 0 | O69: 0 | P69: 0 | Q69: 7400916 | R69: 20571 | S69: 7400916 | T69: 20571
A70: 2019 | B70: BURLINGTON HYDRO INC. | C70: UNMETERED SCATTERED LOAD CONNECTIONS | D70: UNMETERED SCATTERED LOAD | E70: BURLINGTON HYDRO INC._UNMETERED SCATTERED LOAD SERVICE CLASSIFICATION | F70: BURLINGTON HYDRO INC._UNMETERED SCATTERED LOAD SERVICE CLASSIFICATION | G70: 0 | H70: 0 | I70: 3138760 | J70: 0 | K70: 0 | L70: 0 | M70: 0 | N70: 0 | O70: 0 | P70: 0 | Q70: 3138760 | R70: 0 | S70: 3138760 | T70: 0
A71: 2019 | B71: CANADIAN NIAGARA POWER INC. | C71: EMBEDDED DISTRIBUTOR(S) | D71: EMBEDDED DISTRIBUTOR | E71: CANADIAN NIAGARA POWER INC._EMBEDDED DISTRIBUTOR SERVICE CLASSIFICATION | F71: CANADIAN NIAGARA POWER INC._EMBEDDED DISTRIBUTOR SERVICE CLASSIFICATION | G71: 0 | H71: 0 | I71: 0 | J71: 0 | K71: 5218945.217 | L71: 13532.36 | M71: 0 | N71: 0 | O71: 0 | P71: 0 | Q71: 5218945.217 | R71: 13532.36 | S71: 5218945.217 | T71: 13532.36
A72: 2019 | B72: CANADIAN NIAGARA POWER INC. | C72: GENERAL SERVICE EQUAL TO OR GREATER THAN 50 KW | D72: GENERAL SERVICE 50 TO 4,999 KW | E72: CANADIAN NIAGARA POWER INC._GENERAL SERVICE 50 TO 4,999 KW SERVICE CLASSIFICATION | F72: CANADIAN NIAGARA POWER INC._GENERAL SERVICE 50 TO 4,999 KW SERVICE CLASSIFICATION | G72: 10539204.42 | H72: 32317 | I72: 14408140.69 | J72: 44237.06 | K72: 161370508.4 | L72: 503696.66 | M72: 0 | N72: 0 | O72: 0 | P72: 0 | Q72: 175778649.1 | R72: 547933.72 | S72: 186317853.5 | T72: 580250.94
A73: 2019 | B73: CANADIAN NIAGARA POWER INC. | C73: GENERAL SERVICE LESS THAN 50 KW | D73: GENERAL SERVICE LESS THAN 50 KW | E73: CANADIAN NIAGARA POWER INC._GENERAL SERVICE LESS THAN 50 KW SERVICE CLASSIFICATION | F73: CANADIAN NIAGARA POWER INC._GENERAL SERVICE LESS THAN 50 KW SERVICE CLASSIFICATION | G73: 10554960.88 | H73: 0 | I73: 57664104.74 | J73: 0 | K73: 0 | L73: 0 | M73: 0 | N73: 0 | O73: 0 | P73: 0 | Q73: 57664104.74 | R73: 0 | S73: 68219065.62 | T73: 0
A74: 2019 | B74: CANADIAN NIAGARA POWER INC. | C74: NO RATE CLASS | D74: NO RATE CLASS | E74: CANADIAN NIAGARA POWER INC._NO RATE CLASS SERVICE CLASSIFICATION | F74: CANADIAN NIAGARA POWER INC._NO RATE CLASS SERVICE CLASSIFICATION | G74: 0 | H74: 0 | I74: 0 | J74: 0 | K74: 0 | L74: 0 | M74: 0 | N74: 0 | O74: 76022384 | P74: 234135.9531 | Q74: 0 | R74: 0 | S74: 0 | T74: 0
A75: 2019 | B75: CANADIAN NIAGARA POWER INC. | C75: RESIDENTIAL | D75: RESIDENTIAL | E75: CANADIAN NIAGARA POWER INC._RESIDENTIAL SERVICE CLASSIFICATION | F75: CANADIAN NIAGARA POWER INC._RESIDENTIAL SERVICE CLASSIFICATION | G75: 6686556 | H75: 0 | I75: 206698236 | J75: 0 | K75: 0 | L75: 0 | M75: 0 | N75: 0 | O75: 0 | P75: 0 | Q75: 206698236 | R75: 0 | S75: 213384792 | T75: 0
A76: 2019 | B76: CANADIAN NIAGARA POWER INC. | C76: SENTINEL LIGHTING CONNECTIONS | D76: SENTINEL LIGHTING | E76: CANADIAN NIAGARA POWER INC._SENTINEL LIGHTING SERVICE CLASSIFICATION | F76: CANADIAN NIAGARA POWER INC._SENTINEL LIGHTING SERVICE CLASSIFICATION | G76: 394.3589744 | H76: 1 | I76: 605647.7588 | J76: 1949.99 | K76: 0 | L76: 0 | M76: 0 | N76: 0 | O76: 0 | P76: 0 | Q76: 605647.7588 | R76: 1949.99 | S76: 606042.1178 | T76: 1951.29
A77: 2019 | B77: CANADIAN NIAGARA POWER INC. | C77: STREET LIGHTING CONNECTIONS | D77: STREET LIGHTING | E77: CANADIAN NIAGARA POWER INC._STREET LIGHTING SERVICE CLASSIFICATION | F77: CANADIAN NIAGARA POWER INC._STREET LIGHTING SERVICE CLASSIFICATION | G77: 0 | H77: 0 | I77: 81555.66952 | J77: 268.97 | K77: 1308491.3 | L77: 3982.8 | M77: 0 | N77: 0 | O77: 0 | P77: 0 | Q77: 1390046.97 | R77: 4251.77 | S77: 1390046.97 | T77: 4251.77
A78: 2019 | B78: CANADIAN NIAGARA POWER INC. | C78: UNMETERED SCATTERED LOAD CONNECTIONS | D78: UNMETERED SCATTERED LOAD | E78: CANADIAN NIAGARA POWER INC._UNMETERED SCATTERED LOAD SERVICE CLASSIFICATION | F78: CANADIAN NIAGARA POWER INC._UNMETERED SCATTERED LOAD SERVICE CLASSIFICATION | G78: 369104.1 | H78: 0 | I78: 1271327.06 | J78: 0 | K78: 0 | L78: 0 | M78: 0 | N78: 0 | O78: 0 | P78: 0 | Q78: 1271327.06 | R78: 0 | S78: 1640431.16 | T78: 0
A79: 2019 | B79: CENTRE WELLINGTON HYDRO LTD. | C79: GENERAL SERVICE EQUAL TO OR GREATER THAN 50 KW | D79: GENERAL SERVICE 3,000 TO 4,999 KW | E79: CENTRE WELLINGTON HYDRO LTD._GENERAL SERVICE 3,000 TO 4,999 KW SERVICE CLASSIFICATION | F79: CENTRE WELLINGTON HYDRO LTD._GENERAL SERVICE 3,000 TO 4,999 KW SERVICE CLASSIFICATION | G79: 0 | H79: 0 | I79: 0 | J79: 0 | K79: 18999941 | L79: 43889.26 | M79: 0 | N79: 0 | O79: 0 | P79: 0 | Q79: 18999941 | R79: 43889.26 | S79: 18999941 | T79: 43889.26
A80: 2019 | B80: CENTRE WELLINGTON HYDRO LTD. | C80: GENERAL SERVICE EQUAL TO OR GREATER THAN 50 KW | D80: GENERAL SERVICE 50 TO 2,999 KW | E80: CENTRE WELLINGTON HYDRO LTD._GENERAL SERVICE 50 TO 2,999 KW SERVICE CLASSIFICATION | F80: CENTRE WELLINGTON HYDRO LTD._GENERAL SERVICE 50 TO 2,999 KW SERVICE CLASSIFICATION | G80: 8977678 | H80: 22877 | I80: 1709345 | J80: 5381.29 | K80: 39768168 | L80: 109763.66 | M80: 2866640.25 | N80: 5504.569824 | O80: 0 | P80: 0 | Q80: 44344153.26 | R80: 120649.52 | S80: 53321831.26 | T80: 143526.88
A81: 2019 | B81: CENTRE WELLINGTON HYDRO LTD. | C81: GENERAL SERVICE LESS THAN 50 KW | D81: GENERAL SERVICE LESS THAN 50 KW | E81: CENTRE WELLINGTON HYDRO LTD._GENERAL SERVICE LESS THAN 50 KW SERVICE CLASSIFICATION | F81: CENTRE WELLINGTON HYDRO LTD._GENERAL SERVICE LESS THAN 50 KW SERVICE CLASSIFICATION | G81: 4768092 | H81: 0 | I81: 18536988 | J81: 0 | K81: 15875 | L81: 0 | M81: 0 | N81: 0 | O81: 0 | P81: 0 | Q81: 18552863 | R81: 0 | S81: 23320955 | T81: 0
A82: 2019 | B82: CENTRE WELLINGTON HYDRO LTD. | C82: NO RATE CLASS | D82: NO RATE CLASS | E82: CENTRE WELLINGTON HYDRO LTD._NO RATE CLASS SERVICE CLASSIFICATION | F82: CENTRE WELLINGTON HYDRO LTD._NO RATE CLASS SERVICE CLASSIFICATION | G82: 0 | H82: 0 | I82: 0 | J82: 0 | K82: 0 | L82: 0 | M82: 0 | N82: 0 | O82: 10816567 | P82: 26242.16016 | Q82: 0 | R82: 0 | S82: 0 | T82: 0
A83: 2019 | B83: CENTRE WELLINGTON HYDRO LTD. | C83: RESIDENTIAL | D83: RESIDENTIAL | E83: CENTRE WELLINGTON HYDRO LTD._RESIDENTIAL SERVICE CLASSIFICATION | F83: CENTRE WELLINGTON HYDRO LTD._RESIDENTIAL SERVICE CLASSIFICATION | G83: 1409845 | H83: 0 | I83: 45142244 | J83: 0 | K83: 0 | L83: 0 | M83: 0 | N83: 0 | O83: 0 | P83: 0 | Q83: 45142244 | R83: 0 | S83: 46552089 | T83: 0
A84: 2019 | B84: CENTRE WELLINGTON HYDRO LTD. | C84: SENTINEL LIGHTING CONNECTIONS | D84: SENTINEL LIGHTING | E84: CENTRE WELLINGTON HYDRO LTD._SENTINEL LIGHTING SERVICE CLASSIFICATION | F84: CENTRE WELLINGTON HYDRO LTD._SENTINEL LIGHTING SERVICE CLASSIFICATION | G84: 12921 | H84: 35 | I84: 23483 | J84: 65.23 | K84: 0 | L84: 0 | M84: 0 | N84: 0 | O84: 0 | P84: 0 | Q84: 23483 | R84: 65.23 | S84: 36404 | T84: 101.12
A85: 2019 | B85: CENTRE WELLINGTON HYDRO LTD. | C85: STREET LIGHTING CONNECTIONS | D85: STREET LIGHTING | E85: CENTRE WELLINGTON HYDRO LTD._STREET LIGHTING SERVICE CLASSIFICATION | F85: CENTRE WELLINGTON HYDRO LTD._STREET LIGHTING SERVICE CLASSIFICATION | G85: 0 | H85: 0 | I85: 0 | J85: 0 | K85: 520134 | L85: 1436.34 | M85: 0 | N85: 0 | O85: 0 | P85: 0 | Q85: 520134 | R85: 1436.34 | S85: 520134 | T85: 1436.34
A86: 2019 | B86: CENTRE WELLINGTON HYDRO LTD. | C86: UNMETERED SCATTERED LOAD CONNECTIONS | D86: UNMETERED SCATTERED LOAD | E86: CENTRE WELLINGTON HYDRO LTD._UNMETERED SCATTERED LOAD SERVICE CLASSIFICATION | F86: CENTRE WELLINGTON HYDRO LTD._UNMETERED SCATTERED LOAD SERVICE CLASSIFICATION | G86: 62016 | H86: 0 | I86: 509732 | J86: 0 | K86: 0 | L86: 0 | M86: 0 | N86: 0 | O86: 0 | P86: 0 | Q86: 509732 | R86: 0 | S86: 571748 | T86: 0
A87: 2019 | B87: CHAPLEAU PUBLIC UTILITIES CORPORATION | C87: GENERAL SERVICE EQUAL TO OR GREATER THAN 50 KW | D87: GENERAL SERVICE 50 TO 4,999 KW | E87: CHAPLEAU PUBLIC UTILITIES CORPORATION_GENERAL SERVICE 50 TO 4,999 KW SERVICE CLASSIFICATION | F87: CHAPLEAU PUBLIC UTILITIES CORPORATION_GENERAL SERVICE 50 TO 4,999 KW SERVICE CLASSIFICATION | G87: 228240 | H87: 750 | I87: 0 | J87: 0 | K87: 5557973 | L87: 15581.98 | M87: 0 | N87: 0 | O87: 0 | P87: 0 | Q87: 5557973 | R87: 15581.98 | S87: 5786213 | T87: 16332.58
A88: 2019 | B88: CHAPLEAU PUBLIC UTILITIES CORPORATION | C88: GENERAL SERVICE LESS THAN 50 KW | D88: GENERAL SERVICE LESS THAN 50 KW | E88: CHAPLEAU PUBLIC UTILITIES CORPORATION_GENERAL SERVICE LESS THAN 50 KW SERVICE CLASSIFICATION | F88: CHAPLEAU PUBLIC UTILITIES CORPORATION_GENERAL SERVICE LESS THAN 50 KW SERVICE CLASSIFICATION | G88: 179929 | H88: 0 | I88: 4693491 | J88: 0 | K88: 0 | L88: 0 | M88: 0 | N88: 0 | O88: 0 | P88: 0 | Q88: 4693491 | R88: 0 | S88: 4873420 | T88: 0
A89: 2019 | B89: CHAPLEAU PUBLIC UTILITIES CORPORATION | C89: NO RATE CLASS | D89: NO RATE CLASS | E89: CHAPLEAU PUBLIC UTILITIES CORPORATION_NO RATE CLASS SERVICE CLASSIFICATION | F89: CHAPLEAU PUBLIC UTILITIES CORPORATION_NO RATE CLASS SERVICE CLASSIFICATION | G89: 0 | H89: 0 | I89: 0 | J89: 0 | K89: 0 | L89: 0 | M89: 0 | N89: 0 | O89: 0 | P89: 0 | Q89: 0 | R89: 0 | S89: 0 | T89: 0
A90: 2019 | B90: CHAPLEAU PUBLIC UTILITIES CORPORATION | C90: RESIDENTIAL | D90: RESIDENTIAL | E90: CHAPLEAU PUBLIC UTILITIES CORPORATION_RESIDENTIAL SERVICE CLASSIFICATION | F90: CHAPLEAU PUBLIC UTILITIES CORPORATION_RESIDENTIAL SERVICE CLASSIFICATION | G90: 10928 | H90: 0 | I90: 13557632 | J90: 0 | K90: 0 | L90: 0 | M90: 0 | N90: 0 | O90: 0 | P90: 0 | Q90: 13557632 | R90: 0 | S90: 13568560 | T90: 0
A91: 2019 | B91: CHAPLEAU PUBLIC UTILITIES CORPORATION | C91: SENTINEL LIGHTING CONNECTIONS | D91: SENTINEL LIGHTING | E91: CHAPLEAU PUBLIC UTILITIES CORPORATION_SENTINEL LIGHTING SERVICE CLASSIFICATION | F91: CHAPLEAU PUBLIC UTILITIES CORPORATION_SENTINEL LIGHTING SERVICE CLASSIFICATION | G91: 0 | H91: 0 | I91: 20172 | J91: 55.47 | K91: 0 | L91: 0 | M91: 0 | N91: 0 | O91: 0 | P91: 0 | Q91: 20172 | R91: 55.47 | S91: 20172 | T91: 55.47
A92: 2019 | B92: CHAPLEAU PUBLIC UTILITIES CORPORATION | C92: STREET LIGHTING CONNECTIONS | D92: STREET LIGHTING | E92: CHAPLEAU PUBLIC UTILITIES CORPORATION_STREET LIGHTING SERVICE CLASSIFICATION | F92: CHAPLEAU PUBLIC UTILITIES CORPORATION_STREET LIGHTING SERVICE CLASSIFICATION | G92: 0 | H92: 0 | I92: 274259 | J92: 768 | K92: 0 | L92: 0 | M92: 0 | N92: 0 | O92: 0 | P92: 0 | Q92: 274259 | R92: 768 | S92: 274259 | T92: 768
A93: 2019 | B93: CHAPLEAU PUBLIC UTILITIES CORPORATION | C93: UNMETERED SCATTERED LOAD CONNECTIONS | D93: UNMETERED SCATTERED LOAD | E93: CHAPLEAU PUBLIC UTILITIES CORPORATION_UNMETERED SCATTERED LOAD SERVICE CLASSIFICATION | F93: CHAPLEAU PUBLIC UTILITIES CORPORATION_UNMETERED SCATTERED LOAD SERVICE CLASSIFICATION | G93: 0 | H93: 0 | I93: 2892 | J93: 0 | K93: 0 | L93: 0 | M93: 0 | N93: 0 | O93: 0 | P93: 0 | Q93: 2892 | R93: 0 | S93: 2892 | T93: 0
A94: 2019 | B94: COOPERATIVE HYDRO EMBRUN INC. | C94: GENERAL SERVICE EQUAL TO OR GREATER THAN 50 KW | D94: GENERAL SERVICE 50 TO 4,999 KW | E94: COOPERATIVE HYDRO EMBRUN INC._GENERAL SERVICE 50 TO 4,999 KW SERVICE CLASSIFICATION | F94: COOPERATIVE HYDRO EMBRUN INC._GENERAL SERVICE 50 TO 4,999 KW SERVICE CLASSIFICATION | G94: 243922 | H94: 24 | I94: 0 | J94: 0 | K94: 3652637 | L94: 10911 | M94: 0 | N94: 0 | O94: 0 | P94: 0 | Q94: 3652637 | R94: 10911 | S94: 3896559 | T94: 10935
A95: 2019 | B95: COOPERATIVE HYDRO EMBRUN INC. | C95: GENERAL SERVICE LESS THAN 50 KW | D95: GENERAL SERVICE LESS THAN 50 KW | E95: COOPERATIVE HYDRO EMBRUN INC._GENERAL SERVICE LESS THAN 50 KW SERVICE CLASSIFICATION | F95: COOPERATIVE HYDRO EMBRUN INC._GENERAL SERVICE LESS THAN 50 KW SERVICE CLASSIFICATION | G95: 358465 | H95: 0 | I95: 4191328 | J95: 0 | K95: 0 | L95: 0 | M95: 0 | N95: 0 | O95: 0 | P95: 0 | Q95: 4191328 | R95: 0 | S95: 4549793 | T95: 0
A96: 2019 | B96: COOPERATIVE HYDRO EMBRUN INC. | C96: NO RATE CLASS | D96: NO RATE CLASS | E96: COOPERATIVE HYDRO EMBRUN INC._NO RATE CLASS SERVICE CLASSIFICATION | F96: COOPERATIVE HYDRO EMBRUN INC._NO RATE CLASS SERVICE CLASSIFICATION | G96: 0 | H96: 0 | I96: 0 | J96: 0 | K96: 0 | L96: 0 | M96: 0 | N96: 0 | O96: 0 | P96: 0 | Q96: 0 | R96: 0 | S96: 0 | T96: 0
A97: 2019 | B97: COOPERATIVE HYDRO EMBRUN INC. | C97: RESIDENTIAL | D97: RESIDENTIAL | E97: COOPERATIVE HYDRO EMBRUN INC._RESIDENTIAL SERVICE CLASSIFICATION | F97: COOPERATIVE HYDRO EMBRUN INC._RESIDENTIAL SERVICE CLASSIFICATION | G97: 289159 | H97: 0 | I97: 20307978 | J97: 0 | K97: 0 | L97: 0 | M97: 0 | N97: 0 | O97: 0 | P97: 0 | Q97: 20307978 | R97: 0 | S97: 20597137 | T97: 0
A98: 2019 | B98: COOPERATIVE HYDRO EMBRUN INC. | C98: STREET LIGHTING CONNECTIONS | D98: STREET LIGHTING | E98: COOPERATIVE HYDRO EMBRUN INC._STREET LIGHTING SERVICE CLASSIFICATION | F98: COOPERATIVE HYDRO EMBRUN INC._STREET LIGHTING SERVICE CLASSIFICATION | G98: 0 | H98: 0 | I98: 0 | J98: 0 | K98: 208895 | L98: 583 | M98: 0 | N98: 0 | O98: 0 | P98: 0 | Q98: 208895 | R98: 583 | S98: 208895 | T98: 583
A99: 2019 | B99: COOPERATIVE HYDRO EMBRUN INC. | C99: UNMETERED SCATTERED LOAD CONNECTIONS | D99: UNMETERED SCATTERED LOAD | E99: COOPERATIVE HYDRO EMBRUN INC._UNMETERED SCATTERED LOAD SERVICE CLASSIFICATION | F99: COOPERATIVE HYDRO EMBRUN INC._UNMETERED SCATTERED LOAD SERVICE CLASSIFICATION | G99: 0 | H99: 0 | I99: 93084 | J99: 0 | K99: 0 | L99: 0 | M99: 0 | N99: 0 | O99: 0 | P99: 0 | Q99: 93084 | R99: 0 | S99: 93084 | T99: 0
A100: 2019 | B100: E.L.K. ENERGY INC. | C100: EMBEDDED DISTRIBUTOR(S) | D100: EMBEDDED DISTRIBUTOR | E100: E.L.K. ENERGY INC._EMBEDDED DISTRIBUTOR SERVICE CLASSIFICATION | F100: E.L.K. ENERGY INC._EMBEDDED DISTRIBUTOR SERVICE CLASSIFICATION | G100: 0 | H100: 0 | I100: 0 | J100: 0 | K100: 61680653 | L100: 145229 | M100: 0 | N100: 0 | O100: 0 | P100: 0 | Q100: 61680653 | R100: 145229 | S100: 61680653 | T100: 145229
A101: 2019 | B101: E.L.K. ENERGY INC. | C101: GENERAL SERVICE EQUAL TO OR GREATER THAN 50 KW | D101: GENERAL SERVICE 50 TO 4,999 KW | E101: E.L.K. ENERGY INC._GENERAL SERVICE 50 TO 4,999 KW SERVICE CLASSIFICATION | F101: E.L.K. ENERGY INC._GENERAL SERVICE 50 TO 4,999 KW SERVICE CLASSIFICATION | G101: 0 | H101: 0 | I101: 1695771 | J101: 6951 | K101: 40698505 | L101: 166833 | M101: 0 | N101: 0 | O101: 0 | P101: 0 | Q101: 42394276 | R101: 173784 | S101: 42394276 | T101: 173784
A102: 2019 | B102: E.L.K. ENERGY INC. | C102: GENERAL SERVICE LESS THAN 50 KW | D102: GENERAL SERVICE LESS THAN 50 KW | E102: E.L.K. ENERGY INC._GENERAL SERVICE LESS THAN 50 KW SERVICE CLASSIFICATION | F102: E.L.K. ENERGY INC._GENERAL SERVICE LESS THAN 50 KW SERVICE CLASSIFICATION | G102: 0 | H102: 0 | I102: 24962688 | J102: 0 | K102: 3730057 | L102: 0 | M102: 0 | N102: 0 | O102: 0 | P102: 0 | Q102: 28692745 | R102: 0 | S102: 28692745 | T102: 0
A103: 2019 | B103: E.L.K. ENERGY INC. | C103: NO RATE CLASS | D103: NO RATE CLASS | E103: E.L.K. ENERGY INC._NO RATE CLASS SERVICE CLASSIFICATION | F103: E.L.K. ENERGY INC._NO RATE CLASS SERVICE CLASSIFICATION | G103: 0 | H103: 0 | I103: 0 | J103: 0 | K103: 0 | L103: 0 | M103: 0 | N103: 0 | O103: 17393686 | P103: 56726 | Q103: 0 | R103: 0 | S103: 0 | T103: 0
A104: 2019 | B104: E.L.K. ENERGY INC. | C104: RESIDENTIAL | D104: RESIDENTIAL | E104: E.L.K. ENERGY INC._RESIDENTIAL SERVICE CLASSIFICATION | F104: E.L.K. ENERGY INC._RESIDENTIAL SERVICE CLASSIFICATION | G104: 1 | H104: 1 | I104: 91681675 | J104: 0 | K104: 2835516 | L104: 0 | M104: 0 | N104: 0 | O104: 0 | P104: 0 | Q104: 94517191 | R104: 0 | S104: 94517192 | T104: 1
A105: 2019 | B105: E.L.K. ENERGY INC. | C105: SENTINEL LIGHTING CONNECTIONS | D105: SENTINEL LIGHTING | E105: E.L.K. ENERGY INC._SENTINEL LIGHTING SERVICE CLASSIFICATION | F105: E.L.K. ENERGY INC._SENTINEL LIGHTING SERVICE CLASSIFICATION | G105: 0 | H105: 0 | I105: 0 | J105: 0 | K105: 149558 | L105: 388 | M105: 0 | N105: 0 | O105: 0 | P105: 0 | Q105: 149558 | R105: 388 | S105: 149558 | T105: 388
A106: 2019 | B106: E.L.K. ENERGY INC. | C106: STREET LIGHTING CONNECTIONS | D106: STREET LIGHTING | E106: E.L.K. ENERGY INC._STREET LIGHTING SERVICE CLASSIFICATION | F106: E.L.K. ENERGY INC._STREET LIGHTING SERVICE CLASSIFICATION | G106: 0 | H106: 0 | I106: 0 | J106: 0 | K106: 1349349 | L106: 3920 | M106: 0 | N106: 0 | O106: 0 | P106: 0 | Q106: 1349349 | R106: 3920 | S106: 1349349 | T106: 3920
A107: 2019 | B107: E.L.K. ENERGY INC. | C107: UNMETERED SCATTERED LOAD CONNECTIONS | D107: UNMETERED SCATTERED LOAD | E107: E.L.K. ENERGY INC._UNMETERED SCATTERED LOAD SERVICE CLASSIFICATION | F107: E.L.K. ENERGY INC._UNMETERED SCATTERED LOAD SERVICE CLASSIFICATION | G107: 0 | H107: 0 | I107: 0 | J107: 0 | K107: 249143 | L107: 0 | M107: 0 | N107: 0 | O107: 0 | P107: 0 | Q107: 249143 | R107: 0 | S107: 249143 | T107: 0
A108: 2019 | B108: ENERGY+ INC. | C108: EMBEDDED DISTRIBUTOR(S) | D108: CAMBRIDGE AND NORTH DUMFRIES_EMBEDDED DISTRIBUTOR | E108: ENERGY+ INC._FOR FORMER CAMBRIDGE AND NORTH DUMFRIES HYDRO SERVICE AREA_EMBEDDED DISTRIBUTOR SERVICE CLASSIFICATION | F108: ENERGY+ INC._FOR FORMER CAMBRIDGE AND NORTH DUMFRIES HYDRO SERVICE AREA_EMBEDDED DISTRIBUTOR SERVICE CLASSIFICATION | G108: 0 | H108: 0 | I108: 0 | J108: 0 | K108: 13409780 | L108: 143916 | M108: 0 | N108: 0 | O108: 0 | P108: 0 | Q108: 13409780 | R108: 143916 | S108: 13409780 | T108: 143916
A109: 2019 | B109: ENERGY+ INC. | C109: GENERAL SERVICE EQUAL TO OR GREATER THAN 50 KW | D109: BRANT COUNTY_GENERAL SERVICE 50 TO 4,999 KW | E109: ENERGY+ INC._FOR FORMER BRANT COUNTY POWER SERVICE AREA_GENERAL SERVICE 50 TO 4,999 KW SERVICE CLASSIFICATION | F109: ENERGY+ INC._FOR FORMER BRANT COUNTY POWER SERVICE AREA_GENERAL SERVICE 50 TO 4,999 KW SERVICE CLASSIFICATION | G109: 19460394 | H109: 73491 | I109: 4640840 | J109: 0 | K109: 144748602 | L109: 636869 | M109: 0 | N109: 0 | O109: 0 | P109: 0 | Q109: 149389442 | R109: 636869 | S109: 168849836 | T109: 710360
A110: 2019 | B110: ENERGY+ INC. | C110: GENERAL SERVICE EQUAL TO OR GREATER THAN 50 KW | D110: CAMBRIDGE AND NORTH DUMFRIES_GENERAL SERVICE 1,000 TO 4,999 KW | E110: ENERGY+ INC._FOR FORMER CAMBRIDGE AND NORTH DUMFRIES HYDRO SERVICE AREA_GENERAL SERVICE 1,000 TO 4,999 KW SERVICE CLASSIFICATION | F110: ENERGY+ INC._FOR FORMER CAMBRIDGE AND NORTH DUMFRIES HYDRO SERVICE AREA_GENERAL SERVICE 1,000 TO 4,999 KW SERVICE CLASSIFICATION | G110: 72473518 | H110: 149549 | I110: 0 | J110: 0 | K110: 126172483 | L110: 321146 | M110: 26990256 | N110: 44811 | O110: 0 | P110: 0 | Q110: 153162739 | R110: 365957 | S110: 225636257 | T110: 515506
A111: 2019 | B111: ENERGY+ INC. | C111: GENERAL SERVICE EQUAL TO OR GREATER THAN 50 KW | D111: CAMBRIDGE AND NORTH DUMFRIES_GENERAL SERVICE 50 TO 999 KW | E111: ENERGY+ INC._FOR FORMER CAMBRIDGE AND NORTH DUMFRIES HYDRO SERVICE AREA_GENERAL SERVICE 50 TO 999 KW SERVICE CLASSIFICATION | F111: ENERGY+ INC._FOR FORMER CAMBRIDGE AND NORTH DUMFRIES HYDRO SERVICE AREA_GENERAL SERVICE 50 TO 999 KW SERVICE CLASSIFICATION | G111: 81049182 | H111: 255922 | I111: 46496040 | J111: 110572 | K111: 303924707 | L111: 960207 | M111: 9356307 | N111: 18403 | O111: 0 | P111: 0 | Q111: 359777054 | R111: 1089182 | S111: 440826236 | T111: 1345104
A112: 2019 | B112: ENERGY+ INC. | C112: GENERAL SERVICE LESS THAN 50 KW | D112: BRANT COUNTY_GENERAL SERVICE LESS THAN 50 KW | E112: ENERGY+ INC._FOR FORMER BRANT COUNTY POWER SERVICE AREA_GENERAL SERVICE LESS THAN 50 KW SERVICE CLASSIFICATION | F112: ENERGY+ INC._FOR FORMER BRANT COUNTY POWER SERVICE AREA_GENERAL SERVICE LESS THAN 50 KW SERVICE CLASSIFICATION | G112: 6608260 | H112: 0 | I112: 33309906 | J112: 0 | K112: 14584 | L112: 0 | M112: 0 | N112: 0 | O112: 0 | P112: 0 | Q112: 33324490 | R112: 0 | S112: 39932750 | T112: 0
A113: 2019 | B113: ENERGY+ INC. | C113: GENERAL SERVICE LESS THAN 50 KW | D113: CAMBRIDGE AND NORTH DUMFRIES_GENERAL SERVICE LESS THAN 50 KW | E113: ENERGY+ INC._FOR FORMER CAMBRIDGE AND NORTH DUMFRIES HYDRO SERVICE AREA_GENERAL SERVICE LESS THAN 50 KW SERVICE CLASSIFICATION | F113: ENERGY+ INC._FOR FORMER CAMBRIDGE AND NORTH DUMFRIES HYDRO SERVICE AREA_GENERAL SERVICE LESS THAN 50 KW SERVICE CLASSIFICATION | G113: 21647887 | H113: 0 | I113: 141328222 | J113: 0 | K113: 92937 | L113: 0 | M113: 0 | N113: 0 | O113: 0 | P113: 0 | Q113: 141421159 | R113: 0 | S113: 163069046 | T113: 0
A114: 2019 | B114: ENERGY+ INC. | C114: LARGE USER | D114: CAMBRIDGE AND NORTH DUMFRIES_LARGE USE | E114: ENERGY+ INC._FOR FORMER CAMBRIDGE AND NORTH DUMFRIES HYDRO SERVICE AREA_LARGE USE SERVICE CLASSIFICATION | F114: ENERGY+ INC._FOR FORMER CAMBRIDGE AND NORTH DUMFRIES HYDRO SERVICE AREA_LARGE USE SERVICE CLASSIFICATION | G114: 0 | H114: 0 | I114: 0 | J114: 0 | K114: 143975015 | L114: 358147 | M114: 0 | N114: 0 | O114: 0 | P114: 0 | Q114: 143975015 | R114: 358147 | S114: 143975015 | T114: 358147
A115: 2019 | B115: ENERGY+ INC. | C115: NO RATE CLASS | D115: NO RATE CLASS | E115: ENERGY+ INC._NO RATE CLASS SERVICE CLASSIFICATION | F115: ENERGY+ INC._NO RATE CLASS SERVICE CLASSIFICATION | G115: 0 | H115: 0 | I115: 0 | J115: 0 | K115: 0 | L115: 0 | M115: 0 | N115: 0 | O115: 316960384 | P115: 720245.125 | Q115: 0 | R115: 0 | S115: 0 | T115: 0
A116: 2019 | B116: ENERGY+ INC. | C116: RESIDENTIAL | D116: BRANT COUNTY_RESIDENTIAL | E116: ENERGY+ INC._FOR FORMER BRANT COUNTY POWER SERVICE AREA_RESIDENTIAL SERVICE CLASSIFICATION | F116: ENERGY+ INC._FOR FORMER BRANT COUNTY POWER SERVICE AREA_RESIDENTIAL SERVICE CLASSIFICATION | G116: 2011034 | H116: 0 | I116: 84608723 | J116: 0 | K116: 0 | L116: 0 | M116: 0 | N116: 0 | O116: 0 | P116: 0 | Q116: 84608723 | R116: 0 | S116: 86619757 | T116: 0
A117: 2019 | B117: ENERGY+ INC. | C117: RESIDENTIAL | D117: CAMBRIDGE AND NORTH DUMFRIES_RESIDENTIAL | E117: ENERGY+ INC._FOR FORMER CAMBRIDGE AND NORTH DUMFRIES HYDRO SERVICE AREA_RESIDENTIAL SERVICE CLASSIFICATION | F117: ENERGY+ INC._FOR FORMER CAMBRIDGE AND NORTH DUMFRIES HYDRO SERVICE AREA_RESIDENTIAL SERVICE CLASSIFICATION | G117: 9476387 | H117: 0 | I117: 401273259 | J117: 0 | K117: 0 | L117: 0 | M117: 0 | N117: 0 | O117: 0 | P117: 0 | Q117: 401273259 | R117: 0 | S117: 410749646 | T117: 0
A118: 2019 | B118: ENERGY+ INC. | C118: SENTINEL LIGHTING CONNECTIONS | D118: BRANT COUNTY_SENTINEL LIGHTING | E118: ENERGY+ INC._FOR FORMER BRANT COUNTY POWER SERVICE AREA_SENTINEL LIGHTING SERVICE CLASSIFICATION | F118: ENERGY+ INC._FOR FORMER BRANT COUNTY POWER SERVICE AREA_SENTINEL LIGHTING SERVICE CLASSIFICATION | G118: 118 | H118: 0 | I118: 13913 | J118: 0 | K118: 0 | L118: 0 | M118: 0 | N118: 0 | O118: 0 | P118: 0 | Q118: 13913 | R118: 0 | S118: 14031 | T118: 0
A119: 2019 | B119: ENERGY+ INC. | C119: STREET LIGHTING CONNECTIONS | D119: BRANT COUNTY_STREET LIGHTING | E119: ENERGY+ INC._FOR FORMER BRANT COUNTY POWER SERVICE AREA_STREET LIGHTING SERVICE CLASSIFICATION | F119: ENERGY+ INC._FOR FORMER BRANT COUNTY POWER SERVICE AREA_STREET LIGHTING SERVICE CLASSIFICATION | G119: 681813 | H119: 1913 | I119: 96436 | J119: 0 | K119: 0 | L119: 229 | M119: 0 | N119: 0 | O119: 0 | P119: 0 | Q119: 96436 | R119: 229 | S119: 778249 | T119: 2142
A120: 2019 | B120: ENERGY+ INC. | C120: STREET LIGHTING CONNECTIONS | D120: CAMBRIDGE AND NORTH DUMFRIES_STREET LIGHTING | E120: ENERGY+ INC._FOR FORMER CAMBRIDGE AND NORTH DUMFRIES HYDRO SERVICE AREA_STREET LIGHTING SERVICE CLASSIFICATION | F120: ENERGY+ INC._FOR FORMER CAMBRIDGE AND NORTH DUMFRIES HYDRO SERVICE AREA_STREET LIGHTING SERVICE CLASSIFICATION | G120: 0 | H120: 0 | I120: 218754 | J120: 0 | K120: 4963988 | L120: 14350 | M120: 0 | N120: 0 | O120: 0 | P120: 0 | Q120: 5182742 | R120: 14350 | S120: 5182742 | T120: 14350
A121: 2019 | B121: ENERGY+ INC. | C121: UNMETERED SCATTERED LOAD CONNECTIONS | D121: BRANT COUNTY_UNMETERED SCATTERED LOAD | E121: ENERGY+ INC._FOR FORMER BRANT COUNTY POWER SERVICE AREA_UNMETERED SCATTERED LOAD SERVICE CLASSIFICATION | F121: ENERGY+ INC._FOR FORMER BRANT COUNTY POWER SERVICE AREA_UNMETERED SCATTERED LOAD SERVICE CLASSIFICATION | G121: 205380 | H121: 0 | I121: 207761 | J121: 0 | K121: 0 | L121: 0 | M121: 0 | N121: 0 | O121: 0 | P121: 0 | Q121: 207761 | R121: 0 | S121: 413141 | T121: 0
A122: 2019 | B122: ENERGY+ INC. | C122: UNMETERED SCATTERED LOAD CONNECTIONS | D122: CAMBRIDGE AND NORTH DUMFRIES_UNMETERED SCATTERED LOAD | E122: ENERGY+ INC._FOR FORMER CAMBRIDGE AND NORTH DUMFRIES HYDRO SERVICE AREA_UNMETERED SCATTERED LOAD SERVICE CLASSIFICATION | F122: ENERGY+ INC._FOR FORMER CAMBRIDGE AND NORTH DUMFRIES HYDRO SERVICE AREA_UNMETERED SCATTERED LOAD SERVICE CLASSIFICATION | G122: 4020 | H122: 0 | I122: 1831514 | J122: 0 | K122: 0 | L122: 0 | M122: 0 | N122: 0 | O122: 0 | P122: 0 | Q122: 1831514 | R122: 0 | S122: 1835534 | T122: 0
A123: 2019 | B123: ENTEGRUS POWERLINES INC. | C123: EMBEDDED DISTRIBUTOR(S) | D123: EMBEDDED DISTRIBUTOR - ENTEGRUS POWERLINES | E123: ENTEGRUS POWERLINES INC._FOR ENTEGRUS-MAIN RATE ZONE_EMBEDDED DISTRIBUTOR SERVICE CLASSIFICATION | F123: ENTEGRUS POWERLINES INC._FOR ENTEGRUS_MAIN RATE ZONE_EMBEDDED DISTRIBUTOR SERVICE CLASSIFICATION | G123: 0 | H123: 0 | I123: 0 | J123: 0 | K123: 9858716 | L123: 38905 | M123: 0 | N123: 0 | O123: 0 | P123: 0 | Q123: 9858716 | R123: 38905 | S123: 9858716 | T123: 38905
A124: 2019 | B124: ENTEGRUS POWERLINES INC. | C124: GENERAL SERVICE EQUAL TO OR GREATER THAN 50 KW | D124: GENERAL SERVICE 50 TO 4,999 KW - ENTEGRUS POWERLINES | E124: ENTEGRUS POWERLINES INC._FOR ENTEGRUS-MAIN RATE ZONE_GENERAL SERVICE 50 TO 4,999 KW SERVICE CLASSIFICATION | F124: ENTEGRUS POWERLINES INC._FOR ENTEGRUS_MAIN RATE ZONE_GENERAL SERVICE 50 TO 4,999 KW SERVICE CLASSIFICATION | G124: 101055746 | H124: 264099 | I124: 27302835 | J124: 93843 | K124: 316929593 | L124: 839611 | M124: 3574014 | N124: 8963 | O124: 0 | P124: 0 | Q124: 347806442 | R124: 942417 | S124: 448862188 | T124: 1206516
A125: 2019 | B125: ENTEGRUS POWERLINES INC. | C125: GENERAL SERVICE EQUAL TO OR GREATER THAN 50 KW | D125: GENERAL SERVICE 50 TO 4,999 KW - ST. THOMAS ENERGY | E125: ENTEGRUS POWERLINES INC._FOR FORMER ST. THOMAS ENERGY RATE ZONE_GENERAL SERVICE 50 TO 4,999 KW SERVICE CLASSIFICATION | F125: ENTEGRUS POWERLINES INC._FOR FORMER ST. THOMAS ENERGY RATE ZONE_GENERAL SERVICE 50 TO 4,999 KW SERVICE CLASSIFICATION | G125: 33367331 | H125: 77553 | I125: 8473570 | J125: 16674 | K125: 78648513 | L125: 208252 | M125: 3711652 | N125: 7386 | O125: 0 | P125: 0 | Q125: 90833735 | R125: 232312 | S125: 124201066 | T125: 309865
A126: 2019 | B126: ENTEGRUS POWERLINES INC. | C126: GENERAL SERVICE LESS THAN 50 KW | D126: GENERAL SERVICE LESS THAN 50 KW - ENTEGRUS POWERLINES | E126: ENTEGRUS POWERLINES INC._FOR ENTEGRUS-MAIN RATE ZONE_GENERAL SERVICE LESS THAN 50 KW SERVICE CLASSIFICATION | F126: ENTEGRUS POWERLINES INC._FOR ENTEGRUS_MAIN RATE ZONE_GENERAL SERVICE LESS THAN 50 KW SERVICE CLASSIFICATION | G126: 22218177 | H126: 0 | I126: 93766772 | J126: 0 | K126: 0 | L126: 0 | M126: 0 | N126: 0 | O126: 0 | P126: 0 | Q126: 93766772 | R126: 0 | S126: 115984949 | T126: 0
A127: 2019 | B127: ENTEGRUS POWERLINES INC. | C127: GENERAL SERVICE LESS THAN 50 KW | D127: GENERAL SERVICE LESS THAN 50 KW - ST. THOMAS ENERGY | E127: ENTEGRUS POWERLINES INC._FOR FORMER ST. THOMAS ENERGY RATE ZONE_GENERAL SERVICE LESS THAN 50 KW SERVICE CLASSIFICATION | F127: ENTEGRUS POWERLINES INC._FOR FORMER ST. THOMAS ENERGY RATE ZONE_GENERAL SERVICE LESS THAN 50 KW SERVICE CLASSIFICATION | G127: 7619450 | H127: 0 | I127: 34519157 | J127: 0 | K127: 0 | L127: 0 | M127: 0 | N127: 0 | O127: 0 | P127: 0 | Q127: 34519157 | R127: 0 | S127: 42138607 | T127: 0
A128: 2019 | B128: ENTEGRUS POWERLINES INC. | C128: LARGE USER | D128: LARGE USE - ENTEGRUS POWERLINES | E128: ENTEGRUS POWERLINES INC._FOR ENTEGRUS-MAIN RATE ZONE_LARGE USE SERVICE CLASSIFICATION | F128: ENTEGRUS POWERLINES INC._FOR ENTEGRUS_MAIN RATE ZONE_LARGE USE SERVICE CLASSIFICATION | G128: 0 | H128: 0 | I128: 0 | J128: 0 | K128: 33555521 | L128: 184428 | M128: 0 | N128: 0 | O128: 0 | P128: 0 | Q128: 33555521 | R128: 184428 | S128: 33555521 | T128: 184428
A129: 2019 | B129: ENTEGRUS POWERLINES INC. | C129: NO RATE CLASS | D129: NO RATE CLASS | E129: ENTEGRUS POWERLINES INC._FOR ENTEGRUS-MAIN RATE ZONE_NO RATE CLASS SERVICE CLASSIFICATION | F129: ENTEGRUS POWERLINES INC._FOR ENTEGRUS_MAIN RATE ZONE_NO RATE CLASS SERVICE CLASSIFICATION | G129: 0 | H129: 0 | I129: 0 | J129: 0 | K129: 0 | L129: 0 | M129: 0 | N129: 0 | O129: 265498752 | P129: 591066 | Q129: 0 | R129: 0 | S129: 0 | T129: 0
A130: 2019 | B130: ENTEGRUS POWERLINES INC. | C130: RESIDENTIAL | D130: RESIDENTIAL - ENTEGRUS POWERLINES | E130: ENTEGRUS POWERLINES INC._FOR ENTEGRUS-MAIN RATE ZONE_RESIDENTIAL SERVICE CLASSIFICATION | F130: ENTEGRUS POWERLINES INC._FOR ENTEGRUS_MAIN RATE ZONE_RESIDENTIAL SERVICE CLASSIFICATION | G130: 12271720 | H130: 0 | I130: 287657989 | J130: 0 | K130: 0 | L130: 0 | M130: 0 | N130: 0 | O130: 0 | P130: 0 | Q130: 287657989 | R130: 0 | S130: 299929709 | T130: 0
A131: 2019 | B131: ENTEGRUS POWERLINES INC. | C131: RESIDENTIAL | D131: RESIDENTIAL - ST. THOMAS ENERGY | E131: ENTEGRUS POWERLINES INC._FOR FORMER ST. THOMAS ENERGY RATE ZONE_RESIDENTIAL SERVICE CLASSIFICATION | F131: ENTEGRUS POWERLINES INC._FOR FORMER ST. THOMAS ENERGY RATE ZONE_RESIDENTIAL SERVICE CLASSIFICATION | G131: 7870765 | H131: 0 | I131: 117494371 | J131: 0 | K131: 0 | L131: 0 | M131: 0 | N131: 0 | O131: 0 | P131: 0 | Q131: 117494371 | R131: 0 | S131: 125365136 | T131: 0
A132: 2019 | B132: ENTEGRUS POWERLINES INC. | C132: SENTINEL LIGHTING CONNECTIONS | D132: SENTINEL LIGHTING - ENTEGRUS POWERLINES | E132: ENTEGRUS POWERLINES INC._FOR ENTEGRUS-MAIN RATE ZONE_SENTINEL LIGHTING SERVICE CLASSIFICATION | F132: ENTEGRUS POWERLINES INC._FOR ENTEGRUS_MAIN RATE ZONE_SENTINEL LIGHTING SERVICE CLASSIFICATION | G132: 68586 | H132: 191 | I132: 223542 | J132: 0 | K132: 78116 | L132: 841 | M132: 0 | N132: 0 | O132: 0 | P132: 0 | Q132: 301658 | R132: 841 | S132: 370244 | T132: 1032
A133: 2019 | B133: ENTEGRUS POWERLINES INC. | C133: SENTINEL LIGHTING CONNECTIONS | D133: SENTINEL LIGHTING - ST. THOMAS ENERGY | E133: ENTEGRUS POWERLINES INC._FOR FORMER ST. THOMAS ENERGY RATE ZONE_SENTINEL LIGHTING SERVICE CLASSIFICATION | F133: ENTEGRUS POWERLINES INC._FOR FORMER ST. THOMAS ENERGY RATE ZONE_SENTINEL LIGHTING SERVICE CLASSIFICATION | G133: 2492 | H133: 7 | I133: 44359 | J133: 0 | K133: 0 | L133: 0 | M133: 0 | N133: 0 | O133: 0 | P133: 0 | Q133: 44359 | R133: 0 | S133: 46851 | T133: 7
A134: 2019 | B134: ENTEGRUS POWERLINES INC. | C134: STREET LIGHTING CONNECTIONS | D134: STREET LIGHTING - ENTEGRUS POWERLINES | E134: ENTEGRUS POWERLINES INC._FOR ENTEGRUS-MAIN RATE ZONE_STREET LIGHTING SERVICE CLASSIFICATION | F134: ENTEGRUS POWERLINES INC._FOR ENTEGRUS_MAIN RATE ZONE_STREET LIGHTING SERVICE CLASSIFICATION | G134: 0 | H134: 0 | I134: 0 | J134: 0 | K134: 3701020 | L134: 10553 | M134: 0 | N134: 0 | O134: 0 | P134: 0 | Q134: 3701020 | R134: 10553 | S134: 3701020 | T134: 10553
A135: 2019 | B135: ENTEGRUS POWERLINES INC. | C135: STREET LIGHTING CONNECTIONS | D135: STREET LIGHTING - ST. THOMAS ENERGY | E135: ENTEGRUS POWERLINES INC._FOR FORMER ST. THOMAS ENERGY RATE ZONE_STREET LIGHTING SERVICE CLASSIFICATION | F135: ENTEGRUS POWERLINES INC._FOR FORMER ST. THOMAS ENERGY RATE ZONE_STREET LIGHTING SERVICE CLASSIFICATION | G135: 0 | H135: 0 | I135: 763 | J135: 0 | K135: 1990426 | L135: 5008 | M135: 0 | N135: 0 | O135: 0 | P135: 0 | Q135: 1991189 | R135: 5008 | S135: 1991189 | T135: 5008
A136: 2019 | B136: ENTEGRUS POWERLINES INC. | C136: UNMETERED SCATTERED LOAD CONNECTIONS | D136: UNMETERED SCATTERED LOAD - ENTEGRUS POWERLINES | E136: ENTEGRUS POWERLINES INC._FOR ENTEGRUS-MAIN RATE ZONE_UNMETERED SCATTERED LOAD SERVICE CLASSIFICATION | F136: ENTEGRUS POWERLINES INC._FOR ENTEGRUS_MAIN RATE ZONE_UNMETERED SCATTERED LOAD SERVICE CLASSIFICATION | G136: 422779 | H136: 0 | I136: 856211 | J136: 0 | K136: 0 | L136: 0 | M136: 0 | N136: 0 | O136: 0 | P136: 0 | Q136: 856211 | R136: 0 | S136: 1278990 | T136: 0
A137: 2019 | B137: ENWIN UTILITIES LTD. | C137: GENERAL SERVICE EQUAL TO OR GREATER THAN 50 KW | D137: GENERAL SERVICE 3,000 TO 4,999 KW - INTERMEDIATE USE | E137: ENWIN UTILITIES LTD._GENERAL SERVICE 3,000 TO 4,999 KW - INTERMEDIATE USE SERVICE CLASSIFICATION | F137: ENWIN UTILITIES LTD._GENERAL SERVICE 3,000 TO 4,999 KW _ INTERMEDIATE USE SERVICE CLASSIFICATION | G137: 0 | H137: 0 | I137: 0 | J137: 0 | K137: 41120567.1 | L137: 128455.8 | M137: 0 | N137: 0 | O137: 0 | P137: 0 | Q137: 41120567.1 | R137: 128455.8 | S137: 41120567.1 | T137: 128455.8
A138: 2019 | B138: ENWIN UTILITIES LTD. | C138: GENERAL SERVICE EQUAL TO OR GREATER THAN 50 KW | D138: GENERAL SERVICE 50 TO 4,999 KW | E138: ENWIN UTILITIES LTD._GENERAL SERVICE 50 TO 4,999 KW SERVICE CLASSIFICATION | F138: ENWIN UTILITIES LTD._GENERAL SERVICE 50 TO 4,999 KW SERVICE CLASSIFICATION | G138: 138098876 | H138: 381139 | I138: 180771673.3 | J138: 481901.5 | K138: 606976837 | L138: 1501323.6 | M138: 10855692 | N138: 20961.5 | O138: 0 | P138: 0 | Q138: 798604202.5 | R138: 2004186.6 | S138: 936703078.5 | T138: 2385326.3
A139: 2019 | B139: ENWIN UTILITIES LTD. | C139: GENERAL SERVICE LESS THAN 50 KW | D139: GENERAL SERVICE LESS THAN 50 KW | E139: ENWIN UTILITIES LTD._GENERAL SERVICE LESS THAN 50 KW SERVICE CLASSIFICATION | F139: ENWIN UTILITIES LTD._GENERAL SERVICE LESS THAN 50 KW SERVICE CLASSIFICATION | G139: 28255259.3 | H139: 0 | I139: 174819949.1 | J139: 0 | K139: 0 | L139: 0 | M139: 0 | N139: 0 | O139: 0 | P139: 0 | Q139: 174819949.1 | R139: 0 | S139: 203075208.4 | T139: 0
A140: 2019 | B140: ENWIN UTILITIES LTD. | C140: LARGE USER | D140: LARGE USE - 3TS | E140: ENWIN UTILITIES LTD._LARGE USE - 3TS SERVICE CLASSIFICATION | F140: ENWIN UTILITIES LTD._LARGE USE _ 3TS SERVICE CLASSIFICATION | G140: 0 | H140: 0 | I140: 0 | J140: 0 | K140: 172633300.3 | L140: 319065.4 | M140: 82002368 | N140: 175487.4062 | O140: 0 | P140: 0 | Q140: 254635666.9 | R140: 494552.8 | S140: 254635666.9 | T140: 494552.8
A141: 2019 | B141: ENWIN UTILITIES LTD. | C141: LARGE USER | D141: LARGE USE - FORD ANNEX | E141: ENWIN UTILITIES LTD._LARGE USE - FORD ANNEX SERVICE CLASSIFICATION | F141: ENWIN UTILITIES LTD._LARGE USE _ FORD ANNEX SERVICE CLASSIFICATION | G141: 0 | H141: 0 | I141: 0 | J141: 0 | K141: 0 | L141: 0 | M141: 45402740 | N141: 73849.10156 | O141: 0 | P141: 0 | Q141: 45402739.4 | R141: 73849.1 | S141: 45402739.4 | T141: 73849.1
A142: 2019 | B142: ENWIN UTILITIES LTD. | C142: LARGE USER | D142: LARGE USE - REGULAR | E142: ENWIN UTILITIES LTD._LARGE USE - REGULAR SERVICE CLASSIFICATION | F142: ENWIN UTILITIES LTD._LARGE USE _ REGULAR SERVICE CLASSIFICATION | G142: 0 | H142: 0 | I142: 0 | J142: 0 | K142: 201820265.2 | L142: 379814.5 | M142: 109465576 | N142: 188278.4062 | O142: 0 | P142: 0 | Q142: 311285838 | R142: 568092.9 | S142: 311285838 | T142: 568092.9
A143: 2019 | B143: ENWIN UTILITIES LTD. | C143: NO RATE CLASS | D143: NO RATE CLASS | E143: ENWIN UTILITIES LTD._NO RATE CLASS SERVICE CLASSIFICATION | F143: ENWIN UTILITIES LTD._NO RATE CLASS SERVICE CLASSIFICATION | G143: 0 | H143: 0 | I143: 0 | J143: 0 | K143: 0 | L143: 0 | M143: 0 | N143: 0 | O143: 614300224 | P143: 1249448.875 | Q143: 0 | R143: 0 | S143: 0 | T143: 0
A144: 2019 | B144: ENWIN UTILITIES LTD. | C144: RESIDENTIAL | D144: RESIDENTIAL | E144: ENWIN UTILITIES LTD._RESIDENTIAL SERVICE CLASSIFICATION | F144: ENWIN UTILITIES LTD._RESIDENTIAL SERVICE CLASSIFICATION | G144: 17881940 | H144: 0 | I144: 618917690.7 | J144: 0 | K144: 0 | L144: 0 | M144: 0 | N144: 0 | O144: 0 | P144: 0 | Q144: 618917690.7 | R144: 0 | S144: 636799630.7 | T144: 0
A145: 2019 | B145: ENWIN UTILITIES LTD. | C145: SENTINEL LIGHTING CONNECTIONS | D145: SENTINEL LIGHTING | E145: ENWIN UTILITIES LTD._SENTINEL LIGHTING SERVICE CLASSIFICATION | F145: ENWIN UTILITIES LTD._SENTINEL LIGHTING SERVICE CLASSIFICATION | G145: 66011.8 | H145: 182 | I145: 702220 | J145: 1959.1 | K145: 0 | L145: 0 | M145: 0 | N145: 0 | O145: 0 | P145: 0 | Q145: 702220 | R145: 1959.1 | S145: 768231.8 | T145: 2141.7
A146: 2019 | B146: ENWIN UTILITIES LTD. | C146: STREET LIGHTING CONNECTIONS | D146: STREET LIGHTING | E146: ENWIN UTILITIES LTD._STREET LIGHTING SERVICE CLASSIFICATION | F146: ENWIN UTILITIES LTD._STREET LIGHTING SERVICE CLASSIFICATION | G146: 0 | H146: 0 | I146: 18325.9 | J146: 53 | K146: 6449455.1 | L146: 18654.3 | M146: 0 | N146: 0 | O146: 0 | P146: 0 | Q146: 6467781 | R146: 18707.3 | S146: 6467781 | T146: 18707.3
A147: 2019 | B147: ENWIN UTILITIES LTD. | C147: UNMETERED SCATTERED LOAD CONNECTIONS | D147: UNMETERED SCATTERED LOAD | E147: ENWIN UTILITIES LTD._UNMETERED SCATTERED LOAD SERVICE CLASSIFICATION | F147: ENWIN UTILITIES LTD._UNMETERED SCATTERED LOAD SERVICE CLASSIFICATION | G147: 0 | H147: 0 | I147: 90529.6 | J147: 0 | K147: 2175834.7 | L147: 0 | M147: 0 | N147: 0 | O147: 0 | P147: 0 | Q147: 2266364.3 | R147: 0 | S147: 2266364.3 | T147: 0
A148: 2019 | B148: EPCOR ELECTRICITY DISTRIBUTION ONTARIO INC. | C148: GENERAL SERVICE EQUAL TO OR GREATER THAN 50 KW | D148: GENERAL SERVICE 50 TO 4,999 KW | E148: EPCOR ELECTRICITY DISTRIBUTION ONTARIO INC._GENERAL SERVICE 50 TO 4,999 KW SERVICE CLASSIFICATION | F148: EPCOR ELECTRICITY DISTRIBUTION ONTARIO INC._GENERAL SERVICE 50 TO 4,999 KW SERVICE CLASSIFICATION | G148: 21805313.49 | H148: 54486 | I148: 0 | J148: 0 | K148: 109090407.6 | L148: 257555.24 | M148: 2605162.25 | N148: 4968.279785 | O148: 0 | P148: 0 | Q148: 111695569.9 | R148: 262523.52 | S148: 133500883.4 | T148: 317009.96
A149: 2019 | B149: EPCOR ELECTRICITY DISTRIBUTION ONTARIO INC. | C149: GENERAL SERVICE LESS THAN 50 KW | D149: GENERAL SERVICE LESS THAN 50 KW | E149: EPCOR ELECTRICITY DISTRIBUTION ONTARIO INC._GENERAL SERVICE LESS THAN 50 KW SERVICE CLASSIFICATION | F149: EPCOR ELECTRICITY DISTRIBUTION ONTARIO INC._GENERAL SERVICE LESS THAN 50 KW SERVICE CLASSIFICATION | G149: 7865985.55 | H149: 0 | I149: 38895085.33 | J149: 553.02 | K149: 391654.04 | L149: 1950.38 | M149: 0 | N149: 0 | O149: 0 | P149: 0 | Q149: 39286739.37 | R149: 2503.4 | S149: 47152724.92 | T149: 2503.4
A150: 2019 | B150: EPCOR ELECTRICITY DISTRIBUTION ONTARIO INC. | C150: NO RATE CLASS | D150: NO RATE CLASS | E150: EPCOR ELECTRICITY DISTRIBUTION ONTARIO INC._NO RATE CLASS SERVICE CLASSIFICATION | F150: EPCOR ELECTRICITY DISTRIBUTION ONTARIO INC._NO RATE CLASS SERVICE CLASSIFICATION | G150: 0 | H150: 0 | I150: 0 | J150: 0 | K150: 0 | L150: 0 | M150: 0 | N150: 0 | O150: 57347356 | P150: 117162.9219 | Q150: 0 | R150: 0 | S150: 0 | T150: 0
A151: 2019 | B151: EPCOR ELECTRICITY DISTRIBUTION ONTARIO INC. | C151: RESIDENTIAL | D151: RESIDENTIAL | E151: EPCOR ELECTRICITY DISTRIBUTION ONTARIO INC._RESIDENTIAL SERVICE CLASSIFICATION | F151: EPCOR ELECTRICITY DISTRIBUTION ONTARIO INC._RESIDENTIAL SERVICE CLASSIFICATION | G151: 4245877.32 | H151: 0 | I151: 122736285.4 | J151: 0 | K151: 0 | L151: 0 | M151: 0 | N151: 0 | O151: 0 | P151: 0 | Q151: 122736285.4 | R151: 0 | S151: 126982162.7 | T151: 0
A152: 2019 | B152: EPCOR ELECTRICITY DISTRIBUTION ONTARIO INC. | C152: STREET LIGHTING CONNECTIONS | D152: STREET LIGHTING | E152: EPCOR ELECTRICITY DISTRIBUTION ONTARIO INC._STREET LIGHTING SERVICE CLASSIFICATION | F152: EPCOR ELECTRICITY DISTRIBUTION ONTARIO INC._STREET LIGHTING SERVICE CLASSIFICATION | G152: 17255.41 | H152: 41 | I152: 0 | J152: 0 | K152: 1187112.46 | L152: 3345.03 | M152: 0 | N152: 0 | O152: 0 | P152: 0 | Q152: 1187112.46 | R152: 3345.03 | S152: 1204367.87 | T152: 3386.61
A153: 2019 | B153: EPCOR ELECTRICITY DISTRIBUTION ONTARIO INC. | C153: UNMETERED SCATTERED LOAD CONNECTIONS | D153: UNMETERED SCATTERED LOAD | E153: EPCOR ELECTRICITY DISTRIBUTION ONTARIO INC._UNMETERED SCATTERED LOAD SERVICE CLASSIFICATION | F153: EPCOR ELECTRICITY DISTRIBUTION ONTARIO INC._UNMETERED SCATTERED LOAD SERVICE CLASSIFICATION | G153: 12036.99 | H153: 0 | I153: 385013.49 | J153: 0 | K153: 0 | L153: 0 | M153: 0 | N153: 0 | O153: 0 | P153: 0 | Q153: 385013.49 | R153: 0 | S153: 397050.48 | T153: 0
A154: 2019 | B154: ERTH POWER CORPORATION | C154: EMBEDDED DISTRIBUTOR(S) | D154: EMBEDDED DISTRIBUTOR | E154: ERTH POWER CORPORATION_ERTH POWER MAIN RATE ZONE_EMBEDDED DISTRIBUTOR SERVICE CLASSIFICATION | F154: ERTH POWER CORPORATION_ERTH POWER MAIN RATE ZONE_EMBEDDED DISTRIBUTOR SERVICE CLASSIFICATION | G154: 0 | H154: 0 | I154: 0 | J154: 0 | K154: 16912248 | L154: 38108 | M154: 0 | N154: 0 | O154: 0 | P154: 0 | Q154: 16912248 | R154: 38108 | S154: 16912248 | T154: 38108
A155: 2019 | B155: ERTH POWER CORPORATION | C155: GENERAL SERVICE EQUAL TO OR GREATER THAN 50 KW | D155: GENERAL SERVICE 1,000 TO 4,999 KW | E155: ERTH POWER CORPORATION_ERTH POWER MAIN RATE ZONE_GENERAL SERVICE 1,000 TO 4,999 KW SERVICE CLASSIFICATION | F155: ERTH POWER CORPORATION_ERTH POWER MAIN RATE ZONE_GENERAL SERVICE 1,000 TO 4,999 KW SERVICE CLASSIFICATION | G155: 9982676 | H155: 18861 | I155: 0 | J155: 0 | K155: 102340942 | L155: 196658 | M155: 0 | N155: 0 | O155: 0 | P155: 0 | Q155: 102340942 | R155: 196658 | S155: 112323618 | T155: 215519
A156: 2019 | B156: ERTH POWER CORPORATION | C156: GENERAL SERVICE EQUAL TO OR GREATER THAN 50 KW | D156: GENERAL SERVICE 50 TO 999 KW | E156: ERTH POWER CORPORATION_ERTH POWER MAIN RATE ZONE_GENERAL SERVICE 50 TO 999 KW SERVICE CLASSIFICATION | F156: ERTH POWER CORPORATION_ERTH POWER MAIN RATE ZONE_GENERAL SERVICE 50 TO 999 KW SERVICE CLASSIFICATION | G156: 29399552 | H156: 78911 | I156: 7176629 | J156: 28302 | K156: 101970055 | L156: 283085 | M156: 0 | N156: 0 | O156: 0 | P156: 0 | Q156: 109146684 | R156: 311387 | S156: 138546236 | T156: 390298
A157: 2019 | B157: ERTH POWER CORPORATION | C157: GENERAL SERVICE LESS THAN 50 KW | D157: GENERAL SERVICE LESS THAN 50 KW | E157: ERTH POWER CORPORATION_ERTH POWER MAIN RATE ZONE_GENERAL SERVICE LESS THAN 50 KW SERVICE CLASSIFICATION | F157: ERTH POWER CORPORATION_ERTH POWER MAIN RATE ZONE_GENERAL SERVICE LESS THAN 50 KW SERVICE CLASSIFICATION | G157: 9298143 | H157: 0 | I157: 40942950 | J157: 0 | K157: 9318235 | L157: 0 | M157: 0 | N157: 0 | O157: 0 | P157: 0 | Q157: 50261185 | R157: 0 | S157: 59559328 | T157: 0
A158: 2019 | B158: ERTH POWER CORPORATION | C158: LARGE USER | D158: LARGE USE | E158: ERTH POWER CORPORATION_ERTH POWER MAIN RATE ZONE_LARGE USE SERVICE CLASSIFICATION | F158: ERTH POWER CORPORATION_ERTH POWER MAIN RATE ZONE_LARGE USE SERVICE CLASSIFICATION | G158: 0 | H158: 0 | I158: 0 | J158: 0 | K158: 83837533 | L158: 149774 | M158: 0 | N158: 0 | O158: 0 | P158: 0 | Q158: 83837533 | R158: 149774 | S158: 83837533 | T158: 149774
A159: 2019 | B159: ERTH POWER CORPORATION | C159: NO RATE CLASS | D159: NO RATE CLASS | E159: ERTH POWER CORPORATION_ERTH POWER MAIN RATE ZONE_NO RATE CLASS SERVICE CLASSIFICATION | F159: ERTH POWER CORPORATION_ERTH POWER MAIN RATE ZONE_NO RATE CLASS SERVICE CLASSIFICATION | G159: 0 | H159: 0 | I159: 0 | J159: 0 | K159: 0 | L159: 0 | M159: 0 | N159: 0 | O159: 192178816 | P159: 362309.9688 | Q159: 0 | R159: 0 | S159: 0 | T159: 0
A160: 2019 | B160: ERTH POWER CORPORATION | C160: RESIDENTIAL | D160: RESIDENTIAL | E160: ERTH POWER CORPORATION_ERTH POWER MAIN RATE ZONE_RESIDENTIAL SERVICE CLASSIFICATION | F160: ERTH POWER CORPORATION_ERTH POWER MAIN RATE ZONE_RESIDENTIAL SERVICE CLASSIFICATION | G160: 7123892 | H160: 0 | I160: 137186731 | J160: 0 | K160: 7123892 | L160: 0 | M160: 0 | N160: 0 | O160: 0 | P160: 0 | Q160: 144310623 | R160: 0 | S160: 151434515 | T160: 0
A161: 2019 | B161: ERTH POWER CORPORATION | C161: SENTINEL LIGHTING CONNECTIONS | D161: SENTINEL LIGHTING | E161: ERTH POWER CORPORATION_ERTH POWER MAIN RATE ZONE_SENTINEL LIGHTING SERVICE CLASSIFICATION | F161: ERTH POWER CORPORATION_ERTH POWER MAIN RATE ZONE_SENTINEL LIGHTING SERVICE CLASSIFICATION | G161: 39939 | H161: 616 | I161: 176447 | J161: 0 | K161: 39939 | L161: 0 | M161: 0 | N161: 0 | O161: 0 | P161: 0 | Q161: 216386 | R161: 0 | S161: 256325 | T161: 616
A162: 2019 | B162: ERTH POWER CORPORATION | C162: STREET LIGHTING CONNECTIONS | D162: STREET LIGHTING | E162: ERTH POWER CORPORATION_ERTH POWER MAIN RATE ZONE_STREET LIGHTING SERVICE CLASSIFICATION | F162: ERTH POWER CORPORATION_ERTH POWER MAIN RATE ZONE_STREET LIGHTING SERVICE CLASSIFICATION | G162: 224756 | H162: 0 | I162: 646544 | J162: 1755 | K162: 1208384 | L162: 3286 | M162: 0 | N162: 0 | O162: 0 | P162: 0 | Q162: 1854928 | R162: 5041 | S162: 2079684 | T162: 5041
A163: 2019 | B163: ERTH POWER CORPORATION | C163: UNMETERED SCATTERED LOAD CONNECTIONS | D163: UNMETERED SCATTERED LOAD | E163: ERTH POWER CORPORATION_ERTH POWER MAIN RATE ZONE_UNMETERED SCATTERED LOAD SERVICE CLASSIFICATION | F163: ERTH POWER CORPORATION_ERTH POWER MAIN RATE ZONE_UNMETERED SCATTERED LOAD SERVICE CLASSIFICATION | G163: 51704 | H163: 0 | I163: 427851 | J163: 0 | K163: 51704 | L163: 0 | M163: 0 | N163: 0 | O163: 0 | P163: 0 | Q163: 479555 | R163: 0 | S163: 531259 | T163: 0
A164: 2019 | B164: ERTH POWER CORPORATION - WEST COAST HURON RATE ZONE | C164: GENERAL SERVICE EQUAL TO OR GREATER THAN 50 KW | D164: GENERAL SERVICE 50 TO 499 KW | E164: ERTH POWER CORPORATION – GODERICH RATE ZONE_GENERAL SERVICE 50 TO 499 KW SERVICE CLASSIFICATION | F164: ERTH POWER CORPORATION _ GODERICH RATE ZONE_GENERAL SERVICE 50 TO 499 KW SERVICE CLASSIFICATION | G164: 5476617 | H164: 12923 | I164: 3505960 | J164: 10021.23 | K164: 10059876 | L164: 28491.03 | M164: 0 | N164: 0 | O164: 0 | P164: 0 | Q164: 13565836 | R164: 38512.26 | S164: 19042453 | T164: 51435.94
A165: 2019 | B165: ERTH POWER CORPORATION - WEST COAST HURON RATE ZONE | C165: GENERAL SERVICE EQUAL TO OR GREATER THAN 50 KW | D165: GENERAL SERVICE 500 TO 4,999 KW | E165: ERTH POWER CORPORATION – GODERICH RATE ZONE_GENERAL SERVICE 500 TO 4,999 KW SERVICE CLASSIFICATION | F165: ERTH POWER CORPORATION _ GODERICH RATE ZONE_GENERAL SERVICE 500 TO 4,999 KW SERVICE CLASSIFICATION | G165: 7755126 | H165: 14421 | I165: 0 | J165: 0 | K165: 12028780 | L165: 33085.85 | M165: 0 | N165: 0 | O165: 0 | P165: 0 | Q165: 12028780 | R165: 33085.85 | S165: 19783906 | T165: 47507.5
A166: 2019 | B166: ERTH POWER CORPORATION - WEST COAST HURON RATE ZONE | C166: GENERAL SERVICE LESS THAN 50 KW | D166: GENERAL SERVICE LESS THAN 50 KW | E166: ERTH POWER CORPORATION – GODERICH RATE ZONE_GENERAL SERVICE LESS THAN 50 KW SERVICE CLASSIFICATION | F166: ERTH POWER CORPORATION _ GODERICH RATE ZONE_GENERAL SERVICE LESS THAN 50 KW SERVICE CLASSIFICATION | G166: 2455957 | H166: 0 | I166: 12108561 | J166: 0 | K166: 2899 | L166: 0 | M166: 0 | N166: 0 | O166: 0 | P166: 0 | Q166: 12111460 | R166: 0 | S166: 14567417 | T166: 0
A167: 2019 | B167: ERTH POWER CORPORATION - WEST COAST HURON RATE ZONE | C167: LARGE USER | D167: LARGE USE | E167: ERTH POWER CORPORATION – GODERICH RATE ZONE_LARGE USE SERVICE CLASSIFICATION | F167: ERTH POWER CORPORATION _ GODERICH RATE ZONE_LARGE USE SERVICE CLASSIFICATION | G167: 0 | H167: 0 | I167: 0 | J167: 0 | K167: 0 | L167: 0 | M167: 58174768 | N167: 148823.2969 | O167: 0 | P167: 0 | Q167: 58174766 | R167: 148823.3 | S167: 58174766 | T167: 148823.3
A168: 2019 | B168: ERTH POWER CORPORATION - WEST COAST HURON RATE ZONE | C168: NO RATE CLASS | D168: NO RATE CLASS | E168: ERTH POWER CORPORATION – GODERICH RATE ZONE_NO RATE CLASS SERVICE CLASSIFICATION | F168: ERTH POWER CORPORATION _ GODERICH RATE ZONE_NO RATE CLASS SERVICE CLASSIFICATION | G168: 0 | H168: 0 | I168: 0 | J168: 0 | K168: 0 | L168: 0 | M168: 0 | N168: 0 | O168: 19202848 | P168: 31139.00977 | Q168: 0 | R168: 0 | S168: 0 | T168: 0
A169: 2019 | B169: ERTH POWER CORPORATION - WEST COAST HURON RATE ZONE | C169: RESIDENTIAL | D169: RESIDENTIAL | E169: ERTH POWER CORPORATION – GODERICH RATE ZONE_RESIDENTIAL SERVICE CLASSIFICATION | F169: ERTH POWER CORPORATION _ GODERICH RATE ZONE_RESIDENTIAL SERVICE CLASSIFICATION | G169: 761329 | H169: 0 | I169: 24869893 | J169: 0 | K169: 0 | L169: 0 | M169: 0 | N169: 0 | O169: 0 | P169: 0 | Q169: 24869893 | R169: 0 | S169: 25631222 | T169: 0
A170: 2019 | B170: ERTH POWER CORPORATION - WEST COAST HURON RATE ZONE | C170: SENTINEL LIGHTING CONNECTIONS | D170: SENTINEL LIGHTING | E170: ERTH POWER CORPORATION – GODERICH RATE ZONE_SENTINEL LIGHTING SERVICE CLASSIFICATION | F170: ERTH POWER CORPORATION _ GODERICH RATE ZONE_SENTINEL LIGHTING SERVICE CLASSIFICATION | G170: 0 | H170: 0 | I170: 1928 | J170: 5.35 | K170: 0 | L170: 0 | M170: 0 | N170: 0 | O170: 0 | P170: 0 | Q170: 1928 | R170: 5.35 | S170: 1928 | T170: 5.35
A171: 2019 | B171: ERTH POWER CORPORATION - WEST COAST HURON RATE ZONE | C171: STREET LIGHTING CONNECTIONS | D171: STREET LIGHTING | E171: ERTH POWER CORPORATION – GODERICH RATE ZONE_STREET LIGHTING SERVICE CLASSIFICATION | F171: ERTH POWER CORPORATION _ GODERICH RATE ZONE_STREET LIGHTING SERVICE CLASSIFICATION | G171: 306085 | H171: 844 | I171: 84609 | J171: 235 | K171: 0 | L171: 0 | M171: 0 | N171: 0 | O171: 0 | P171: 0 | Q171: 84609 | R171: 235 | S171: 390694 | T171: 1079.47
A172: 2019 | B172: ERTH POWER CORPORATION - WEST COAST HURON RATE ZONE | C172: UNMETERED SCATTERED LOAD CONNECTIONS | D172: UNMETERED SCATTERED LOAD | E172: ERTH POWER CORPORATION – GODERICH RATE ZONE_UNMETERED SCATTERED LOAD SERVICE CLASSIFICATION | F172: ERTH POWER CORPORATION _ GODERICH RATE ZONE_UNMETERED SCATTERED LOAD SERVICE CLASSIFICATION | G172: 0 | H172: 0 | I172: 83100 | J172: 0 | K172: 0 | L172: 0 | M172: 0 | N172: 0 | O172: 0 | P172: 0 | Q172: 83100 | R172: 0 | S172: 83100 | T172: 0
A173: 2019 | B173: ESPANOLA REGIONAL HYDRO DISTRIBUTION CORPORATION | C173: GENERAL SERVICE EQUAL TO OR GREATER THAN 50 KW | D173: GENERAL SERVICE 50 TO 4,999 KW | E173: ESPANOLA REGIONAL HYDRO DISTRIBUTION CORPORATION_GENERAL SERVICE 50 TO 4,999 KW SERVICE CLASSIFICATION | F173: ESPANOLA REGIONAL HYDRO DISTRIBUTION CORPORATION_GENERAL SERVICE 50 TO 4,999 KW SERVICE CLASSIFICATION | G173: 5588910.3 | H173: 13940 | I173: 1248220.6 | J173: 3271.1 | K173: 8468263.9 | L173: 21104.8 | M173: 0 | N173: 0 | O173: 0 | P173: 0 | Q173: 9716484.5 | R173: 24375.9 | S173: 15305394.8 | T173: 38316.8
A174: 2019 | B174: ESPANOLA REGIONAL HYDRO DISTRIBUTION CORPORATION | C174: GENERAL SERVICE LESS THAN 50 KW | D174: GENERAL SERVICE LESS THAN 50 KW | E174: ESPANOLA REGIONAL HYDRO DISTRIBUTION CORPORATION_GENERAL SERVICE LESS THAN 50 KW SERVICE CLASSIFICATION | F174: ESPANOLA REGIONAL HYDRO DISTRIBUTION CORPORATION_GENERAL SERVICE LESS THAN 50 KW SERVICE CLASSIFICATION | G174: 1516308.6 | H174: 0 | I174: 8672007.65 | J174: 0 | K174: 0 | L174: 0 | M174: 0 | N174: 0 | O174: 0 | P174: 0 | Q174: 8672007.65 | R174: 0 | S174: 10188316.25 | T174: 0
A175: 2019 | B175: ESPANOLA REGIONAL HYDRO DISTRIBUTION CORPORATION | C175: NO RATE CLASS | D175: NO RATE CLASS | E175: ESPANOLA REGIONAL HYDRO DISTRIBUTION CORPORATION_NO RATE CLASS SERVICE CLASSIFICATION | F175: ESPANOLA REGIONAL HYDRO DISTRIBUTION CORPORATION_NO RATE CLASS SERVICE CLASSIFICATION | G175: 0 | H175: 0 | I175: 0 | J175: 0 | K175: 0 | L175: 0 | M175: 0 | N175: 0 | O175: 0 | P175: 0 | Q175: 0 | R175: 0 | S175: 0 | T175: 0
A176: 2019 | B176: ESPANOLA REGIONAL HYDRO DISTRIBUTION CORPORATION | C176: RESIDENTIAL | D176: RESIDENTIAL | E176: ESPANOLA REGIONAL HYDRO DISTRIBUTION CORPORATION_RESIDENTIAL SERVICE CLASSIFICATION | F176: ESPANOLA REGIONAL HYDRO DISTRIBUTION CORPORATION_RESIDENTIAL SERVICE CLASSIFICATION | G176: 703983.9 | H176: 0 | I176: 30238410.3 | J176: 0 | K176: 0 | L176: 0 | M176: 0 | N176: 0 | O176: 0 | P176: 0 | Q176: 30238410.3 | R176: 0 | S176: 30942394.2 | T176: 0
A177: 2019 | B177: ESPANOLA REGIONAL HYDRO DISTRIBUTION CORPORATION | C177: SENTINEL LIGHTING CONNECTIONS | D177: SENTINEL LIGHTING | E177: ESPANOLA REGIONAL HYDRO DISTRIBUTION CORPORATION_SENTINEL LIGHTING SERVICE CLASSIFICATION | F177: ESPANOLA REGIONAL HYDRO DISTRIBUTION CORPORATION_SENTINEL LIGHTING SERVICE CLASSIFICATION | G177: 0 | H177: 0 | I177: 24286 | J177: 0 | K177: 0 | L177: 0 | M177: 0 | N177: 0 | O177: 0 | P177: 0 | Q177: 24286 | R177: 0 | S177: 24286 | T177: 0
A178: 2019 | B178: ESPANOLA REGIONAL HYDRO DISTRIBUTION CORPORATION | C178: STREET LIGHTING CONNECTIONS | D178: STREET LIGHTING | E178: ESPANOLA REGIONAL HYDRO DISTRIBUTION CORPORATION_STREET LIGHTING SERVICE CLASSIFICATION | F178: ESPANOLA REGIONAL HYDRO DISTRIBUTION CORPORATION_STREET LIGHTING SERVICE CLASSIFICATION | G178: 170857.5 | H178: 0 | I178: 0 | J178: 0 | K178: 169222.5 | L178: 0 | M178: 0 | N178: 0 | O178: 0 | P178: 0 | Q178: 169222.5 | R178: 0 | S178: 340080 | T178: 0
A179: 2019 | B179: ESPANOLA REGIONAL HYDRO DISTRIBUTION CORPORATION | C179: UNMETERED SCATTERED LOAD CONNECTIONS | D179: UNMETERED SCATTERED LOAD | E179: ESPANOLA REGIONAL HYDRO DISTRIBUTION CORPORATION_UNMETERED SCATTERED LOAD SERVICE CLASSIFICATION | F179: ESPANOLA REGIONAL HYDRO DISTRIBUTION CORPORATION_UNMETERED SCATTERED LOAD SERVICE CLASSIFICATION | G179: 10735.1 | H179: 0 | I179: 112568.54 | J179: 0 | K179: 0 | L179: 0 | M179: 0 | N179: 0 | O179: 0 | P179: 0 | Q179: 112568.54 | R179: 0 | S179: 123303.64 | T179: 0
A180: 2019 | B180: ESSEX POWERLINES CORPORATION | C180: EMBEDDED DISTRIBUTOR(S) | D180: EMBEDDED DISTRIBUTOR | E180: ESSEX POWERLINES CORPORATION_EMBEDDED DISTRIBUTOR SERVICE CLASSIFICATION | F180: ESSEX POWERLINES CORPORATION_EMBEDDED DISTRIBUTOR SERVICE CLASSIFICATION | G180: 0 | H180: 0 | I180: 0 | J180: 0 | K180: 8426168.37 | L180: 0 | M180: 0 | N180: 0 | O180: 0 | P180: 0 | Q180: 8426168.37 | R180: 0 | S180: 8426168.37 | T180: 0
A181: 2019 | B181: ESSEX POWERLINES CORPORATION | C181: GENERAL SERVICE EQUAL TO OR GREATER THAN 50 KW | D181: GENERAL SERVICE 3,000 TO 4,999 KW | E181: ESSEX POWERLINES CORPORATION_GENERAL SERVICE 3,000 TO 4,999 KW SERVICE CLASSIFICATION | F181: ESSEX POWERLINES CORPORATION_GENERAL SERVICE 3,000 TO 4,999 KW SERVICE CLASSIFICATION | G181: 0 | H181: 0 | I181: 0 | J181: 0 | K181: 15250857.98 | L181: 0 | M181: 0 | N181: 0 | O181: 0 | P181: 0 | Q181: 15250857.98 | R181: 0 | S181: 15250857.98 | T181: 0
A182: 2019 | B182: ESSEX POWERLINES CORPORATION | C182: GENERAL SERVICE EQUAL TO OR GREATER THAN 50 KW | D182: GENERAL SERVICE 50 TO 2,999 KW | E182: ESSEX POWERLINES CORPORATION_GENERAL SERVICE 50 TO 2,999 KW SERVICE CLASSIFICATION | F182: ESSEX POWERLINES CORPORATION_GENERAL SERVICE 50 TO 2,999 KW SERVICE CLASSIFICATION | G182: 48017477.66 | H182: 133878 | I182: 14889847.67 | J182: 47892.32 | K182: 89835456.89 | L182: 288950.49 | M182: 10169680 | N182: 19510.5293 | O182: 0 | P182: 0 | Q182: 114894984.9 | R182: 356353.34 | S182: 162912462.6 | T182: 490231.34
A183: 2019 | B183: ESSEX POWERLINES CORPORATION | C183: GENERAL SERVICE EQUAL TO OR GREATER THAN 50 KW | D183: GENERAL SERVICE 50 TO 4,999 KW | E183: ESSEX POWERLINES CORPORATION_GENERAL SERVICE 50 TO 4,999 KW SERVICE CLASSIFICATION | F183: ESSEX POWERLINES CORPORATION_GENERAL SERVICE 50 TO 4,999 KW SERVICE CLASSIFICATION | G183: 48017477.66 | H183: 133878 | I183: 14889847.67 | J183: 47892.32 | K183: 105086314.9 | L183: 288950.49 | M183: 10169680 | N183: 19510.5293 | O183: =SUM(O181:O182) -> 0 | P183: 0 | Q183: 130145842.9 | R183: 356353.34 | S183: 178163320.6 | T183: 490231.34
A184: 2019 | B184: ESSEX POWERLINES CORPORATION | C184: GENERAL SERVICE LESS THAN 50 KW | D184: GENERAL SERVICE LESS THAN 50 KW | E184: ESSEX POWERLINES CORPORATION_GENERAL SERVICE LESS THAN 50 KW SERVICE CLASSIFICATION | F184: ESSEX POWERLINES CORPORATION_GENERAL SERVICE LESS THAN 50 KW SERVICE CLASSIFICATION | G184: 14096164 | H184: 49568 | I184: 51384000.25 | J184: 0 | K184: 1538093.24 | L184: 0 | M184: 0 | N184: 0 | O184: 0 | P184: 0 | Q184: 52922093.49 | R184: 0 | S184: 67018257.49 | T184: 49568
A185: 2019 | B185: ESSEX POWERLINES CORPORATION | C185: NO RATE CLASS | D185: NO RATE CLASS | E185: ESSEX POWERLINES CORPORATION_NO RATE CLASS SERVICE CLASSIFICATION | F185: ESSEX POWERLINES CORPORATION_NO RATE CLASS SERVICE CLASSIFICATION | G185: 0 | H185: 0 | I185: 0 | J185: 0 | K185: 0 | L185: 0 | M185: 0 | N185: 0 | O185: 26951834 | P185: 63884.69922 | Q185: 0 | R185: 0 | S185: 0 | T185: 0
A186: 2019 | B186: ESSEX POWERLINES CORPORATION | C186: RESIDENTIAL | D186: RESIDENTIAL | E186: ESSEX POWERLINES CORPORATION_RESIDENTIAL SERVICE CLASSIFICATION | F186: ESSEX POWERLINES CORPORATION_RESIDENTIAL SERVICE CLASSIFICATION | G186: 7712103.81 | H186: 0 | I186: 252829948.5 | J186: 0 | K186: 0 | L186: 0 | M186: 0 | N186: 0 | O186: 0 | P186: 0 | Q186: 252829948.5 | R186: 0 | S186: 260542052.3 | T186: 0
A187: 2019 | B187: ESSEX POWERLINES CORPORATION | C187: SENTINEL LIGHTING CONNECTIONS | D187: SENTINEL LIGHTING | E187: ESSEX POWERLINES CORPORATION_SENTINEL LIGHTING SERVICE CLASSIFICATION | F187: ESSEX POWERLINES CORPORATION_SENTINEL LIGHTING SERVICE CLASSIFICATION | G187: 22974.87 | H187: 0 | I187: 247061.93 | J187: 774.53 | K187: 0 | L187: 0 | M187: 0 | N187: 0 | O187: 0 | P187: 0 | Q187: 247061.93 | R187: 774.53 | S187: 270036.8 | T187: 774.53
A188: 2019 | B188: ESSEX POWERLINES CORPORATION | C188: STREET LIGHTING CONNECTIONS | D188: STREET LIGHTING | E188: ESSEX POWERLINES CORPORATION_STREET LIGHTING SERVICE CLASSIFICATION | F188: ESSEX POWERLINES CORPORATION_STREET LIGHTING SERVICE CLASSIFICATION | G188: 2075662.15 | H188: 6280 | I188: 0 | J188: 0 | K188: 822319.11 | L188: 2014.69 | M188: 0 | N188: 0 | O188: 0 | P188: 0 | Q188: 822319.11 | R188: 2014.69 | S188: 2897981.26 | T188: 8294.69
A189: 2019 | B189: ESSEX POWERLINES CORPORATION | C189: UNMETERED SCATTERED LOAD CONNECTIONS | D189: UNMETERED SCATTERED LOAD | E189: ESSEX POWERLINES CORPORATION_UNMETERED SCATTERED LOAD SERVICE CLASSIFICATION | F189: ESSEX POWERLINES CORPORATION_UNMETERED SCATTERED LOAD SERVICE CLASSIFICATION | G189: 604891.69 | H189: 0 | I189: 1002811.11 | J189: 0 | K189: 0 | L189: 0 | M189: 0 | N189: 0 | O189: 0 | P189: 0 | Q189: 1002811.11 | R189: 0 | S189: 1607702.8 | T189: 0
A190: 2019 | B190: FESTIVAL HYDRO INC. | C190: GENERAL SERVICE EQUAL TO OR GREATER THAN 50 KW | D190: GENERAL SERVICE 50 TO 4,999 KW | E190: FESTIVAL HYDRO INC._GENERAL SERVICE 50 TO 4,999 KW SERVICE CLASSIFICATION | F190: FESTIVAL HYDRO INC._GENERAL SERVICE 50 TO 4,999 KW SERVICE CLASSIFICATION | G190: 69265041 | H190: 252660 | I190: 17433064 | J190: 50360 | K190: 281889642 | L190: 609762 | M190: 3092427 | N190: 5985 | O190: 0 | P190: 0 | Q190: 302415133 | R190: 666107 | S190: 371680174 | T190: 918767
A191: 2019 | B191: FESTIVAL HYDRO INC. | C191: GENERAL SERVICE LESS THAN 50 KW | D191: GENERAL SERVICE LESS THAN 50 KW | E191: FESTIVAL HYDRO INC._GENERAL SERVICE LESS THAN 50 KW SERVICE CLASSIFICATION | F191: FESTIVAL HYDRO INC._GENERAL SERVICE LESS THAN 50 KW SERVICE CLASSIFICATION | G191: 15118241 | H191: 0 | I191: 49266059 | J191: 0 | K191: 0 | L191: 0 | M191: 0 | N191: 0 | O191: 0 | P191: 0 | Q191: 49266059 | R191: 0 | S191: 64384300 | T191: 0
A192: 2019 | B192: FESTIVAL HYDRO INC. | C192: LARGE USER | D192: LARGE USE | E192: FESTIVAL HYDRO INC._LARGE USE SERVICE CLASSIFICATION | F192: FESTIVAL HYDRO INC._LARGE USE SERVICE CLASSIFICATION | G192: 11026250 | H192: 18595 | I192: 0 | J192: 0 | K192: 15867888 | L192: 24951 | M192: 839389 | N192: 35934 | O192: 0 | P192: 0 | Q192: 16707277 | R192: 60885 | S192: 27733527 | T192: 79480
A193: 2019 | B193: FESTIVAL HYDRO INC. | C193: NO RATE CLASS | D193: NO RATE CLASS | E193: FESTIVAL HYDRO INC._NO RATE CLASS SERVICE CLASSIFICATION | F193: FESTIVAL HYDRO INC._NO RATE CLASS SERVICE CLASSIFICATION | G193: 0 | H193: 0 | I193: 0 | J193: 0 | K193: 0 | L193: 0 | M193: 0 | N193: 0 | O193: 298260800 | P193: 591678 | Q193: 0 | R193: 0 | S193: 0 | T193: 0
A194: 2019 | B194: FESTIVAL HYDRO INC. | C194: RESIDENTIAL | D194: RESIDENTIAL | E194: FESTIVAL HYDRO INC._RESIDENTIAL SERVICE CLASSIFICATION | F194: FESTIVAL HYDRO INC._RESIDENTIAL SERVICE CLASSIFICATION | G194: 6689942 | H194: 0 | I194: 139469048 | J194: 0 | K194: 0 | L194: 0 | M194: 0 | N194: 0 | O194: 0 | P194: 0 | Q194: 139469048 | R194: 0 | S194: 146158990 | T194: 0
A195: 2019 | B195: FESTIVAL HYDRO INC. | C195: SENTINEL LIGHTING CONNECTIONS | D195: SENTINEL LIGHTING | E195: FESTIVAL HYDRO INC._SENTINEL LIGHTING SERVICE CLASSIFICATION | F195: FESTIVAL HYDRO INC._SENTINEL LIGHTING SERVICE CLASSIFICATION | G195: 900 | H195: 0 | I195: 109317 | J195: 306 | K195: 0 | L195: 0 | M195: 0 | N195: 0 | O195: 0 | P195: 0 | Q195: 109317 | R195: 306 | S195: 110217 | T195: 306
A196: 2019 | B196: FESTIVAL HYDRO INC. | C196: STREET LIGHTING CONNECTIONS | D196: STREET LIGHTING | E196: FESTIVAL HYDRO INC._STREET LIGHTING SERVICE CLASSIFICATION | F196: FESTIVAL HYDRO INC._STREET LIGHTING SERVICE CLASSIFICATION | G196: 2172720 | H196: 6007 | I196: 309096 | J196: 97 | K196: 0 | L196: 0 | M196: 0 | N196: 0 | O196: 0 | P196: 0 | Q196: 309096 | R196: 97 | S196: 2481816 | T196: 6104
A197: 2019 | B197: FESTIVAL HYDRO INC. | C197: UNMETERED SCATTERED LOAD CONNECTIONS | D197: UNMETERED SCATTERED LOAD | E197: FESTIVAL HYDRO INC._UNMETERED SCATTERED LOAD SERVICE CLASSIFICATION | F197: FESTIVAL HYDRO INC._UNMETERED SCATTERED LOAD SERVICE CLASSIFICATION | G197: 60804 | H197: 0 | I197: 246744 | J197: 0 | K197: 336040 | L197: 0 | M197: 0 | N197: 0 | O197: 0 | P197: 0 | Q197: 582784 | R197: 0 | S197: 643588 | T197: 0
A198: 2019 | B198: FORT FRANCES POWER CORPORATION | C198: GENERAL SERVICE EQUAL TO OR GREATER THAN 50 KW | D198: GENERAL SERVICE 50 TO 4,999 KW | E198: FORT FRANCES POWER CORPORATION_GENERAL SERVICE 50 TO 4,999 KW SERVICE CLASSIFICATION | F198: FORT FRANCES POWER CORPORATION_GENERAL SERVICE 50 TO 4,999 KW SERVICE CLASSIFICATION | G198: 0 | H198: 0 | I198: 4466200 | J198: 0 | K198: 17251541 | L198: 47888 | M198: 0 | N198: 0 | O198: 0 | P198: 0 | Q198: 21717741 | R198: 47888 | S198: 21717741 | T198: 47888
A199: 2019 | B199: FORT FRANCES POWER CORPORATION | C199: GENERAL SERVICE LESS THAN 50 KW | D199: GENERAL SERVICE LESS THAN 50 KW | E199: FORT FRANCES POWER CORPORATION_GENERAL SERVICE LESS THAN 50 KW SERVICE CLASSIFICATION | F199: FORT FRANCES POWER CORPORATION_GENERAL SERVICE LESS THAN 50 KW SERVICE CLASSIFICATION | G199: 378711.99 | H199: 0 | I199: 14624437 | J199: 0 | K199: 0 | L199: 0 | M199: 0 | N199: 0 | O199: 0 | P199: 0 | Q199: 14624437 | R199: 0 | S199: 15003148.99 | T199: 0
A200: 2019 | B200: FORT FRANCES POWER CORPORATION | C200: NO RATE CLASS | D200: NO RATE CLASS | E200: FORT FRANCES POWER CORPORATION_NO RATE CLASS SERVICE CLASSIFICATION | F200: FORT FRANCES POWER CORPORATION_NO RATE CLASS SERVICE CLASSIFICATION | G200: 0 | H200: 0 | I200: 0 | J200: 0 | K200: 0 | L200: 0 | M200: 0 | N200: 0 | O200: 0 | P200: 0 | Q200: 0 | R200: 0 | S200: 0 | T200: 0
A201: 2019 | B201: FORT FRANCES POWER CORPORATION | C201: RESIDENTIAL | D201: RESIDENTIAL | E201: FORT FRANCES POWER CORPORATION_RESIDENTIAL SERVICE CLASSIFICATION | F201: FORT FRANCES POWER CORPORATION_RESIDENTIAL SERVICE CLASSIFICATION | G201: 101486.17 | H201: 0 | I201: 36489780 | J201: 0 | K201: 0 | L201: 0 | M201: 0 | N201: 0 | O201: 0 | P201: 0 | Q201: 36489780 | R201: 0 | S201: 36591266.17 | T201: 0
... 368 more rows

Sheet hidden1 (hidden)
A1: =IF('DELETE 3. Rate Classes'!L17=1, 'DELETE 3. Rate Classes'!#REF!, "") ->  | B1: 1
A2: =IF('DELETE 3. Rate Classes'!L18=1, 'DELETE 3. Rate Classes'!#REF!, "") ->  | B2: 2
A3: =IF('DELETE 3. Rate Classes'!L19=1, 'DELETE 3. Rate Classes'!#REF!, "") ->  | B3: 3
A4: =IF('DELETE 3. Rate Classes'!L20=1, 'DELETE 3. Rate Classes'!#REF!, "") ->  | B4: 4
A5: =IF('DELETE 3. Rate Classes'!L21=1, 'DELETE 3. Rate Classes'!#REF!, "") ->  | B5: 5
A6: =IF('DELETE 3. Rate Classes'!L22=1, 'DELETE 3. Rate Classes'!#REF!, "") ->  | B6: 6
A7: =IF('DELETE 3. Rate Classes'!L23=1, 'DELETE 3. Rate Classes'!#REF!, "") ->  | B7: 7
A8: =IF('DELETE 3. Rate Classes'!L24=1, 'DELETE 3. Rate Classes'!#REF!, "") ->  | B8: 8
A9: =IF('DELETE 3. Rate Classes'!L25=1, 'DELETE 3. Rate Classes'!#REF!, "") ->  | B9: 9
A10: =IF('DELETE 3. Rate Classes'!L26=1, 'DELETE 3. Rate Classes'!#REF!, "") ->  | B10: 10
A11: =IF('DELETE 3. Rate Classes'!L27=1, 'DELETE 3. Rate Classes'!#REF!, "") ->  | B11: 11
A12: =IF('DELETE 3. Rate Classes'!L28=1, 'DELETE 3. Rate Classes'!#REF!, "") ->  | B12: 12
A13: =IF('DELETE 3. Rate Classes'!L29=1, 'DELETE 3. Rate Classes'!#REF!, "") ->  | B13: 13
A14: =IF('DELETE 3. Rate Classes'!L30=1, 'DELETE 3. Rate Classes'!#REF!, "") ->  | B14: 14
A15: =IF('DELETE 3. Rate Classes'!L31=1, 'DELETE 3. Rate Classes'!#REF!, "") ->  | B15: 15
A16: =IF('DELETE 3. Rate Classes'!L32=1, 'DELETE 3. Rate Classes'!#REF!, "") ->  | B16: 16
A17: =IF('DELETE 3. Rate Classes'!L33=1, 'DELETE 3. Rate Classes'!#REF!, "") ->  | B17: 17
A18: =IF('DELETE 3. Rate Classes'!L34=1, 'DELETE 3. Rate Classes'!#REF!, "") ->  | B18: 18
A19: =IF('DELETE 3. Rate Classes'!L35=1, 'DELETE 3. Rate Classes'!#REF!, "") ->  | B19: 19
A20: =IF('DELETE 3. Rate Classes'!L36=1, 'DELETE 3. Rate Classes'!#REF!, "") ->  | B20: 20
A21: =IF('DELETE 3. Rate Classes'!L37=1, 'DELETE 3. Rate Classes'!#REF!, "") ->  | B21: 21
A22: =IF('DELETE 3. Rate Classes'!L38=1, 'DELETE 3. Rate Classes'!#REF!, "") ->  | B22: 22
